Workbook

Sheet macro (hidden)
B2: DOM-XL
B3: Eine Excelanwendung zum Erfassen von Schließplänen
B4: Programme Excel pour la saisie d’organigrammes
B5: Excel application - master key systems
B7: Diese Excelanwendung muß mit "Makros aktivieren" geöffnet werden.
B8: Ab Excel 2000 müssen Sie zuerst unter EXTRAS>Macro>Sicherheit die Sicherheitsstufe auf "Mittel" einstellen
B10: Ce programme doit être ouvert avec la fonction " activer les macros "
B11: Avec Excel 2000 vous devez définir dans le menu Outils> Macros>Sécurité le niveau de sécurité " moyen ".
B13: Open this file with active macros.
B14: In Excel 2000 you must change the safety stage in Extras>Macro>Security to "Middel" .
B16: Infos:
B17: DOM-Sicherheitstechnik
B18: Wesselinger Str.10-16
B19: 50321 Brühl
B20: 02232-704-0

Sheet preis (hidden)

Sheet Import (hidden)
A1: Türbezeichnung | B1: Schlüssel-Nr. | C1: Raumbezeichnung | D1: Anz. Zylinder | E1: Anz. Schlüssel | F1: Zylindertyp | G1: Länge (A / B) | H1: Import ab Pos. | I1: 1 | J1: 1
A2: Türbezeichnung | B2: 1 | C2: raum | D2: 1 | E2: 3 | F2: 333 | G2: 30 30 | H2: 07

Sheet netto (hidden)
A1: Netto Gruppen | B1: Netto ES
A2: B | B2: B
A10: Netto Typ | B10: Netto Ausführung | C10: Netto Länge | D10: Netto Farbe
A11: B | B11: B | C11: B | D11: B
A12: B | B12: B | C12: B | D12: B
A13: B | B13: B | C13: B | D13: B
A14: 0 | B14: 0 | C14: 0 | D14: 0
A15: 0 | B15: 0 | C15: 0 | D15: 0
A16: B | B16: B | C16: B | D16: B
A17: B | B17: B | C17: B | D17: B
A18: BOA | B18: BOA | C18: BOA | D18: BOA
A19: B | B19: B | C19: B | D19: B
A20: B | B20: B | C20: B | D20: B
A21: B | B21: B | C21: B | D21: B
A22: B | B22: B | C22: B | D22: B
A23: B | B23: B | C23: B | D23: B
A24: BOA | B24: BOA | C24: BOA | D24: BOA
A25: BOA | B25: BOA | C25: BOA | D25: BOA
A26: B | B26: B | C26: B | D26: B
A27: B | B27: B | C27: B | D27: B
A28: B | B28: B | C28: B | D28: B
A29: B | B29: B | C29: B | D29: B
A30: B | B30: B | C30: B | D30: B
A31: B | B31: B | C31: B | D31: B
A32: B | B32: B | C32: B | D32: B
A33: B | B33: B | C33: B | D33: B
A34: B | B34: B | C34: B | D34: B
A35: B | B35: B | C35: B | D35: B
A36: BOA | B36: B | C36: BOA | D36: BOA
A37: B | B37: B | C37: B | D37: B
A38: B | B38: B | C38: B | D38: B
A39: B | B39: B | C39: B | D39: B
A40: B | B40: B | C40: B | D40: B
A41: B | B41: B | C41: B | D41: B
A42: B | B42: B | C42: B | D42: B
A43: B | B43: B | C43: B | D43: B
A44: BOA | B44: BOA | C44: BOA | D44: BOA
A45: B | B45: B | C45: B | D45: B
A46: B | B46: B | C46: B | D46: B
A47: B | B47: B | C47: B | D47: B
A48: B | B48: B | C48: B | D48: B
A49: B | B49: B | C49: B | D49: B
A50: B | B50: B | C50: B | D50: B
A51: B | B51: B | C51: B | D51: B
A52: B | B52: B | C52: B | D52: B
A53: B | B53: B | C53: B | D53: B
A54: B | B54: B | C54: B | D54: B
A55: B | B55: B | C55: B | D55: B
A56: 0 | B56: 0 | C56: 0 | D56: 0
A57: 0 | B57: 0 | C57: 0 | D57: 0
A58: 0 | B58: 0 | C58: 0 | D58: 0
A59: 0 | B59: 0 | C59: 0 | D59: 0
A60: 0 | B60: 0 | C60: 0 | D60: 0
A61: 0 | B61: 0 | C61: 0 | D61: 0
A62: 0 | B62: 0 | C62: 0 | D62: 0
A63: 0 | B63: 0 | C63: 0 | D63: 0
A64: 0 | B64: 0 | C64: 0 | D64: 0
A65: 0 | B65: 0 | C65: 0 | D65: 0
A66: 0 | B66: 0 | C66: 0 | D66: 0
A67: 0 | B67: 0 | C67: 0 | D67: 0
A68: 0 | B68: 0 | C68: 0 | D68: 0
A69: 0 | B69: 0 | C69: 0 | D69: 0
A70: 0 | B70: 0 | C70: 0 | D70: 0
A71: 0 | B71: 0 | C71: 0 | D71: 0
A72: 0 | B72: 0 | C72: 0 | D72: 0
A73: 0 | B73: 0 | C73: 0 | D73: 0
A74: 0 | B74: 0 | C74: 0 | D74: 0
A75: 0 | B75: 0 | C75: 0 | D75: 0
A76: 0 | B76: 0 | C76: 0 | D76: 0
A77: 0 | B77: 0 | C77: 0 | D77: 0
A78: 0 | B78: 0 | C78: 0 | D78: 0
A79: 0 | B79: 0 | C79: 0 | D79: 0
A80: 0 | B80: 0 | C80: 0 | D80: 0
A81: 0 | B81: 0 | C81: 0 | D81: 0
A82: 0 | B82: 0 | C82: 0 | D82: 0
A83: 0 | B83: 0 | C83: 0 | D83: 0
A84: 0 | B84: 0 | C84: 0 | D84: 0
A85: 0 | B85: 0 | C85: 0 | D85: 0
A86: 0 | B86: 0 | C86: 0 | D86: 0
A87: 0 | B87: 0 | C87: 0 | D87: 0
A88: 0 | B88: 0 | C88: 0 | D88: 0
A89: 0 | B89: 0 | C89: 0 | D89: 0
A90: 0 | B90: 0 | C90: 0 | D90: 0
A91: 0 | B91: 0 | C91: 0 | D91: 0
A92: 0 | B92: 0 | C92: 0 | D92: 0
A93: 0 | B93: 0 | C93: 0 | D93: 0
A94: 0 | B94: 0 | C94: 0 | D94: 0
A95: 0 | B95: 0 | C95: 0 | D95: 0
A96: 0 | B96: 0 | C96: 0 | D96: 0
A97: 0 | B97: 0 | C97: 0 | D97: 0
A98: 0 | B98: 0 | C98: 0 | D98: 0
A99: 0 | B99: 0 | C99: 0 | D99: 0
A100: 0 | B100: 0 | C100: 0 | D100: 0
A101: 0 | B101: 0 | C101: 0 | D101: 0
A102: 0 | B102: 0 | C102: 0 | D102: 0
A103: 0 | B103: 0 | C103: 0 | D103: 0
A104: 0 | B104: 0 | C104: 0 | D104: 0
A105: 0 | B105: 0 | C105: 0 | D105: 0
A106: 0 | B106: 0 | C106: 0 | D106: 0
A107: 0 | B107: 0 | C107: 0 | D107: 0
A108: 0 | B108: 0 | C108: 0 | D108: 0
A109: 0 | B109: 0 | C109: 0 | D109: 0
A110: 0 | B110: 0 | C110: 0 | D110: 0
A111: 0 | B111: 0 | C111: 0 | D111: 0
A112: 0 | B112: 0 | C112: 0 | D112: 0
A113: 0 | B113: 0 | C113: 0 | D113: 0
A114: 0 | B114: 0 | C114: 0 | D114: 0
A115: 0 | B115: 0 | C115: 0 | D115: 0
A116: 0 | B116: 0 | C116: 0 | D116: 0
A117: 0 | B117: 0 | C117: 0 | D117: 0
A118: 0 | B118: 0 | C118: 0 | D118: 0
A119: 0 | B119: 0 | C119: 0 | D119: 0
A120: 0 | B120: 0 | C120: 0 | D120: 0
A121: 0 | B121: 0 | C121: 0 | D121: 0
A122: 0 | B122: 0 | C122: 0 | D122: 0
A123: 0 | B123: 0 | C123: 0 | D123: 0
A124: 0 | B124: 0 | C124: 0 | D124: 0
A125: 0 | B125: 0 | C125: 0 | D125: 0
A126: 0 | B126: 0 | C126: 0 | D126: 0
A127: 0 | B127: 0 | C127: 0 | D127: 0
A128: 0 | B128: 0 | C128: 0 | D128: 0
A129: 0 | B129: 0 | C129: 0 | D129: 0
A130: 0 | B130: 0 | C130: 0 | D130: 0
A131: 0 | B131: 0 | C131: 0 | D131: 0
A132: 0 | B132: 0 | C132: 0 | D132: 0
A133: 0 | B133: 0 | C133: 0 | D133: 0
A134: 0 | B134: 0 | C134: 0 | D134: 0
A135: 0 | B135: 0 | C135: 0 | D135: 0
A136: 0 | B136: 0 | C136: 0 | D136: 0
A137: 0 | B137: 0 | C137: 0 | D137: 0
A138: 0 | B138: 0 | C138: 0 | D138: 0
A139: 0 | B139: 0 | C139: 0 | D139: 0
A140: 0 | B140: 0 | C140: 0 | D140: 0
A141: 0 | B141: 0 | C141: 0 | D141: 0
A142: 0 | B142: 0 | C142: 0 | D142: 0
A143: 0 | B143: 0 | C143: 0 | D143: 0
A144: 0 | B144: 0 | C144: 0 | D144: 0
A145: 0 | B145: 0 | C145: 0 | D145: 0
A146: 0 | B146: 0 | C146: 0 | D146: 0
A147: 0 | B147: 0 | C147: 0 | D147: 0
A148: 0 | B148: 0 | C148: 0 | D148: 0
A149: 0 | B149: 0 | C149: 0 | D149: 0
A150: 0 | B150: 0 | C150: 0 | D150: 0
A151: 0 | B151: 0 | C151: 0 | D151: 0
A152: 0 | B152: 0 | C152: 0 | D152: 0
A153: 0 | B153: 0 | C153: 0 | D153: 0
A154: 0 | B154: 0 | C154: 0 | D154: 0
A155: 0 | B155: 0 | C155: 0 | D155: 0
A156: 0 | B156: 0 | C156: 0 | D156: 0
A157: 0 | B157: 0 | C157: 0 | D157: 0
A158: 0 | B158: 0 | C158: 0 | D158: 0
A159: 0 | B159: 0 | C159: 0 | D159: 0
A160: 0 | B160: 0 | C160: 0 | D160: 0
A161: 0 | B161: 0 | C161: 0 | D161: 0
A162: 0 | B162: 0 | C162: 0 | D162: 0
A163: 0 | B163: 0 | C163: 0 | D163: 0
A164: 0 | B164: 0 | C164: 0 | D164: 0
A165: 0 | B165: 0 | C165: 0 | D165: 0
A166: 0 | B166: 0 | C166: 0 | D166: 0
A167: 0 | B167: 0 | C167: 0 | D167: 0
A168: 0 | B168: 0 | C168: 0 | D168: 0
A169: 0 | B169: 0 | C169: 0 | D169: 0
A170: 0 | B170: 0 | C170: 0 | D170: 0
A171: 0 | B171: 0 | C171: 0 | D171: 0
A172: 0 | B172: 0 | C172: 0 | D172: 0
A173: 0 | B173: 0 | C173: 0 | D173: 0
A174: 0 | B174: 0 | C174: 0 | D174: 0
A175: 0 | B175: 0 | C175: 0 | D175: 0
A176: 0 | B176: 0 | C176: 0 | D176: 0
A177: 0 | B177: 0 | C177: 0 | D177: 0
A178: 0 | B178: 0 | C178: 0 | D178: 0
A179: 0 | B179: 0 | C179: 0 | D179: 0
A180: 0 | B180: 0 | C180: 0 | D180: 0
A181: 0 | B181: 0 | C181: 0 | D181: 0
A182: 0 | B182: 0 | C182: 0 | D182: 0
A183: 0 | B183: 0 | C183: 0 | D183: 0
A184: 0 | B184: 0 | C184: 0 | D184: 0
A185: 0 | B185: 0 | C185: 0 | D185: 0
A186: 0 | B186: 0 | C186: 0 | D186: 0
A187: 0 | B187: 0 | C187: 0 | D187: 0
A188: 0 | B188: 0 | C188: 0 | D188: 0
A189: 0 | B189: 0 | C189: 0 | D189: 0
A190: 0 | B190: 0 | C190: 0 | D190: 0
A191: 0 | B191: 0 | C191: 0 | D191: 0
A192: 0 | B192: 0 | C192: 0 | D192: 0
A193: 0 | B193: 0 | C193: 0 | D193: 0
A194: 0 | B194: 0 | C194: 0 | D194: 0
A195: 0 | B195: 0 | C195: 0 | D195: 0
A196: 0 | B196: 0 | C196: 0 | D196: 0
A197: 0 | B197: 0 | C197: 0 | D197: 0
A198: 0 | B198: 0 | C198: 0 | D198: 0
A199: 0 | B199: 0 | C199: 0 | D199: 0
A200: 0 | B200: 0 | C200: 0 | D200: 0
A201: 0 | B201: 0 | C201: 0 | D201: 0
A202: 0 | B202: 0 | C202: 0 | D202: 0
A203: 0 | B203: 0 | C203: 0 | D203: 0
A204: 0 | B204: 0 | C204: 0 | D204: 0
A205: 0 | B205: 0 | C205: 0 | D205: 0
A206: 0 | B206: 0 | C206: 0 | D206: 0
A207: 0 | B207: 0 | C207: 0 | D207: 0
... 561 more rows

Sheet diverses (hidden)
A1: Schlüsselnummer | B1: Anzahl
A2: 1 | B2: =COUNTIF('S-Plan'!E:E,A2) -> 0
A3: Bestehende vorhanden Status X | B3: Anzahl
A4: X | B4: =COUNTIF('S-Plan'!B:B,A4) -> 0

Sheet altanl (hidden)
A1: VON | B1: BIS | C1: Aufschlag | D1: Länge
A2: 100000 | B2: 209168 | C2: 30 | D2: 7
A3: 800000 | B3: 806000 | C3: 30 | D3: 6
A4: AA | B4: BB | C4: 30 | D4: 2
A5: AA11 | B5: CM96 | C5: 30 | D5: 4
A6: AAA | B6: ZZZ | C6: 30 | D6: 3
A7: AAAA | B7: FWWW | C7: 30 | D7: 4
A8: LAAA | B8: MWWW | C8: 30 | D8: 4
A9: NAAA | B9: NFKY | C9: 30 | D9: 4
A10: NHAV | B10: NJBG | C10: 30 | D10: 4
A11: PAAA | B11: RWWW | C11: 30 | D11: 4
A12: XAAA | B12: XGYD | C12: 30 | D12: 4
A13: YAAA | B13: YZZZ | C13: 30 | D13: 4
A14: 209169 | B14: 319151 | C14: 15 | D14: 7
A15: 319152 | B15: 999999 | C15: 0 | D15: 7
A16: 319152 | B16: 999999 | C16: 0 | D16: 8

Sheet SchAuf (hidden)
A1: System | B1: Frei pro Zyl | C1: Aufpreis | D1: Gruppen HS | E1: GHS | F1: Gefahr | G1: ES ohne zyl | H1: HS-GS ohne zyl | I1: GHS ohne zyl | J1: G ohne zyl | K1: Netto
A2: DIAMANT | B2: 0 | C2: 0 | D2: 0 | E2: 0 | G2: 0 | H2: 0 | I2: 0 | K2: B
A3: D | B3: 3 | C3: 0 | D3: 0 | G3: 0 | H3: 0 | I3: 0 | J3: 0 | K3: B
A4: IX10KG | B4: 3 | C4: 0 | D4: 0 | G4: 0 | H4: 0 | I4: 0 | J4: 0 | K4: B
A5: IX5HT | B5: 3 | C5: 0 | D5: 0 | G5: 0 | H5: 0 | I5: 0 | J5: 0 | K5: B
A6: IX6KG | B6: 3 | C6: 0 | D6: 0 | G6: 0 | H6: 0 | I6: 0 | J6: 0 | K6: B
A7: IX10 | B7: 3 | C7: 0 | D7: 0 | G7: 0 | H7: 0 | I7: 0 | J7: 0 | K7: B
A8: IX5KG | B8: 3 | C8: 0 | D8: 0 | G8: 0 | H8: 0 | I8: 0 | J8: 0 | K8: B
A9: RS5 | B9: 3 | C9: 0 | D9: 0 | G9: 0 | H9: 0 | I9: 0 | J9: 0 | K9: B
A10: RS6 | B10: 3 | C10: 0 | D10: 0 | G10: 0 | H10: 0 | I10: 0 | J10: 0 | K10: B
A11: S5 | B11: 3 | C11: 0 | D11: 0 | G11: 0 | H11: 0 | I11: 0 | J11: 0 | K11: B
A12: SC5 | B12: 3 | C12: 0 | D12: 0 | G12: 0 | H12: 0 | I12: 0 | J12: 0 | K12: B
A13: S6 | B13: 3 | C13: 0 | D13: 0 | G13: 0 | H13: 0 | I13: 0 | J13: 0 | K13: B
A14: SC6 | B14: 3 | C14: 0 | D14: 0 | G14: 0 | H14: 0 | I14: 0 | J14: 0 | K14: B
A15: IX6SR | B15: 3 | C15: 0 | D15: 0 | E15: 0 | G15: 0 | H15: 0 | I15: 0 | K15: B
A16: RS8 | B16: 3 | C16: 0 | D16: 0 | E16: 0 | G16: 0 | H16: 0 | I16: 0 | J16: 0 | K16: B
A17: DAS | B17: 3 | C17: 0 | D17: 0 | E17: 0 | G17: 0 | H17: 0 | I17: 0 | J17: 0 | K17: B
A18: RGB | B18: 3 | C18: 0 | D18: 0 | E18: 0 | G18: 0 | H18: 0 | I18: 0 | J18: 0 | K18: B
A19: IXHT | B19: 3 | C19: 0 | D19: 0 | E19: 0 | G19: 0 | H19: 0 | I19: 0 | K19: B
A20: IXSAT | B20: 3 | C20: 0 | D20: 0 | E20: 0 | G20: 0 | H20: 0 | I20: 0 | K20: B
A21: IXTWINSTAR | B21: 3 | C21: 0 | D21: 0 | E21: 0 | G21: 0 | H21: 0 | I21: 0 | K21: B
A22: IXDAS | B22: 3 | C22: 0 | D22: 0 | E22: 0 | G22: 0 | H22: 0 | I22: 0 | J22: 0 | K22: B
A23: RS SIGMA | B23: 3 | C23: 0 | D23: 0 | E23: 0 | G23: 0 | H23: 0 | I23: 0 | J23: 0 | K23: B
A24: SIGMA PLUS | B24: 3 | C24: 0 | D24: 0 | E24: 0 | G24: 0 | H24: 0 | I24: 0 | J24: 0 | K24: B
A25: GAMMA | B25: 1 | C25: 0 | D25: 0 | E25: 0 | G25: 0 | H25: 0 | I25: 0 | K25: B
A26: SIGMA PLUS IT | B26: 3 | C26: 0 | D26: 0 | E26: 0 | G26: 0 | H26: 0 | I26: 0 | K26: B
A27: IX6SR IT | B27: 3 | C27: 12.66 | D27: 12.66 | E27: 12.66 | G27: 26.18 | H27: 26.18 | I27: 26.18 | K27: B
A28: T250 IT | B28: 5 | C28: 15 | D28: 25 | E28: 25 | G28: 20 | H28: 30 | I28: 30 | K28: B
A29: K6TL IT | B29: 3 | C29: 15 | D29: 25 | E29: 25 | G29: 20 | H29: 30 | I29: 30 | K29: B
A30: IX7TE | B30: 3 | C30: 0 | D30: 0 | E30: 0 | G30: 0 | H30: 0 | I30: 0 | K30: B
A31: IX7TW | B31: 3 | C31: 0 | D31: 0 | E31: 0 | G31: 0 | H31: 0 | I31: 0 | K31: B
A32: IXTECO | B32: 3 | C32: 0 | D32: 0 | E32: 0 | G32: 0 | H32: 0 | I32: 0 | K32: B
A33: IXTWIDO | B33: 3 | C33: 0 | D33: 0 | E33: 0 | G33: 0 | H33: 0 | I33: 0 | K33: B
A34: IX6HT | B34: 3 | C34: 0 | D34: 0 | E34: 0 | G34: 0 | H34: 0 | I34: 0 | K34: B
A35: SIRIUS | B35: 0 | C35: 0 | D35: 0 | E35: 0 | G35: 0 | H35: 0 | I35: 0 | K35: B
A36: RS7SI | B36: 0 | C36: 0 | D36: 0 | E36: 0 | G36: 0 | H36: 0 | I36: 0 | K36: B

Sheet Start
C1: DOM-XL 6.2.05 -
C3: DOMXL
C18: Klant | F18: Project | I18: Afwijkend leveradres
C19: Klantnummer | F19: Straat | I19: Naam 1
C20: Telefoon | F20: Land (NL) | I20: Naam 2
C21: Kontaktpersoon | F21: Postcode | I21: Straat
C22: Straat | F22: Provincie
C23: Land (NL) | I23: Land (NL)
C24: Postcode | F24: Referentie | I24: Postcode
C25: Provincie | F25: Levertijd | I25: Provincie
F26: object prijs nummer
C27: Bijzonderheden 2
J30: we domore for security

Sheet Ausf (hidden)
A1: 0 | C1: Ohne | E1: 0 | P1: B | Q1: Tabelle | R1: Beschreibung
A2: 1 | B2: B | C2: Bohrschutz | D2: Ohne G Fuktion Doppelzyl | E2: 1 | F2: B_SCHUTZ | G2: SCB | P2: B | Q2: 1 | R2: Ohne G Fuktion Doppelzyl
A3: 1 | B3: Biffar | C3: Biffar Nase | E3: 1 | F3: B_MITNEHMERAUSF | G3: MIBIF | H3: B_FUNKTIONEN | I3: FUT | P3: B | Q3: 2 | R3: Mit G Funktion Doppelzyl
A4: 1 | B4: CH | C4: Schweizer Mitnehmer | E4: 1 | F4: B_MITNEHMERAUSF | G4: MICH | P4: B | Q4: 3 | R4: K2
A5: 1 | B5: CHK2 | C5: Schweizer Mitnehmer | E5: 1 | F5: B_MITNEHMERAUSF | G5: MICH | H5: B_KNAUFAUSF | I5: KNK2 | P5: B | Q5: 4 | R5: 382
A6: 1 | B6: CHK6 | C6: Schweizer Mitnehmer | E6: 1 | F6: B_MITNEHMERAUSF | G6: MICH | H6: B_KNAUFAUSF | I6: KNK6 | P6: B | Q6: 6 | R6: 419/1
A7: 1 | B7: I/A | C7: Innen Aussen | E7: 0 | F7: B_SCHLIESSFUNKTION_AU_IN | G7: SHJA | Q7: 7 | R7: 777
A8: 1 | B8: K1 | C8: Knauf | E8: 1 | F8: B_KNAUFAUSF | G8: KNK1 | P8: B
A9: 1 | B9: K2 | C9: Knauf | E9: 1 | F9: B_KNAUFAUSF | G9: KNK2 | P9: B | Q9: 8 | R9: Halbzyl
A10: 1 | B10: K3 | C10: Knauf | E10: 1 | F10: B_KNAUFAUSF | G10: KNK3 | P10: B | Q10: 9 | R10: gelöscht
A11: 1 | B11: K4 | C11: Knauf | E11: 1 | F11: B_KNAUFAUSF | G11: KNK4 | P11: B | Q11: 10 | R11: 3020
A12: 1 | B12: K6 | C12: Knauf | E12: -2.2 | F12: B_KNAUFAUSF | G12: KNK6 | P12: B | Q12: 11 | R12: 333RI
A13: 1 | B13: KUBEIGE | C13: Knauf | E13: 1 | F13: B_KNAUFAUSF | G13: KNKUBEIGE | P13: B | Q13: 12 | R13: Blindzyl
A14: 1 | B14: KUDUNKELBLAU | C14: Knauf | E14: 1 | F14: B_KNAUFAUSF | G14: KNKUDUNKELBLAU | P14: B | Q14: 13 | R14: Ohne T und G
A15: 1 | B15: KUDUNKELBRAUN | C15: Knauf | E15: 1 | F15: B_KNAUFAUSF | G15: KNKUDUNKELBRAUN | P15: B | Q15: 14 | R15: VAR
A16: 1 | B16: KUDUNKELGRUEN | C16: Knauf | E16: 1 | F16: B_KNAUFAUSF | G16: KNKUDUNKELGRUEN | P16: B | Q16: 15 | R16: Cod ES fü Enet
A17: 1 | B17: KUDUNKELROT | C17: Knauf | E17: 1 | F17: B_KNAUFAUSF | G17: KNKUDUNKELROT | P17: B | Q17: 16 | R17: 555
A18: 1 | B18: KUGELB | C18: Knauf | E18: 1 | F18: B_KNAUFAUSF | G18: KNKUGELB | P18: B | Q18: .. | R18: diverse
A19: 1 | B19: KUGRAU | C19: Knauf | E19: 1 | F19: B_KNAUFAUSF | G19: KNKUGRAU | P19: B | Q19: .. | R19: diverse
A20: 1 | B20: KUGRUEN | C20: Knauf | E20: 1 | F20: B_KNAUFAUSF | G20: KNKUGRUEN | P20: B | Q20: 35 | R20: 333KL
A21: 1 | B21: KUROT | C21: Knauf | E21: 1 | F21: B_KNAUFAUSF | G21: KNKUROT | P21: B | Q21: 36 | R21: 333M
A22: 1 | B22: KUSCHWARZ | C22: Knauf | E22: 1 | F22: B_KNAUFAUSF | G22: KNKUSCHWARZ | P22: B | Q22: 37 | R22: 333HM
A23: 1 | B23: KUWEISS | C23: Knauf | E23: 1 | F23: B_KNAUFAUSF | G23: KNKUWEISS | P23: B
A24: 1 | B24: MI ESP | C24: Spanischer Mitnehmer | E24: 1 | F24: B_MITNEHMERAUSF | G24: MIESP
A25: 1 | B25: SEW | C25: Seewasser | D25: Ohne G Fuktion Doppelzyl | E25: 1 | F25: B_SEEWASSERAUSF | G25: SEW | H25: B_STULPSCHRAUBENAUSF | I25: SA80 SEEW | J25: B_FAERBUNG_AUSSEN | K25: FA004 | L25: B_FAERBUNG_INNEN | M25: FI004 | P25: B
A26: 1 | B26: T | C26: Beidseitig | D26: Ohne G Fuktion Doppelzyl | E26: 1 | F26: B_FUNKTIONEN | G26: FUT | P26: B
A27: 1 | B27: TB | C27: T und Bohrschutz | E27: 1 | F27: B_SCHUTZ | G27: SCB | H27: B_FUNKTIONEN | I27: FUT
A28: 1 | D28: Ohne G Fuktion Doppelzyl | E28: 0 | P28: B
A29: 2 | B29: B | C29: Bohrschutz | D29: Mit G Funktion Doppelzyl | E29: 1 | F29: B_SCHUTZ | G29: SCB | P29: B
A30: 2 | B30: Biffar | C30: Biffar Nase | E30: 1 | F30: B_MITNEHMERAUSF | G30: MIBIF | H30: B_FUNKTIONEN | I30: FUT | P30: B
A31: 2 | B31: CH | C31: Schweizer Mitnehmer | E31: 1 | F31: B_MITNEHMERAUSF | G31: MICH | P31: B
A32: 2 | B32: CHK2 | C32: Schweizer Mitnehmer | E32: 1 | F32: B_MITNEHMERAUSF | G32: MICH | H32: B_KNAUFAUSF | I32: KNK2 | P32: B
A33: 2 | B33: CHK6 | C33: Schweizer Mitnehmer | E33: 1 | F33: B_MITNEHMERAUSF | G33: MICH | H33: B_KNAUFAUSF | I33: KNK6 | P33: B
A34: 2 | B34: K2CHCH | C34: Schweizer Mitnehmer | E34: 1 | F34: B_MITNEHMERAUSF | G34: MICH | H34: B_KNAUFAUSF | I34: KNK2CH | P34: B
A35: 2 | B35: K3CHCH | C35: Schweizer Mitnehmer | E35: 1 | F35: B_MITNEHMERAUSF | G35: MICH | H35: B_KNAUFAUSF | I35: KNK3CH | P35: B
A36: 2 | B36: K6CHCH | C36: Schweizer Mitnehmer | E36: 1 | F36: B_MITNEHMERAUSF | G36: MICH | H36: B_KNAUFAUSF | I36: KNK6CH | P36: B
A37: 2 | B37: I/A | C37: Innen Aussen | E37: 0 | F37: B_SCHLIESSFUNKTION_AU_IN | G37: SHJA
A38: 2 | B38: K1 | C38: Knauf | E38: 1 | F38: B_KNAUFAUSF | G38: KNK1 | P38: B
A39: 2 | B39: K2 | C39: Knauf | E39: 1 | F39: B_KNAUFAUSF | G39: KNK2 | P39: B
A40: 2 | B40: K3 | C40: Knauf | E40: 1 | F40: B_KNAUFAUSF | G40: KNK3 | P40: B
A41: 2 | B41: K4 | C41: Knauf | E41: 1 | F41: B_KNAUFAUSF | G41: KNK4 | P41: B
A42: 2 | B42: K6 | C42: Knauf | E42: -2.2 | F42: B_KNAUFAUSF | G42: KNK6 | P42: B
A43: 2 | B43: KUBEIGE | C43: Knauf | E43: 1 | F43: B_KNAUFAUSF | G43: KNKUBEIGE | P43: B
A44: 2 | B44: KUDUNKELBLAU | C44: Knauf | E44: 1 | F44: B_KNAUFAUSF | G44: KNKUDUNKELBLAU | P44: B
A45: 2 | B45: KUDUNKELBRAUN | C45: Knauf | E45: 1 | F45: B_KNAUFAUSF | G45: KNKUDUNKELBRAUN | P45: B
A46: 2 | B46: KUDUNKELGRUEN | C46: Knauf | E46: 1 | F46: B_KNAUFAUSF | G46: KNKUDUNKELGRUEN | P46: B
A47: 2 | B47: KUDUNKELROT | C47: Knauf | E47: 1 | F47: B_KNAUFAUSF | G47: KNKUDUNKELROT | P47: B
A48: 2 | B48: KUGELB | C48: Knauf | E48: 1 | F48: B_KNAUFAUSF | G48: KNKUGELB | P48: B
A49: 2 | B49: KUGRAU | C49: Knauf | E49: 1 | F49: B_KNAUFAUSF | G49: KNKUGRAU | P49: B
A50: 2 | B50: KUGRUEN | C50: Knauf | E50: 1 | F50: B_KNAUFAUSF | G50: KNKUGRUEN | P50: B
A51: 2 | B51: KUROT | C51: Knauf | E51: 1 | F51: B_KNAUFAUSF | G51: KNKUROT | P51: B
A52: 2 | B52: KUSCHWARZ | C52: Knauf | E52: 1 | F52: B_KNAUFAUSF | G52: KNKUSCHWARZ | P52: B
A53: 2 | B53: KUWEISS | C53: Knauf | E53: 1 | F53: B_KNAUFAUSF | G53: KNKUWEISS | P53: B
A54: 2 | B54: MI ESP | C54: Spanischer Mitnehmer | E54: 1 | F54: B_MITNEHMERAUSF | G54: MIESP
A55: 2 | B55: SEW | C55: Seewasser | D55: Mit G Funktion Doppelzyl | E55: 1 | F55: B_SEEWASSERAUSF | G55: SEW | H55: B_STULPSCHRAUBENAUSF | I55: SA80 SEEW | J55: B_FAERBUNG_AUSSEN | K55: FA004 | L55: B_FAERBUNG_INNEN | M55: FI004 | P55: B
A56: 2 | B56: T | C56: Beidseitig | D56: Mit G Funktion Doppelzyl | E56: 1 | F56: B_FUNKTIONEN | G56: FUT | P56: B
A57: 2 | B57: TB | C57: T und Bohrschutz | E57: 1 | F57: B_SCHUTZ | G57: SCB | H57: B_FUNKTIONEN | I57: FUT
A58: 2 | D58: Mit G Funktion Doppelzyl | E58: 0 | P58: B
A59: 3 | B59: B | C59: Bohrschutz | D59: 333K2 | E59: 1 | F59: B_SCHUTZ | G59: SCB | P59: B
A60: 3 | B60: CH | C60: Schweizer Mitnehmer | E60: 1 | F60: B_MITNEHMERAUSF | G60: MICH | P60: B
A61: 3 | B61: CHK2 | C61: Schweizer Mitnehmer | E61: 1 | F61: B_MITNEHMERAUSF | G61: MICH | H61: B_KNAUFAUSF | I61: KNK2 | P61: B
A62: 3 | B62: CHK6 | C62: Schweizer Mitnehmer | E62: 1 | F62: B_MITNEHMERAUSF | G62: MICH | H62: B_KNAUFAUSF | I62: KNK6 | P62: B
A63: 3 | B63: SEW | C63: Seewasser | D63: 333K2 | E63: 1 | F63: B_SEEWASSERAUSF | G63: SEW | H63: B_STULPSCHRAUBENAUSF | I63: SA80 SEEW | J63: B_FAERBUNG_AUSSEN | K63: FA004 | L63: B_FAERBUNG_INNEN | M63: FI004 | P63: B
A64: 3 | D64: 333K2 | E64: 0 | P64: B
A65: 4 | B65: DS | C65: Hebel Schlüsselschrank | D65: 382 | E65: 0 | F65: B_ZUBEHOER_SCHRANK | G65: DS | P65: B
A66: 4 | B66: LI | D66: 382 | E66: 0 | F66: B_AUSFUEHRUNG_LI_RE | G66: AGLI | H66: B_TEILENR_HEBEL_10_8_BAU | I66: 200013F013 | P66: B
A67: 4 | B67: LI-Hebel JU | D67: 382 | E67: 0 | F67: B_AUSFUEHRUNG_LI_RE | G67: AGLI | H67: B_TEILENR_HEBEL_10_8_BAU | I67: 245497F013 | P67: B
A68: 4 | B68: LI-Hebel RENZ | D68: 382 | E68: 0 | F68: B_AUSFUEHRUNG_LI_RE | G68: AGLI | H68: B_TEILENR_HEBEL_10_8_BAU | I68: 245551F013 | P68: B
A69: 4 | B69: RE | D69: 382 | E69: 0 | F69: B_AUSFUEHRUNG_LI_RE | G69: AGRE | H69: B_TEILENR_HEBEL_10_8_BAU | I69: 200013F013 | P69: B
A70: 4 | B70: RE-Hebel JU | D70: 382 | E70: 0 | F70: B_AUSFUEHRUNG_LI_RE | G70: AGRE | H70: B_TEILENR_HEBEL_10_8_BAU | I70: 245497F013 | P70: B
A71: 4 | B71: RE-Hebel RENZ | D71: 382 | E71: 0 | F71: B_AUSFUEHRUNG_LI_RE | G71: AGRE | H71: B_TEILENR_HEBEL_10_8_BAU | I71: 245551F013 | P71: B
A72: 4 | B72: SD | C72: Zahnrad Schlüsseldepot | D72: 382 | E72: 1 | F72: B_ZUBEHOER_SCHRANK | G72: SD | P72: B
A73: 5 | B73: 393/1 - 1 x 90° | C73: Schlüsseldrehweg | D73: 393 | E73: 0 | F73: B_SCHALTERAUSF | G73: 2S/FE STE | P73: B
A74: 5 | B74: 393/2 - 1 x 90° rückfedernd | C74: Schlüsseldrehweg | D74: 393 | E74: 0 | F74: B_SCHALTERAUSF | G74: 2S/RE STE | P74: B
A75: 5 | B75: 393/3 - 1 x 360° 90° | C75: Schlüsseldrehweg | D75: 393 | E75: 0 | F75: B_SCHALTERAUSF | G75: 2S/1X STE | P75: B
A76: 5 | B76: 393/4 - 2 x 90° | C76: Schlüsseldrehweg | D76: 393 | E76: 0 | F76: B_SCHALTERAUSF | G76: 2S/2X STE | P76: B
A77: 6 | B77: A | C77: Gewinde - Mitnehmer | D77: 419/1 | E77: 0 | F77: B_MITNEHMERAUSF_419 | G77: CMA | P77: B
A78: 6 | B78: B | C78: Gewinde - Mitnehmer | D78: 419/1 | E78: 0 | F78: B_MITNEHMERAUSF_419 | G78: CMB | P78: B
A79: 6 | B79: C | C79: Gewinde - Mitnehmer | D79: 419/1 | E79: 0 | F79: B_MITNEHMERAUSF_419 | G79: CMC | P79: B
A80: 6 | B80: D | C80: Gewinde - Mitnehmer | D80: 419/1 | E80: 0 | F80: B_MITNEHMERAUSF_419 | G80: CMD | P80: B
A81: 6 | B81: E | C81: Gewinde - Mitnehmer | D81: 419/1 | E81: 0 | F81: B_MITNEHMERAUSF_419 | G81: CME | P81: B
A82: 6 | B82: F | C82: Gewinde - Mitnehmer | D82: 419/1 | E82: 0 | F82: B_MITNEHMERAUSF_419 | G82: CMF | P82: B
A83: 6 | B83: G | C83: Gewinde - Mitnehmer | D83: 419/1 | E83: 0 | F83: B_MITNEHMERAUSF_419 | G83: CMG | P83: B
A84: 6 | D84: 419/1 | E84: 0 | P84: B
A85: 7 | B85: SV 120 mm | C85: Bügelhöhe 120 mm | D85: 777 | E85: 1 | F85: B_BUEGELLAENGE | G85: BU120 | H85: B_VERRIEGELUNG | I85: VRSV | P85: B
A86: 7 | B86: SV 32 mm | C86: Bügelhöhe 32 mm | D86: 777 | E86: 0 | F86: B_BUEGELLAENGE | G86: BU32 | H86: B_VERRIEGELUNG | I86: VRSV | P86: B
A87: 7 | B87: SV 60 mm | C87: Bügelhöhe 60 mm | D87: 777 | E87: 1 | F87: B_BUEGELLAENGE | G87: BU60 | H87: B_VERRIEGELUNG | I87: VRSV | P87: B
A88: 7 | B88: ZV 120 mm | C88: Bügelhöhe 120 mm | D88: 777 | E88: 1 | F88: B_BUEGELLAENGE | G88: BU120 | H88: B_VERRIEGELUNG | I88: VRZV | P88: B
A89: 7 | B89: ZV 32 mm | C89: Bügelhöhe 32 mm | D89: 777 | E89: 0 | F89: B_BUEGELLAENGE | G89: BU32 | H89: B_VERRIEGELUNG | I89: VRZV | P89: B
A90: 7 | B90: ZV 60 mm | C90: Bügelhöhe 60 mm | D90: 777 | E90: 1 | F90: B_BUEGELLAENGE | G90: BU60 | H90: B_VERRIEGELUNG | I90: VRZV | P90: B
A91: 7 | D91: 777 | E91: 0 | P91: B
A92: 8 | B92: B | C92: Bohrschutz | E92: 1 | F92: B_SCHUTZ | G92: SCB
A93: 8 | B93: CH | C93: Schweizer Mitnehmer | E93: 0 | F93: B_MITNEHMERAUSF | G93: MICH | P93: B
A94: 8 | B94: CHK2 | C94: Schweizer Mitnehmer | E94: 0 | F94: B_MITNEHMERAUSF | G94: MICH | H94: B_KNAUFAUSF | I94: KNK2 | P94: B
A95: 8 | B95: CHK6 | C95: Schweizer Mitnehmer | E95: 0 | F95: B_MITNEHMERAUSF | G95: MICH | H95: B_KNAUFAUSF | I95: KNK6 | P95: B
A96: 8 | B96: MI ESP | C96: Spanischer Mitnehmer | E96: 0 | F96: B_MITNEHMERAUSF | G96: MIESP
A97: 8 | B97: SEW | C97: Seewasser | D97: Ohne G Fuktion Halbzyl | E97: 1 | F97: B_SEEWASSERAUSF | G97: SEW | H97: B_STULPSCHRAUBENAUSF | I97: SA80 SEEW | J97: B_FAERBUNG_AUSSEN | K97: FA004 | P97: B
A98: 8 | D98: Ohne G Fuktion Halbzyl | E98: 0 | P98: B
A99: 10 | B99: LI | C99: Links | D99: 3020 | E99: 0 | F99: B_AUSFUEHRUNG_LI_RE | G99: AGLI | P99: B
A100: 10 | B100: RE | C100: Rechts | D100: 3020 | E100: 0 | F100: B_AUSFUEHRUNG_LI_RE | G100: AGRE | P100: B | Q100: 1 | R100: Ohne G Fuktion Doppelzyl
A101: 11 | B101: RI10 | D101: 333RI | E101: 1 | F101: B_MITNEHMERAUSF | G101: MIRI10 | P101: B | Q101: 2 | R101: Mit G Funktion Doppelzyl
A102: 11 | B102: RI13 | D102: 333RI | E102: 1 | F102: B_MITNEHMERAUSF | G102: MIRI13 | P102: B | Q102: 3 | R102: K2
A103: 11 | B103: RI14 | D103: 333RI | E103: 1 | F103: B_MITNEHMERAUSF | G103: MIRI14 | P103: B | Q103: 4 | R103: 382
A104: 11 | B104: RI16 | D104: 333RI | E104: 1 | F104: B_MITNEHMERAUSF | G104: MIRI16 | P104: B | Q104: 6 | R104: 419/1
A105: 11 | B105: RI18 | D105: 333RI | E105: 1 | F105: B_MITNEHMERAUSF | G105: MIRI18 | P105: B | Q105: 7 | R105: 777
A106: 12 | B106: 45-80 | E106: 0 | F106: B_TUERSTAERKE | G106: TE45-80 | Q106: 8 | R106: Ohne G Fuktion Halbzyl
A107: 12 | B107: 81-150 | F107: B_TUERSTAERKE | G107: TE81-150 | Q107: 9 | R107: Mit G Funktion Halbzyl
A108: 13 | B108: B | C108: Bohrschutz | D108: Ohne G Fuktion Doppelzyl | E108: 1 | F108: B_SCHUTZ | G108: SCB | P108: B
A109: 13 | B109: Biffar | C109: Biffar Nase | E109: 1 | F109: B_MITNEHMERAUSF | G109: MIBIF | H109: B_FUNKTIONEN | I109: FUT | P109: B | Q109: 10 | R109: 3020
A110: 13 | B110: CH | C110: Schweizer Mitnehmer | E110: 1 | F110: B_MITNEHMERAUSF | G110: MICH | P110: B | Q110: 11 | R110: 333RI
A111: 13 | B111: CHK2 | C111: Schweizer Mitnehmer | E111: 1 | F111: B_MITNEHMERAUSF | G111: MICH | H111: B_KNAUFAUSF | I111: KNK2 | P111: B | Q111: 12 | R111: Blindzyl
A112: 13 | B112: CHK6 | C112: Schweizer Mitnehmer | E112: 1 | F112: B_MITNEHMERAUSF | G112: MICH | H112: B_KNAUFAUSF | I112: KNK6 | P112: B | Q112: 13 | R112: Ohne T und G
A113: 13 | B113: K1 | C113: Knauf | E113: 1 | F113: B_KNAUFAUSF | G113: KNK1 | P113: B
A114: 13 | B114: K2 | C114: Knauf | E114: 1 | F114: B_KNAUFAUSF | G114: KNK2 | P114: B
A115: 13 | B115: K3 | C115: Knauf | E115: 1 | F115: B_KNAUFAUSF | G115: KNK3 | P115: B
A116: 13 | B116: K4 | C116: Knauf | E116: 1 | F116: B_KNAUFAUSF | G116: KNK4 | P116: B
A117: 13 | B117: K6 | C117: Knauf | E117: -2.2 | F117: B_KNAUFAUSF | G117: KNK6 | P117: B
A118: 13 | B118: KUBEIGE | C118: Knauf | E118: 1 | F118: B_KNAUFAUSF | G118: KNKUBEIGE | P118: B | Q118: 6 | R118: 419/1
A119: 13 | B119: KUDUNKELBLAU | C119: Knauf | E119: 1 | F119: B_KNAUFAUSF | G119: KNKUDUNKELBLAU | P119: B
A120: 13 | B120: KUDUNKELBRAUN | C120: Knauf | E120: 1 | F120: B_KNAUFAUSF | G120: KNKUDUNKELBRAUN | P120: B | Q120: 2 | R120: Mit G Funktion Doppelzyl
A121: 13 | B121: KUDUNKELGRUEN | C121: Knauf | E121: 1 | F121: B_KNAUFAUSF | G121: KNKUDUNKELGRUEN | P121: B
A122: 13 | B122: KUDUNKELROT | C122: Knauf | E122: 1 | F122: B_KNAUFAUSF | G122: KNKUDUNKELROT | P122: B
A123: 13 | B123: KUGELB | C123: Knauf | E123: 1 | F123: B_KNAUFAUSF | G123: KNKUGELB | P123: B
A124: 13 | B124: KUGRAU | C124: Knauf | E124: 1 | F124: B_KNAUFAUSF | G124: KNKUGRAU | P124: B
A125: 13 | B125: KUGRUEN | C125: Knauf | E125: 1 | F125: B_KNAUFAUSF | G125: KNKUGRUEN | P125: B
A126: 13 | B126: KUROT | C126: Knauf | E126: 1 | F126: B_KNAUFAUSF | G126: KNKUROT | P126: B
A127: 13 | B127: KUSCHWARZ | C127: Knauf | E127: 1 | F127: B_KNAUFAUSF | G127: KNKUSCHWARZ | P127: B
A128: 13 | B128: KUWEISS | C128: Knauf | E128: 1 | F128: B_KNAUFAUSF | G128: KNKUWEISS | P128: B
A129: 13 | B129: SEW | C129: Seewasser | D129: Ohne G Fuktion Doppelzyl | E129: 1 | F129: B_SEEWASSERAUSF | G129: SEW | H129: B_STULPSCHRAUBENAUSF | I129: SA80 SEEW | J129: B_FAERBUNG_AUSSEN | K129: FA004 | L129: B_FAERBUNG_INNEN | M129: FI004 | P129: B
A130: 13 | D130: Ohne G Fuktion Doppelzyl | E130: 0 | P130: B
A131: 14 | B131: BLN | C131: Einseitig Blind einseitig normal | D131: VAR | E131: 0 | F131: B_VARIOAUSF_AUSSEN | G131: VAN | H131: B_VARIOAUSF_INNEN | I131: VIBL
A132: 14 | B132: BLS | C132: Eins. Blind, Eins SS | D132: VAR | E132: 0 | F132: B_VARIOAUSF_AUSSEN | G132: VAS | H132: B_VARIOAUSF_INNEN | I132: VIBL
A133: 14 | B133: SN | C133: Eins SS Eins Normal | D133: VAR | E133: 0 | F133: B_VARIOAUSF_AUSSEN | G133: VAS | H133: B_VARIOAUSF_INNEN | I133: VIN
A134: 14 | B134: SS | C134: SS | D134: VAR | E134: 0 | F134: B_VARIOAUSF_AUSSEN | G134: VAS | H134: B_VARIOAUSF_INNEN | I134: VIS
A135: 14 | D135: VAR | E135: 0
A136: 16 | B136: RPR35 | E136: 1 | F136: B_AUSFUEHRUNG_ROHR_PLATTE | G136: RPR35 | P136: B
A137: 16 | B137: RPR38 | E137: 1 | F137: B_AUSFUEHRUNG_ROHR_PLATTE | G137: RPR38 | P137: B
A138: 16 | B138: RPR43 | E138: 1 | F138: B_AUSFUEHRUNG_ROHR_PLATTE | G138: RPR43 | P138: B
A139: 16 | B139: RPR48 | E139: 1 | F139: B_AUSFUEHRUNG_ROHR_PLATTE | G139: RPR48 | P139: B
A140: 16 | B140: RPR53 | E140: 1 | F140: B_AUSFUEHRUNG_ROHR_PLATTE | G140: RPR53 | P140: B
A141: 16 | B141: RPR58 | E141: 1 | F141: B_AUSFUEHRUNG_ROHR_PLATTE | G141: RPR58 | P141: B
A142: 16 | B142: RPR63 | E142: 1 | F142: B_AUSFUEHRUNG_ROHR_PLATTE | G142: RPR63 | P142: B
A143: 16 | B143: RPR68 | E143: 1 | F143: B_AUSFUEHRUNG_ROHR_PLATTE | G143: RPR68 | P143: B
A144: 16 | B144: RPR73 | E144: 1 | F144: B_AUSFUEHRUNG_ROHR_PLATTE | G144: RPR73 | P144: B
A145: 16 | B145: RPR78 | E145: 1 | F145: B_AUSFUEHRUNG_ROHR_PLATTE | G145: RPR78 | P145: B
A146: 16 | B146: RPR83 | E146: 1 | F146: B_AUSFUEHRUNG_ROHR_PLATTE | G146: RPR83 | P146: B
A147: 17 | B147: A | E147: 0 | F147: B_MITNEHMERAUSF_419 | G147: CMA
A148: 17 | B148: A TOYOKO | E148: 0 | F148: B_MITNEHMERAUSF_419 | G148: CMA TOYOKO
A149: 17 | B149: B | E149: 0 | F149: B_MITNEHMERAUSF_419 | G149: CMB
A150: 17 | B150: C | E150: 0 | F150: B_MITNEHMERAUSF_419 | G150: CMC | Q150: 4 | R150: 382
A151: 17 | B151: D | E151: 0 | F151: B_MITNEHMERAUSF_419 | G151: CMD
A152: 17 | B152: E | E152: 0 | F152: B_MITNEHMERAUSF_419 | G152: CME
A153: 17 | B153: F | E153: 0 | F153: B_MITNEHMERAUSF_419 | G153: CMF
A154: 17 | B154: G | E154: 0 | F154: B_MITNEHMERAUSF_419 | G154: CMG | Q154: 3 | R154: K2
A155: 17 | B155: H | E155: 0 | F155: B_MITNEHMERAUSF_419 | G155: CMH | Q155: 4 | R155: 382
A156: 17 | B156: X | E156: 0 | F156: B_MITNEHMERAUSF_419 | G156: CMX
A157: 17 | B157: Y | E157: 0 | F157: B_MITNEHMERAUSF_419 | G157: CMY
A158: 17 | B158: Z | E158: 0 | F158: B_MITNEHMERAUSF_419 | G158: CMZ
A159: 18 | B159: L | C159: durchrutschend links | E159: 0 | F159: B_DURCHRUTSCHEND_LI_RE | G159: DURE | P159: B | Q159: 3 | R159: K2
A160: 18 | B160: R | C160: durchrutschend rechts | E160: 0 | F160: B_DURCHRUTSCHEND_LI_RE | G160: DULI | P160: B
A161: 18 | E161: 0
A162: 19 | B162: CH | C162: Schweizer Mitnehmer | E162: 1 | F162: B_MITNEHMERAUSF | G162: MICH | P162: B
A163: 19 | B163: CHK2 | C163: Schweizer Mitnehmer | E163: 1 | F163: B_MITNEHMERAUSF | G163: MICH | H163: B_KNAUFAUSF | I163: KNK2
A164: 19 | B164: CHK3 | C164: Schweizer Mitnehmer | E164: 1 | F164: B_MITNEHMERAUSF | G164: MICH | H164: B_KNAUFAUSF | I164: KNK3
A165: 19 | B165: CHK3 | C165: Schweizer Mitnehmer | E165: 1 | F165: B_MITNEHMERAUSF | G165: MICH | H165: B_KNAUFAUSF | I165: KNK4 | P165: B
A166: 19 | B166: CHK6 | C166: Schweizer Mitnehmer | E166: 1 | F166: B_MITNEHMERAUSF | G166: MICH | H166: B_KNAUFAUSF | I166: KNK6 | P166: B
A167: 19 | B167: G | C167: Gefahrenfunktion mit sep. Gefahrenschlüssel | D167: Mit G Funktion Doppelzyl | E167: 1 | F167: B_FUNKTIONEN | G167: FUG | P167: B
A168: 19 | B168: K1 | C168: Knauf | E168: 1 | F168: B_KNAUFAUSF | G168: KNK1 | P168: B
A169: 19 | B169: K2 | C169: Knauf | E169: 1 | F169: B_KNAUFAUSF | G169: KNK2 | P169: B
A170: 19 | B170: K3 | C170: Knauf | E170: 1 | F170: B_KNAUFAUSF | G170: KNK3 | P170: B
A171: 19 | B171: K4 | C171: Knauf | E171: 1 | F171: B_KNAUFAUSF | G171: KNK4 | P171: B
A172: 19 | B172: K6 | C172: Knauf | E172: -2.2 | F172: B_KNAUFAUSF | G172: KNK6 | P172: B
A173: 19 | B173: K6CH | C173: Knauf | E173: -2.2 | F173: B_KNAUFAUSF | G173: KNK6CH
A174: 19 | B174: K6CHCH | C174: Knauf Mitnehmer | E174: 1 | F174: B_KNAUFAUSF | G174: KNK6CH | H174: B_MITNEHMERAUSF | I174: MICH
A175: 19 | B175: KUBEIGE | C175: Knauf | E175: 1 | F175: B_KNAUFAUSF | G175: KNKUBEIGE | P175: B
A176: 19 | B176: KUDUNKELBLAU | C176: Knauf | E176: 1 | F176: B_KNAUFAUSF | G176: KNKUDUNKELBLAU | P176: B
A177: 19 | B177: KUDUNKELBRAUN | C177: Knauf | E177: 1 | F177: B_KNAUFAUSF | G177: KNKUDUNKELBRAUN | P177: B
A178: 19 | B178: KUDUNKELGRUEN | C178: Knauf | E178: 1 | F178: B_KNAUFAUSF | G178: KNKUDUNKELGRUEN | P178: B
A179: 19 | B179: KUDUNKELROT | C179: Knauf | E179: 1 | F179: B_KNAUFAUSF | G179: KNKUDUNKELROT | P179: B
A180: 19 | B180: KUGELB | C180: Knauf | E180: 1 | F180: B_KNAUFAUSF | G180: KNKUGELB | P180: B
A181: 19 | B181: KUGRAU | C181: Knauf | E181: 1 | F181: B_KNAUFAUSF | G181: KNKUGRAU | P181: B
A182: 19 | B182: KUGRUEN | C182: Knauf | E182: 1 | F182: B_KNAUFAUSF | G182: KNKUGRUEN | P182: B
A183: 19 | B183: KUROT | C183: Knauf | E183: 1 | F183: B_KNAUFAUSF | G183: KNKUROT | P183: B
A184: 19 | B184: KUSCHWARZ | C184: Knauf | E184: 1 | F184: B_KNAUFAUSF | G184: KNKUSCHWARZ | P184: B
A185: 19 | B185: KUWEISS | C185: Knauf | E185: 1 | F185: B_KNAUFAUSF | G185: KNKUWEISS | P185: B
A186: 19 | B186: MI ESP | C186: Spanischer Mitnehmer | E186: 1 | F186: B_MITNEHMERAUSF | G186: MIESP
A187: 19 | B187: SEW | C187: Seewasser | D187: Mit G Funktion Doppelzyl | E187: 1 | F187: B_SEEWASSERAUSF | G187: SEW | H187: B_STULPSCHRAUBENAUSF | I187: SA80 SEEW | J187: B_FAERBUNG_AUSSEN | K187: FA004 | L187: B_FAERBUNG_INNEN | M187: FI004 | P187: B
A188: 19 | B188: T | C188: Beidseitig | D188: Mit G Funktion Doppelzyl | E188: 1 | F188: B_FUNKTIONEN | G188: FUT | P188: B
A189: 19 | B189: TB | C189: T und Bohrschutz | E189: 1 | F189: B_SCHUTZ | G189: SCB | H189: B_FUNKTIONEN | I189: FUT
A190: 19 | D190: Mit G Funktion Doppelzyl | E190: 0 | P190: B
A191: 20 | B191: destra | D191: 382 | E191: 0 | F191: B_AUSFUEHRUNG_LI_RE | G191: AGLI | H191: B_TEILENR_HEBEL_10_8_BAU | I191: 200013F013 | P191: B
A192: 20 | B192: sinistra | D192: 382 | E192: 0 | F192: B_AUSFUEHRUNG_LI_RE | G192: AGRE | H192: B_TEILENR_HEBEL_10_8_BAU | I192: 200013F013 | P192: B
A193: 21 | B193: MFA | C193: SCHALTERSTELLUNG MFA 4X90° | F193: B_SCHALTERSTELLUNG | G193: MFA
A194: 21 | B194: MFB | C194: SCHALTERSTELLUNG MFB 6X60° | F194: B_SCHALTERSTELLUNG | G194: MFB
A195: 21 | B195: MFC | C195: SCHALTERSTELLUNG MFC 8X45° | F195: B_SCHALTERSTELLUNG | G195: MFC
A196: 21 | B196: MFD | C196: SCHALTERSTELLUNG MFD 12X30° | F196: B_SCHALTERSTELLUNG | G196: MFD
A197: 21 | B197: MFO | C197: SCHALTERSTELLUNG MFO 1X360° | F197: B_SCHALTERSTELLUNG | G197: MFO
A198: 22 | B198: MFA | C198: SCHALTERSTELLUNG MFA 4X90° | F198: B_SCHALTERSTELLUNG | G198: MFA
A199: 22 | B199: MFB | C199: SCHALTERSTELLUNG MFB 6X60° | F199: B_SCHALTERSTELLUNG | G199: MFB
A200: 22 | B200: MFC | C200: SCHALTERSTELLUNG MFC 8X45° | F200: B_SCHALTERSTELLUNG | G200: MFC
... 105 more rows

Sheet Tipo (hidden)
A1: Tipo | B1: Descrizione | C1: Titan Names
A2: DOM
A3: 333HM | B3: MEZZO CILINDRO MODULARE
A4: 333H | B4: MEZZO CILINDRO
A5: 333K6M | B5: CILINDRO MODULARE CON POMOLO LATO B
A6: 333K6 | B6: CILINDRO CON POMOLO LATO B
A7: 333KPM | B7: CILINDRO MODULARE CON PROLUNGA POMOLO LATO B
A8: 333KP | B8: CILINDRO CON PROLUNGA POMOLO LATO B
A9: 333M | B9: DOPPIO CILINDRO MODULARE
A10: 333 | B10: DOPPIO CILINDRO
A11: 333TM | B11: DOPPIO CILINDRO MODULARE FRIZIONATO
A12: 333T | B12: DOPPIO CILINDRO FRIZIONATO
A13: 382 | B13: Cam Lock M26
A14: 393/1 2SFE01 | B14: CILINDRO INTERRUTTORE 90° CON MOLLA
A15: 393/2 2SRL01 | B15: CILINDRO INTERRUTTORE 90°DX / 90°SIN
A16: 393/3 2S1X01 | B16: CILINDRO INTERRUTTORE 90° SENZA MOLLA
A17: 393/4 2S2X01 | B17: CILINDRO INTERRUTTORE 360°
A18: 474/1 | B18: CILINDRO SPECIALE PER BARRA A/P CON POMOLO FISSO ESTERNO
A19: 474/2 | B19: CILINDRO SPECIALE PER BARRA A/P CON MANIGLIA ESTERNA
A20: 475/1 | B20: COPPIA PER SERRATURA ELETTRICA NUOVA INTERNO SAGOMATO / ESTERNO TONDO
A21: 475/1A | B21: CILINDRO ESTERNO TONDO PER SERRATURA ELETTRICA/MECCANICA
A22: 475/2 | B22: COPPIA PER SERRATURA ELETTRICA INTERNO TRIANGOLARE / ESTERNO TONDO
A23: 475/3 | B23: COPPIA PER SERRATURA MECCANICA INTERNO TRIANGOLARE / ESTERNO TONDO
A24: 555P | B24: CILINDRO STACCATO
A25: 555R | B25: CILINDRO FISSO
A28: T250-TITAN | C28: Titan Names
A29: 333H | B29: MEZZO CILINDRO (BC) | C29: T250-aabb-5CH+1C/BC
A30: 333HM | B30: MEZZO CILINDRO MODULARE (BC) | C30: T250-Maabb-5CH+1C/BC
A31: 333K6 | B31: CILINDRO CON POMOLO (BC) | C31: T250-Paabb-5CH+1C/BC
A32: 333MK6 | B32: CILINDRO MODULARE CON POMOLO (BC) | C32: T250-PMaabb-5CH+1C/BC
A33: 333MPR | B33: DOPPIO CILINDRO MODULARE CON PROLUNGA (BC) | C33: T250-PRMaabb-5CH+1C/BC
A34: 333MT | B34: DOPPIO CILINDRO MODULARE FRIZIONATO (BC) | C34: T250-NGMaabb-5CH+1C/BC
A35: 333PR | B35: DOPPIO CILINDRO CON PROLUNGA POMOLO (BC) | C35: T250-PRaabb-5CH+1C/BC
A36: 333T | B36: DOPPIO CILINDRO FRIZIONATO (BC) | C36: T250-NGaabb-5CH+1C/BC
A37: 474/1 | B37: CILINDRO SAGOMATO PER BARRA A/P CON POMOLO FISSO ESTERNO | C37: T250-11152
A38: 474/2 | B38: CILINDRO SAGOMATO PER BARRA A/P CON MANIGLIA ESTERNA | C38: T250-11151
A39: 475/1 | B39: CILINDRO PER SERRATURA ELETTRICA NUOVA INTERNO SAGOMATO | C39: T250-11155
A40: 475/1A | B40: CILINDRO ESTERNO TONDO PER SERRATURA ELETTRICA/MECCANICA | C40: T250-11150
A41: 475/2 | B41: CILINDRO PER SERRATURA ELETTRICA INTERNO TRIANGOLARE | C41: T250-11157-13
A42: 475/3 | B42: CILINDRO PER SERRATURA MECCANICA INTERNO TRIANGOLARE | C42: T250-11157
A44: K6LT-Titan
A45: 333 | B45: DOPPIO CILINDRO | C45: K6TL-aabb-3CH
A46: 333BC | B46: CILINDRO A ROTTURA CONTROLLATA (BREAKING CONTROLLED) | C46: K6TL-aabb-3CH/BC
A47: 333H | B47: MEZZO CILINDRO | C47: K6TL-aabb-3CH
A48: 333HBC | B48: MEZZO CILINDRO A ROTTURA CONTROLLATA (BREAKING CONTROLLED) | C48: K6TL-aabb-3CH/BC
A49: 333HM | B49: MEZZO MODULARE CILINDRO | C49: K6TL-Maabb-3CH
A50: 333HMBC | B50: MEZZO MODULARE CILINDRO (BREAKING CONTROLLED) | C50: K6TL-Maabb-3CH/BC
A51: 333K6 | B51: DOPPIO CILINDRO CON POMOLO FISSO | C51: K6TL-aabb-3CH/BC
A52: 333M | B52: DOPPIO CILINDRO MODULARE | C52: K6TL-Paabb-3CH/BC
A53: 333MBC | B53: CILINDRO MODULARE A ROTTURA CONTROLLATA (BREAKING CONTROLLED) | C53: K6TL-Maabb-3CH
A54: 333MBC | B54: MEZZO MODULARE CILINDRO A ROTTURA CONTROLLATA (BREAKING CONTROLLED) | C54: K6TL-Maabb-3CH/BC
A55: 333MK6 | B55: DOPPIO CILINDRO MODULARE CON POMOLO FISSO A ROTTURA CONTROLLATA (BREAKING CONTROLLED) | C55: K6TL-PMaabb-3CH
A56: 333MK6BC | B56: DOPPIO CILINDRO MODULARE CON POMOLO FISSO A ROTTURA CONTROLLATA (BREAKING CONTROLLED) | C56: K6TL-PMaabb-3CH/BC
A57: 333MPRBC | B57: CILINDRO MODULARE CON PROLUNGA POMOLO (PR) A ROTTURA CONTROLLATA (BREAKING CONTROLLED) | C57: K6TL-PRMaabb-3CH
A58: 333MT | B58: CILINDRO MODULARE FRIZIONATO | C58: K6TL-PRMaabb-3CH/BC
A59: 333MTBC | B59: CILINDRO MODURARE FRIZIONATO A ROTTURA CONTROLLATA (BREAKING CONTROLLED) | C59: K6TL-NGMaabb-3CH
A60: 333PBC | B60: DOPPIO CILINDRO CON POMOLO FISSO A ROTTURA CONTROLLATA (BREAKING CONTROLLED) | C60: K6TL-NGMaabb-3CH/BC
A61: 333PR | B61: CILINDRO CON PROLUNGA POMOLO (PR) | C61: K6TL-PRaabb-3CH
A62: 333PRBC | B62: CILINDRO CON PROLUNGA POMOLO (PR) A ROTTURA CONTROLLATA (BREAKING CONTROLLED) | C62: K6TL-PRaabb-3CH/BC
A63: 333T | B63: CILINDRO FRIZIONATO | C63: K6TL-NGaabb-3CH
A64: 333TBC | B64: CILINDRO FRIZIONATO A ROTTURA CONTROLLATA (BREAKING CONTROLLED) | C64: K6TL-NGaabb-3CH/BC
A65: 474/1 | B65: CILINDRO SAGOMATO PER BARRA A/P CON POMOLO FISSO ESTERNO | C65: K6TL-11152
A66: 474/2 | B66: CILINDRO SAGOMATO PER BARRA A/P CON MANIGLIA ESTERNA | C66: K6TL-11151
A67: 475/1 | B67: CILINDRO PER SERRATURA ELETTRICA NUOVA INTERNO SAGOMATO | C67: K6TL-11155
A68: 475/1A | B68: CILINDRO ESTERNO TONDO PER SERRATURA ELETTRICA/MECCANICA | C68: K6TL-11150
A69: 475/2 | B69: CILINDRO PER SERRATURA ELETTRICA INTERNO TRIANGOLARE | C69: K6TL-11157-13
A70: 475/3 | B70: CILINDRO PER SERRATURA MECCANICA INTERNO TRIANGOLARE | C70: K6TL-11157

Sheet Farbe (hidden)
A1: ID | B1: Nummer | C1: Name | D1: Aufpreis Halbzylinder | E1: MName1 | F1: MWert1 | G1: MNAME2 | H1: MWERT2 | I1: netto | L1: Tabelle | M1: Name
A2: 0 | C2: ohne | D2: 0 | I2: B
A3: 1 | D3: 0 | I3: B
A4: 1 | B4: 01 | C4: matt vernickelt | D4: 0 | E4: B_FAERBUNG_AUSSEN | F4: FA001 | G4: B_FAERBUNG_INNEN | H4: FI001 | I4: B | L4: 1 | M4: messing
A5: 1 | B5: 04 | C5: Glanzverchromt | D5: 12 | E5: B_FAERBUNG_AUSSEN | F5: FA004 | G5: B_FAERBUNG_INNEN | H5: FI004 | I5: B | L5: 2 | M5: Stahl
A6: 1 | B6: 05 | C6: messing matt gebürstet | D6: 12 | E6: B_FAERBUNG_AUSSEN | F6: FA005 | G6: B_FAERBUNG_INNEN | H6: FI005 | I6: B | L6: 3 | M6: Duracast
A7: 1 | B7: 06 | C7: messing poliert | D7: 12 | E7: B_FAERBUNG_AUSSEN | F7: FA006 | G7: B_FAERBUNG_INNEN | H7: FI006 | I7: B | L7: 4 | M7: messing halbzylinder
A8: 1 | B8: 07 | C8: messing brüniert | D8: 12 | E8: B_FAERBUNG_AUSSEN | F8: FA007 | G8: B_FAERBUNG_INNEN | H8: FI007 | I8: B | L8: 5 | M8: Stahl halbzylinder
A9: 1 | B9: 09 | C9: altdeutsch | D9: 12 | E9: B_FAERBUNG_AUSSEN | F9: FA009 | G9: B_FAERBUNG_INNEN | H9: FI009 | I9: B | L9: 6 | M9: Duracast halbzylinder
A10: 1 | B10: 17 | C10: velour schwarz | D10: 12 | E10: B_FAERBUNG_AUSSEN | F10: FA017 | G10: B_FAERBUNG_INNEN | H10: FI017 | I10: B
A11: 1 | B11: 25 | C11: vergoldet | D11: 12 | E11: B_FAERBUNG_AUSSEN | F11: FA025 | G11: B_FAERBUNG_INNEN | H11: FI025 | I11: B
A12: 1 | B12: 27 | D12: 12 | E12: B_FAERBUNG_AUSSEN | F12: FA027 | G12: B_FAERBUNG_INNEN | H12: FI027 | I12: B
A13: 2 | D13: 0 | I13: B
A14: 2 | B14: 00 | C14: edelsahl matt | D14: 0 | E14: B_FAERBUNG_AUSSEN | G14: B_FAERBUNG_INNEN | I14: B
A15: 2 | B15: 01 | C15: matt vernickelt | D15: 9 | E15: B_FAERBUNG_AUSSEN | F15: FA001 | G15: B_FAERBUNG_INNEN | H15: FI001 | I15: B
A16: 2 | B16: 04 | C16: Glanzverchromt | D16: 9 | E16: B_FAERBUNG_AUSSEN | F16: FA004 | G16: B_FAERBUNG_INNEN | H16: FI004 | I16: B
A17: 2 | B17: 50 | C17: messing matt gebürstet | D17: 9 | E17: B_FAERBUNG_AUSSEN | F17: FA050 | G17: B_FAERBUNG_INNEN | H17: FI050 | I17: B
A18: 2 | B18: 51 | C18: messing poliert | D18: 9 | E18: B_FAERBUNG_AUSSEN | F18: FA051 | G18: B_FAERBUNG_INNEN | H18: FI051 | I18: B
A19: 3 | D19: 0 | I19: B
A20: 3 | B20: 01 | C20: matt vernickelt | D20: 0 | E20: B_FAERBUNG_AUSSEN | F20: FA001 | G20: B_FAERBUNG_INNEN | H20: FI001 | I20: B
A21: 3 | B21: 04 | C21: Glanzverchromt | D21: 12 | E21: B_FAERBUNG_AUSSEN | F21: FA004 | G21: B_FAERBUNG_INNEN | H21: FI004 | I21: B
A22: 3 | B22: 50 | C22: messing matt gebürstet | D22: 12 | E22: B_FAERBUNG_AUSSEN | F22: FA050 | G22: B_FAERBUNG_INNEN | H22: FI050 | I22: B
A23: 3 | B23: 51 | C23: messing poliert | D23: 12 | E23: B_FAERBUNG_AUSSEN | F23: FA051 | G23: B_FAERBUNG_INNEN | H23: FI051 | I23: B
A24: 4 | D24: 0 | I24: B
A25: 4 | B25: 01 | C25: matt vernickelt | D25: 0 | E25: B_FAERBUNG_AUSSEN | F25: FA001 | I25: B
A26: 4 | B26: 04 | C26: Glanzverchromt | D26: 9 | E26: B_FAERBUNG_AUSSEN | F26: FA004 | I26: B
A27: 4 | B27: 05 | C27: messing matt gebürstet | D27: 9 | E27: B_FAERBUNG_AUSSEN | F27: FA005 | I27: B
A28: 4 | B28: 06 | C28: messing poliert | D28: 9 | E28: B_FAERBUNG_AUSSEN | F28: FA006 | I28: B
A29: 4 | B29: 07 | C29: messing brüniert | D29: 9 | E29: B_FAERBUNG_AUSSEN | F29: FA007 | I29: B
A30: 4 | B30: 09 | C30: altdeutsch | D30: 9 | E30: B_FAERBUNG_AUSSEN | F30: FA009 | I30: B
A31: 4 | B31: 17 | C31: velour schwarz | D31: 12 | E31: B_FAERBUNG_AUSSEN | F31: FA017 | I31: B
A32: 4 | B32: 25 | C32: vergoldet | D32: 9 | E32: B_FAERBUNG_AUSSEN | F32: FA025 | I32: B
A33: 4 | B33: 27 | D33: 12 | E33: B_FAERBUNG_AUSSEN | F33: FA027 | G33: B_FAERBUNG_INNEN | H33: FI027 | I33: B
A34: 5 | D34: 0 | I34: B
A35: 5 | B35: 00 | C35: edelsahl matt | D35: 0 | E35: B_FAERBUNG_AUSSEN | I35: B
A36: 5 | B36: 01 | C36: matt vernickelt | D36: 7.9 | E36: B_FAERBUNG_AUSSEN | F36: FA001 | I36: B
A37: 5 | B37: 04 | C37: Glanzverchromt | D37: 7.9 | E37: B_FAERBUNG_AUSSEN | F37: FA004 | I37: B
A38: 5 | B38: 50 | C38: messing matt gebürstet | D38: 7.9 | E38: B_FAERBUNG_AUSSEN | F38: FA050 | I38: B
A39: 5 | B39: 51 | C39: messing poliert | D39: 7.9 | E39: B_FAERBUNG_AUSSEN | F39: FA051 | I39: B
A40: 6 | D40: 0 | I40: B
A41: 6 | B41: 01 | C41: matt vernickelt | D41: 0 | E41: B_FAERBUNG_AUSSEN | F41: FA001 | I41: B
A42: 6 | B42: 04 | C42: Glanzverchromt | D42: 9 | E42: B_FAERBUNG_AUSSEN | F42: FA004 | I42: B
A43: 6 | B43: 50. | C43: messing matt gebürstet | D43: 9 | E43: B_FAERBUNG_AUSSEN | F43: FA050 | I43: B
A44: 6 | B44: 51 | C44: messing poliert | D44: 9 | E44: B_FAERBUNG_AUSSEN | F44: FA051 | I44: B
A45: 7 | B45: LA | C45: LATON
A46: 7 | B46: NI | C46: NIQUEL

Sheet Längen (hidden)
A1: ID | B1: A | C1: B | D1: Gesamt | E1: Text | F1: VLA | G1: VLB | H1: Aufpreis | I1: Netto
A2: 0 | B2: * | C2: * | D2: * | F2: * | G2: * | H2: 0 | I2: B | J2: 0 | K2: ohne Längen | M2: Aufpreis | N2: €
A3: 1 | B3: 30 | C3: 30 | D3: =B3+C3 -> 60 | E3: =CONCATENATE(B3," / ",C3) -> 30 / 30 | F3: =ROUNDDOWN((B3-25) /10,0) -> 0 | G3: =ROUNDDOWN((C3-25) /10,0) -> 0 | H3: =(G3+F3)*N$3 -> 0 | I3: B | J3: 1 | K3: Messing Duracast | M3: Messing <=100 | N3: 1
A4: 1 | B4: 30 | C4: 35 | D4: 65 | E4: 30 / 35 | F4: =ROUNDDOWN((B4-25) /10,0) -> 0 | G4: =ROUNDDOWN((C4-25) /10,0) -> 1 | H4: 1 | I4: B | J4: 2 | K4: Stahl | M4: Messing > 100 | N4: 1
A5: 1 | B5: 30 | C5: 40 | D5: 70 | E5: 30 / 40 | F5: 0 | G5: 1 | H5: 1 | I5: B | J5: 3 | K5: Modular | M5: Stahl <=100 | N5: 1
A6: 1 | B6: 30 | C6: 45 | D6: 75 | E6: 30 / 45 | F6: 0 | G6: 2 | H6: 2 | I6: B | J6: 4 | K6: Halb | M6: Stahl >100 | N6: 1
A7: 1 | B7: 30 | C7: 50 | D7: 80 | E7: 30 / 50 | F7: 0 | G7: 2 | H7: 2 | I7: B | J7: 5_67 | K7: Kurz/Lang | M7: Halb Knauf | N7: 1
A8: 1 | B8: 30 | C8: 55 | D8: 85 | E8: 30 / 55 | F8: 0 | G8: 3 | H8: 3 | I8: B | J8: 6 | K8: Kurz/Kurz
A9: 1 | B9: 30 | C9: 60 | D9: 90 | E9: 30 / 60 | F9: 0 | G9: 3 | H9: 3 | I9: B | J9: 7 | K9: 444
A10: 1 | B10: 30 | C10: 65 | D10: 95 | E10: 30 / 65 | F10: 0 | G10: 4 | H10: 4 | I10: B | J10: 8 | K10: 633
A11: 1 | B11: 30 | C11: 70 | D11: 100 | E11: 30 / 70 | F11: 0 | G11: 4 | H11: 4 | I11: B | J11: 9 | K11: 666H
A12: 1 | B12: 30 | C12: 75 | D12: 105 | E12: 30 / 75 | F12: 0 | G12: 5 | H12: 5 | I12: B | J12: 10 | K12: Halb Stahl
A13: 1 | B13: 30 | C13: 80 | D13: 110 | E13: 30 / 80 | F13: 0 | G13: 5 | H13: =(G13+F13)*N$4 -> 5 | I13: B
A14: 1 | B14: 30 | C14: 85 | D14: 115 | E14: 30 / 85 | F14: 0 | G14: 6 | H14: =(G14+F14)*N$4 -> 6 | I14: B | J14: 12 | K14: S6 35 / 35
A15: 1 | B15: 35 | C15: 30 | D15: 65 | E15: 35 / 30 | F15: 1 | G15: 0 | H15: =(G15+F15)*N$3 -> 1 | I15: B | J15: 13 | K15: S6 MX
A16: 1 | B16: 35 | C16: 35 | D16: 70 | E16: 35 / 35 | F16: 1 | G16: 1 | H16: 2 | I16: B | J16: 14 | K16: S6H 35
A17: 1 | B17: 35 | C17: 40 | D17: 75 | E17: 35 / 40 | F17: 1 | G17: 1 | H17: 2 | I17: B | J17: 15 | K17: S6H MX
A18: 1 | B18: 35 | C18: 45 | D18: 80 | E18: 35 / 45 | F18: 1 | G18: 2 | H18: 3 | I18: B | J18: 16 | K18: Blind
A19: 1 | B19: 35 | C19: 50 | D19: 85 | E19: 35 / 50 | F19: 1 | G19: 2 | H19: 3 | I19: B | J19: 17 | K19: Modular Halb
A20: 1 | B20: 35 | C20: 55 | D20: 90 | E20: 35 / 55 | F20: 1 | G20: 3 | H20: 4 | I20: B | J20: 18 | K20: Halbknauf
A21: 1 | B21: 35 | C21: 60 | D21: 95 | E21: 35 / 60 | F21: 1 | G21: 3 | H21: 4 | I21: B
A22: 1 | B22: 35 | C22: 65 | D22: 100 | E22: 35 / 65 | F22: 1 | G22: 4 | H22: 5 | I22: B
A23: 1 | B23: 35 | C23: 70 | D23: 105 | E23: 35 / 70 | F23: 1 | G23: 4 | H23: 5 | I23: B
A24: 1 | B24: 35 | C24: 80 | D24: 115 | E24: 35 / 80 | F24: 1 | G24: 5 | H24: 6 | I24: B
A25: 1 | B25: 35 | C25: 85 | D25: 120 | E25: 35 / 85 | F25: 1 | G25: 6 | H25: 7 | I25: B
A26: 1 | B26: 40 | C26: 30 | D26: 70 | E26: 40 / 30 | F26: 1 | G26: 0 | H26: 1 | I26: B | J26: 21 | K26: IT | L26: 333
A27: 1 | B27: 40 | C27: 35 | D27: 75 | E27: 40 / 35 | F27: 1 | G27: 1 | H27: 2 | I27: B | J27: 22 | K27: IT | L27: 333h
A28: 1 | B28: 40 | C28: 40 | D28: 80 | E28: 40 / 40 | F28: 1 | G28: 1 | H28: 2 | I28: B | J28: 23 | K28: IT | L28: 333m
A29: 1 | B29: 40 | C29: 45 | D29: 85 | E29: 40 / 45 | F29: 1 | G29: 2 | H29: 3 | I29: B | J29: 24 | K29: IT | L29: 333hm
A30: 1 | B30: 40 | C30: 50 | D30: 90 | E30: 40 / 50 | F30: 1 | G30: 2 | H30: 3 | I30: B | J30: 25 | K30: IT | L30: 333kp
A31: 1 | B31: 40 | C31: 55 | D31: 95 | E31: 40 / 55 | F31: 1 | G31: 3 | H31: 4 | I31: B
A32: 1 | B32: 40 | C32: 60 | D32: 100 | E32: 40 / 60 | F32: 1 | G32: 3 | H32: 4 | I32: B
A33: 1 | B33: 40 | C33: 65 | D33: 105 | E33: 40 / 65 | F33: 1 | G33: 4 | H33: =(G33+F33)*N$4 -> 5 | I33: B
A34: 1 | B34: 40 | C34: 70 | D34: 110 | E34: 40 / 70 | F34: 1 | G34: 4 | H34: =(G34+F34)*N$4 -> 5 | I34: B
A35: 1 | B35: 40 | C35: 80 | D35: 120 | E35: 40 / 80 | F35: 1 | G35: 5 | H35: =(G35+F35)*N$4 -> 6 | I35: B
A36: 1 | B36: 45 | C36: 30 | D36: 75 | E36: 45 / 30 | F36: 2 | G36: 0 | H36: =(G36+F36)*N$3 -> 2 | I36: B
A37: 1 | B37: 45 | C37: 35 | D37: 80 | E37: 45 / 35 | F37: 2 | G37: 1 | H37: 3 | I37: B
A38: 1 | B38: 45 | C38: 40 | D38: 85 | E38: 45 / 40 | F38: 2 | G38: 1 | H38: 3 | I38: B
A39: 1 | B39: 45 | C39: 45 | D39: 90 | E39: 45 / 45 | F39: 2 | G39: 2 | H39: 4 | I39: B
A40: 1 | B40: 45 | C40: 50 | D40: 95 | E40: 45 / 50 | F40: 2 | G40: 2 | H40: 4 | I40: B
A41: 1 | B41: 45 | C41: 55 | D41: 100 | E41: 45 / 55 | F41: 2 | G41: 3 | H41: 5 | I41: B
A42: 1 | B42: 45 | C42: 60 | D42: 105 | E42: 45 / 60 | F42: 2 | G42: 3 | H42: =(G42+F42)*N$4 -> 5 | I42: B
A43: 1 | B43: 45 | C43: 65 | D43: 110 | E43: 45 / 65 | F43: 2 | G43: 4 | H43: =(G43+F43)*N$4 -> 6 | I43: B
A44: 1 | B44: 45 | C44: 70 | D44: 115 | E44: 45 / 70 | F44: 2 | G44: 4 | H44: =(G44+F44)*N$4 -> 6 | I44: B
A45: 1 | B45: 50 | C45: 30 | D45: 80 | E45: 50 / 30 | F45: 2 | G45: 0 | H45: 2 | I45: B
A46: 1 | B46: 50 | C46: 35 | D46: 85 | E46: 50 / 35 | F46: 2 | G46: 1 | H46: =(G46+F46)*N$3 -> 3 | I46: B
A47: 1 | B47: 50 | C47: 40 | D47: 90 | E47: 50 / 40 | F47: 2 | G47: 1 | H47: =(G47+F47)*N$3 -> 3 | I47: B
A48: 1 | B48: 50 | C48: 45 | D48: 95 | E48: 50 / 45 | F48: 2 | G48: 2 | H48: =(G48+F48)*N$3 -> 4 | I48: B
A49: 1 | B49: 50 | C49: 50 | D49: 100 | E49: 50 / 50 | F49: 2 | G49: 2 | H49: =(G49+F49)*N$3 -> 4 | I49: B
A50: 1 | B50: 50 | C50: 55 | D50: 105 | E50: 50 / 55 | F50: 2 | G50: 3 | H50: =(G50+F50)*N$4 -> 5 | I50: B
A51: 1 | B51: 50 | C51: 60 | D51: 110 | E51: 50 / 60 | F51: 2 | G51: 3 | H51: =(G51+F51)*N$4 -> 5 | I51: B
A52: 1 | B52: 50 | C52: 65 | D52: 115 | E52: 50 / 65 | F52: 2 | G52: 4 | H52: =(G52+F52)*N$4 -> 6 | I52: B
A53: 1 | B53: 50 | C53: 70 | D53: 120 | E53: 50 / 70 | F53: 2 | G53: 4 | H53: =(G53+F53)*N$4 -> 6 | I53: B
A54: 1 | B54: 55 | C54: 30 | D54: 85 | E54: 55 / 30 | F54: 3 | G54: 0 | H54: =(G54+F54)*N$3 -> 3 | I54: B
A55: 1 | B55: 55 | C55: 35 | D55: 90 | E55: 55 / 35 | F55: 3 | G55: 1 | H55: =(G55+F55)*N$3 -> 4 | I55: B
A56: 1 | B56: 55 | C56: 40 | D56: 95 | E56: 55 / 40 | F56: 3 | G56: 1 | H56: =(G56+F56)*N$3 -> 4 | I56: B
A57: 1 | B57: 55 | C57: 45 | D57: 100 | E57: 55 / 45 | F57: 3 | G57: 2 | H57: =(G57+F57)*N$3 -> 5 | I57: B
A58: 1 | B58: 55 | C58: 50 | D58: 105 | E58: 55 / 50 | F58: 3 | G58: 2 | H58: =(G58+F58)*N$4 -> 5 | I58: B
A59: 1 | B59: 55 | C59: 55 | D59: 110 | E59: 55 / 55 | F59: 3 | G59: 3 | H59: =(G59+F59)*N$4 -> 6 | I59: B
A60: 1 | B60: 55 | C60: 60 | D60: 115 | E60: 55 / 60 | F60: 3 | G60: 3 | H60: =(G60+F60)*N$4 -> 6 | I60: B
A61: 1 | B61: 55 | C61: 65 | D61: 120 | E61: 55 / 65 | F61: 3 | G61: 4 | H61: =(G61+F61)*N$4 -> 7 | I61: B
A62: 1 | B62: 60 | C62: 30 | D62: 90 | E62: 60 / 30 | F62: 3 | G62: 0 | H62: =(G62+F62)*N$3 -> 3 | I62: B
A63: 1 | B63: 60 | C63: 35 | D63: 95 | E63: 60 / 35 | F63: 3 | G63: 1 | H63: =(G63+F63)*N$3 -> 4 | I63: B
A64: 1 | B64: 60 | C64: 40 | D64: 100 | E64: 60 / 40 | F64: 3 | G64: 1 | H64: =(G64+F64)*N$3 -> 4 | I64: B
A65: 1 | B65: 60 | C65: 45 | D65: 105 | E65: 60 / 45 | F65: 3 | G65: 2 | H65: =(G65+F65)*N$4 -> 5 | I65: B
A66: 1 | B66: 60 | C66: 50 | D66: 110 | E66: 60 / 50 | F66: 3 | G66: 2 | H66: =(G66+F66)*N$4 -> 5 | I66: B
A67: 1 | B67: 60 | C67: 55 | D67: 115 | E67: 60 / 55 | F67: 3 | G67: 3 | H67: =(G67+F67)*N$4 -> 6 | I67: B
A68: 1 | B68: 60 | C68: 60 | D68: 120 | E68: 60 / 60 | F68: 3 | G68: 3 | H68: =(G68+F68)*N$4 -> 6 | I68: B
A69: 1 | B69: 65 | C69: 30 | D69: 95 | E69: 65 / 30 | F69: 4 | G69: 0 | H69: =(G69+F69)*N$3 -> 4 | I69: B
A70: 1 | B70: 65 | C70: 35 | D70: 100 | E70: 65 / 35 | F70: 4 | G70: 1 | H70: =(G70+F70)*N$3 -> 5 | I70: B
A71: 1 | B71: 65 | C71: 40 | D71: 105 | E71: 65 / 40 | F71: 4 | G71: 1 | H71: =(G71+F71)*N$4 -> 5 | I71: B
A72: 1 | B72: 65 | C72: 45 | D72: 110 | E72: =CONCATENATE(B72," / ",C72) -> 65 / 45 | F72: 4 | G72: 2 | H72: =(G72+F72)*N$4 -> 6 | I72: B
A73: 1 | B73: 65 | C73: 50 | D73: =B73+C73 -> 115 | E73: 65 / 50 | F73: =ROUNDDOWN((B73-25) /10,0) -> 4 | G73: 2 | H73: =(G73+F73)*N$4 -> 6 | I73: B
A74: 1 | B74: 65 | C74: 55 | D74: 120 | E74: 65 / 55 | F74: 4 | G74: 3 | H74: =(G74+F74)*N$4 -> 7 | I74: B
A75: 1 | B75: 70 | C75: 30 | D75: 100 | E75: 70 / 30 | F75: 4 | G75: 0 | H75: =(G75+F75)*N$3 -> 4 | I75: B
A76: 1 | B76: 70 | C76: 35 | D76: 105 | E76: 70 / 35 | F76: 4 | G76: 1 | H76: =(G76+F76)*N$3 -> 5 | I76: B
A77: 1 | B77: 70 | C77: 40 | D77: 110 | E77: 70 / 40 | F77: 4 | G77: 1 | H77: =(G77+F77)*N$4 -> 5 | I77: B
A78: 1 | B78: 70 | C78: 45 | D78: 115 | E78: 70 / 45 | F78: 4 | G78: 2 | H78: 6 | I78: B
A79: 1 | B79: 70 | C79: 50 | D79: 120 | E79: 70 / 50 | F79: 4 | G79: 2 | H79: 6 | I79: B
A80: 1 | B80: 80 | C80: 30 | D80: 110 | E80: 80 / 30 | F80: 5 | G80: 0 | H80: 5 | I80: B
A81: 1 | B81: 80 | C81: 35 | D81: 115 | E81: 80 / 35 | F81: 5 | G81: 1 | H81: 6 | I81: B
A82: 1 | B82: 80 | C82: 40 | D82: 120 | E82: 80 / 40 | F82: 5 | G82: 1 | H82: 6 | I82: B
A83: 2 | B83: 32 | C83: 32 | D83: =B83+C83 -> 64 | E83: =CONCATENATE(B83," / ",C83) -> 32 / 32 | F83: =ROUNDDOWN((B83-27) /10,0) -> 0 | G83: =ROUNDDOWN((C83-27) /10,0) -> 0 | H83: =(F83*N$5+G83*N$3) -> 0 | I83: B
A84: 2 | B84: 32 | C84: 37 | D84: 69 | E84: 32 / 37 | F84: 0 | G84: 1 | H84: =(F84*N$5+G84*N$3) -> 1 | I84: B
A85: 2 | B85: 32 | C85: 42 | D85: 74 | E85: 32 / 42 | F85: 0 | G85: 1 | H85: 1 | I85: B
A86: 2 | B86: 32 | C86: 47 | D86: 79 | E86: 32 / 47 | F86: 0 | G86: 2 | H86: 2 | I86: B
A87: 2 | B87: 32 | C87: 52 | D87: 84 | E87: 32 / 52 | F87: 0 | G87: 2 | H87: 2 | I87: B
A88: 2 | B88: 32 | C88: 57 | D88: 89 | E88: 32 / 57 | F88: 0 | G88: 3 | H88: 3 | I88: B
A89: 2 | B89: 32 | C89: 62 | D89: 94 | E89: 32 / 62 | F89: 0 | G89: 3 | H89: 3 | I89: B
A90: 2 | B90: 32 | C90: 67 | D90: 99 | E90: 32 / 67 | F90: 0 | G90: 4 | H90: 4 | I90: B
A91: 2 | B91: 32 | C91: 72 | D91: 104 | E91: 32 / 72 | F91: 0 | G91: 4 | H91: 4 | I91: B
A92: 2 | B92: 32 | C92: 82 | D92: 114 | E92: 32 / 82 | F92: 0 | G92: 5 | H92: =F92*N$6+G92*N$4 -> 5 | I92: B
A93: 2 | B93: 32 | C93: 92 | D93: 124 | E93: 32 / 92 | F93: 0 | G93: 6 | H93: 6 | I93: B
A94: 2 | B94: 32 | C94: 102 | D94: 134 | E94: 32 / 102 | F94: 0 | G94: 7 | H94: 7 | I94: B
A95: 2 | B95: 32 | C95: 112 | D95: 144 | E95: 32 / 112 | F95: 0 | G95: 8 | H95: 8 | I95: B
A96: 2 | B96: 32 | C96: 122 | D96: 154 | E96: 32 / 122 | F96: 0 | G96: 9 | H96: 9 | I96: B
A97: 2 | B97: 32 | C97: 132 | D97: 164 | E97: 32 / 132 | F97: 0 | G97: 10 | H97: 10 | I97: B
A98: 2 | B98: 37 | C98: 32 | D98: 69 | E98: 37 / 32 | F98: 1 | G98: 0 | H98: =(F98*N$5+G98*N$3) -> 1 | I98: B
A99: 2 | B99: 37 | C99: 37 | D99: 74 | E99: 37 / 37 | F99: 1 | G99: 1 | H99: 2 | I99: B
A100: 2 | B100: 37 | C100: 42 | D100: 79 | E100: 37 / 42 | F100: 1 | G100: 1 | H100: 2 | I100: B
A101: 2 | B101: 37 | C101: 47 | D101: 84 | E101: 37 / 47 | F101: 1 | G101: 2 | H101: 3 | I101: B
A102: 2 | B102: 37 | C102: 52 | D102: 89 | E102: 37 / 52 | F102: 1 | G102: 2 | H102: 3 | I102: B
A103: 2 | B103: 37 | C103: 57 | D103: 94 | E103: 37 / 57 | F103: 1 | G103: 3 | H103: 4 | I103: B
A104: 2 | B104: 37 | C104: 62 | D104: 99 | E104: 37 / 62 | F104: 1 | G104: 3 | H104: 4 | I104: B
A105: 2 | B105: 37 | C105: 67 | D105: 104 | E105: 37 / 67 | F105: 1 | G105: 4 | H105: 5 | I105: B
A106: 2 | B106: 42 | C106: 32 | D106: 74 | E106: 42 / 32 | F106: 1 | G106: 0 | H106: 1 | I106: B
A107: 2 | B107: 42 | C107: 37 | D107: 79 | E107: 42 / 37 | F107: 1 | G107: 1 | H107: 2 | I107: B
A108: 2 | B108: 42 | C108: 42 | D108: 84 | E108: 42 / 42 | F108: 1 | G108: 1 | H108: 2 | I108: B
A109: 2 | B109: 42 | C109: 47 | D109: 89 | E109: 42 / 47 | F109: 1 | G109: 2 | H109: 3 | I109: B
A110: 2 | B110: 42 | C110: 52 | D110: 94 | E110: 42 / 52 | F110: 1 | G110: 2 | H110: 3 | I110: B
A111: 2 | B111: 42 | C111: 57 | D111: 99 | E111: 42 / 57 | F111: 1 | G111: 3 | H111: 4 | I111: B
A112: 2 | B112: 42 | C112: 62 | D112: 104 | E112: 42 / 62 | F112: 1 | G112: 3 | H112: 4 | I112: B
A113: 2 | B113: 42 | C113: 67 | D113: 109 | E113: 42 / 67 | F113: 1 | G113: 4 | H113: =F113*N$6+G113*N$4 -> 5 | I113: B
A114: 2 | B114: 42 | C114: 72 | D114: 114 | E114: 42 / 72 | F114: 1 | G114: 4 | H114: 5 | I114: B
A115: 2 | B115: 42 | C115: 82 | D115: =B115+C115 -> 124 | E115: =CONCATENATE(B115," / ",C115) -> 42 / 82 | F115: =ROUNDDOWN((B115-27) /10,0) -> 1 | G115: =ROUNDDOWN((C115-27) /10,0) -> 5 | H115: 6 | I115: B
A116: 2 | B116: 42 | C116: 92 | D116: 134 | E116: 42 / 92 | F116: 1 | G116: 6 | H116: 7 | I116: B
A117: 2 | B117: 42 | C117: 102 | D117: 144 | E117: 42 / 102 | F117: 1 | G117: 7 | H117: 8 | I117: B
A118: 2 | B118: 42 | C118: 112 | D118: 154 | E118: 42 / 112 | F118: 1 | G118: 8 | H118: 9 | I118: B
A119: 2 | B119: 42 | C119: 122 | D119: 164 | E119: 42 / 122 | F119: 1 | G119: 9 | H119: 10 | I119: B
A120: 2 | B120: 42 | C120: 132 | D120: 174 | E120: 42 / 132 | F120: 1 | G120: 10 | H120: 11 | I120: B
A121: 2 | B121: 47 | C121: 32 | D121: 79 | E121: 47 / 32 | F121: 2 | G121: 0 | H121: =(F121*N$5+G121*N$3) -> 2 | I121: B
A122: 2 | B122: 47 | C122: 37 | D122: 84 | E122: 47 / 37 | F122: 2 | G122: 1 | H122: 3 | I122: B
A123: 2 | B123: 47 | C123: 42 | D123: 89 | E123: 47 / 42 | F123: 2 | G123: 1 | H123: 3 | I123: B
A124: 2 | B124: 47 | C124: 47 | D124: 94 | E124: 47 / 47 | F124: 2 | G124: 2 | H124: 4 | I124: B
A125: 2 | B125: 47 | C125: 52 | D125: 99 | E125: 47 / 52 | F125: 2 | G125: 2 | H125: 4 | I125: B
A126: 2 | B126: 47 | C126: 57 | D126: 104 | E126: 47 / 57 | F126: 2 | G126: 3 | H126: 5 | I126: B
A127: 2 | B127: 47 | C127: 62 | D127: 109 | E127: 47 / 62 | F127: 2 | G127: 3 | H127: =F127*N$6+G127*N$4 -> 5 | I127: B
A128: 2 | B128: 47 | C128: 67 | D128: 114 | E128: 47 / 67 | F128: 2 | G128: 4 | H128: =F128*N$6+G128*N$4 -> 6 | I128: B
A129: 2 | B129: 52 | C129: 32 | D129: 84 | E129: 52 / 32 | F129: 2 | G129: 0 | H129: =(F129*N$5+G129*N$3) -> 2 | I129: B
A130: 2 | B130: 52 | C130: 37 | D130: 89 | E130: 52 / 37 | F130: 2 | G130: 1 | H130: =(F130*N$5+G130*N$3) -> 3 | I130: B
A131: 2 | B131: 52 | C131: 42 | D131: 94 | E131: 52 / 42 | F131: 2 | G131: 1 | H131: =(F131*N$5+G131*N$3) -> 3 | I131: B
A132: 2 | B132: 52 | C132: 47 | D132: 99 | E132: 52 / 47 | F132: 2 | G132: 2 | H132: =(F132*N$5+G132*N$3) -> 4 | I132: B
A133: 2 | B133: 52 | C133: 52 | D133: 104 | E133: 52 / 52 | F133: 2 | G133: 2 | H133: =(F133*N$5+G133*N$3) -> 4 | I133: B
A134: 2 | B134: 52 | C134: 57 | D134: 109 | E134: 52 / 57 | F134: 2 | G134: 3 | H134: =F134*N$6+G134*N$4 -> 5 | I134: B
A135: 2 | B135: 52 | C135: 62 | D135: 114 | E135: 52 / 62 | F135: 2 | G135: 3 | H135: 5 | I135: B
A136: 2 | B136: 52 | C136: 67 | D136: 119 | E136: 52 / 67 | F136: 2 | G136: 4 | H136: 6 | I136: B
A137: 2 | B137: 52 | C137: 72 | D137: 124 | E137: =CONCATENATE(B137," / ",C137) -> 52 / 72 | F137: 2 | G137: 4 | H137: 6 | I137: B
A138: 2 | B138: 52 | C138: 82 | D138: =B138+C138 -> 134 | E138: 52 / 82 | F138: 2 | G138: 5 | H138: 7 | I138: B
A139: 2 | B139: 52 | C139: 92 | D139: 144 | E139: 52 / 92 | F139: 2 | G139: 6 | H139: 8 | I139: B
A140: 2 | B140: 52 | C140: 102 | D140: 154 | E140: 52 / 102 | F140: 2 | G140: 7 | H140: 9 | I140: B
A141: 2 | B141: 52 | C141: 112 | D141: 164 | E141: 52 / 112 | F141: 2 | G141: 8 | H141: 10 | I141: B
A142: 2 | B142: 52 | C142: 122 | D142: 174 | E142: 52 / 122 | F142: 2 | G142: 9 | H142: 11 | I142: B
A143: 2 | B143: 52 | C143: 132 | D143: 184 | E143: 52 / 132 | F143: 2 | G143: 10 | H143: 12 | I143: B
A144: 2 | B144: 57 | C144: 32 | D144: 89 | E144: 57 / 32 | F144: 3 | G144: 0 | H144: =(F144*N$5+G144*N$3) -> 3 | I144: B
A145: 2 | B145: 57 | C145: 37 | D145: 94 | E145: 57 / 37 | F145: 3 | G145: 1 | H145: =(F145*N$5+G145*N$3) -> 4 | I145: B
A146: 2 | B146: 57 | C146: 42 | D146: 99 | E146: 57 / 42 | F146: 3 | G146: 1 | H146: =(F146*N$5+G146*N$3) -> 4 | I146: B
A147: 2 | B147: 57 | C147: 47 | D147: 104 | E147: 57 / 47 | F147: =ROUNDDOWN((B147-27) /10,0) -> 3 | G147: =ROUNDDOWN((C147-27) /10,0) -> 2 | H147: =(F147*N$5+G147*N$3) -> 5 | I147: B
A148: 2 | B148: 57 | C148: 52 | D148: 109 | E148: 57 / 52 | F148: 3 | G148: 2 | H148: =F148*N$6+G148*N$4 -> 5 | I148: B
A149: 2 | B149: 57 | C149: 57 | D149: 114 | E149: 57 / 57 | F149: 3 | G149: 3 | H149: =F149*N$6+G149*N$4 -> 6 | I149: B
A150: 2 | B150: 57 | C150: 62 | D150: 119 | E150: 57 / 62 | F150: 3 | G150: 3 | H150: =F150*N$6+G150*N$4 -> 6 | I150: B
A151: 2 | B151: 57 | C151: 67 | D151: 124 | E151: 57 / 67 | F151: 3 | G151: 4 | H151: =F151*N$6+G151*N$4 -> 7 | I151: B
A152: 2 | B152: 62 | C152: 32 | D152: 94 | E152: 62 / 32 | F152: 3 | G152: 0 | H152: =(F152*N$5+G152*N$3) -> 3 | I152: B
A153: 2 | B153: 62 | C153: 37 | D153: 99 | E153: 62 / 37 | F153: 3 | G153: 1 | H153: =(F153*N$5+G153*N$3) -> 4 | I153: B
A154: 2 | B154: 62 | C154: 42 | D154: 104 | E154: 62 / 42 | F154: 3 | G154: 1 | H154: =(F154*N$5+G154*N$3) -> 4 | I154: B
A155: 2 | B155: 62 | C155: 47 | D155: 109 | E155: 62 / 47 | F155: 3 | G155: 2 | H155: =F155*N$6+G155*N$4 -> 5 | I155: B
A156: 2 | B156: 62 | C156: 52 | D156: 114 | E156: 62 / 52 | F156: 3 | G156: 2 | H156: 5 | I156: B
A157: 2 | B157: 62 | C157: 57 | D157: 119 | E157: 62 / 57 | F157: 3 | G157: 3 | H157: 6 | I157: B
A158: 2 | B158: 62 | C158: 62 | D158: 124 | E158: 62 / 62 | F158: 3 | G158: 3 | H158: 6 | I158: B
A159: 2 | B159: 62 | C159: 67 | D159: 129 | E159: 62 / 67 | F159: 3 | G159: 4 | H159: 7 | I159: B
A160: 2 | B160: 62 | C160: 72 | D160: 134 | E160: 62 / 72 | F160: 3 | G160: 4 | H160: 7 | I160: B
A161: 2 | B161: 62 | C161: 82 | D161: 144 | E161: 62 / 82 | F161: 3 | G161: 5 | H161: 8 | I161: B
A162: 2 | B162: 62 | C162: 92 | D162: 154 | E162: 62 / 92 | F162: 3 | G162: 6 | H162: 9 | I162: B
A163: 2 | B163: 62 | C163: 102 | D163: 164 | E163: 62 / 102 | F163: 3 | G163: 7 | H163: 10 | I163: B
A164: 2 | B164: 62 | C164: 112 | D164: 174 | E164: 62 / 112 | F164: 3 | G164: 8 | H164: 11 | I164: B
A165: 2 | B165: 62 | C165: 122 | D165: 184 | E165: 62 / 122 | F165: 3 | G165: 9 | H165: 12 | I165: B
A166: 2 | B166: 62 | C166: 132 | D166: 194 | E166: 62 / 132 | F166: 3 | G166: 10 | H166: 13 | I166: B
A167: 2 | B167: 67 | C167: 32 | D167: 99 | E167: 67 / 32 | F167: 4 | G167: 0 | H167: =(F167*N$5+G167*N$3) -> 4 | I167: B
A168: 2 | B168: 67 | C168: 37 | D168: 104 | E168: 67 / 37 | F168: 4 | G168: 1 | H168: =(F168*N$5+G168*N$3) -> 5 | I168: B
A169: 2 | B169: 67 | C169: 42 | D169: 109 | E169: 67 / 42 | F169: 4 | G169: 1 | H169: =F169*N$6+G169*N$4 -> 5 | I169: B
A170: 2 | B170: 67 | C170: 47 | D170: 114 | E170: 67 / 47 | F170: 4 | G170: 2 | H170: 6 | I170: B
A171: 2 | B171: 67 | C171: 52 | D171: 119 | E171: 67 / 52 | F171: 4 | G171: 2 | H171: 6 | I171: B
A172: 2 | B172: 67 | C172: 57 | D172: 124 | E172: 67 / 57 | F172: 4 | G172: 3 | H172: 7 | I172: B
A173: 2 | B173: 67 | C173: 62 | D173: 129 | E173: 67 / 62 | F173: 4 | G173: 3 | H173: 7 | I173: B
A174: 2 | B174: 67 | C174: 67 | D174: 134 | E174: 67 / 67 | F174: 4 | G174: 4 | H174: 8 | I174: B
A175: 2 | B175: 72 | C175: 32 | D175: 104 | E175: 72 / 32 | F175: 4 | G175: 0 | H175: =(F175*N$5+G175*N$3) -> 4 | I175: B
A176: 2 | B176: 72 | C176: 42 | D176: 114 | E176: 72 / 42 | F176: 4 | G176: 1 | H176: =F176*N$6+G176*N$4 -> 5 | I176: B
A177: 2 | B177: 72 | C177: 52 | D177: 124 | E177: 72 / 52 | F177: 4 | G177: 2 | H177: 6 | I177: B
A178: 2 | B178: 72 | C178: 62 | D178: 134 | E178: 72 / 62 | F178: 4 | G178: 3 | H178: 7 | I178: B
A179: 2 | B179: 72 | C179: 72 | D179: 144 | E179: 72 / 72 | F179: 4 | G179: 4 | H179: 8 | I179: B
A180: 2 | B180: 72 | C180: 82 | D180: 154 | E180: 72 / 82 | F180: 4 | G180: 5 | H180: 9 | I180: B
A181: 2 | B181: 72 | C181: 92 | D181: 164 | E181: 72 / 92 | F181: 4 | G181: 6 | H181: 10 | I181: B
A182: 2 | B182: 72 | C182: 102 | D182: 174 | E182: 72 / 102 | F182: 4 | G182: 7 | H182: 11 | I182: B
A183: 2 | B183: 72 | C183: 112 | D183: 184 | E183: 72 / 112 | F183: 4 | G183: 8 | H183: 12 | I183: B
A184: 2 | B184: 72 | C184: 122 | D184: 194 | E184: 72 / 122 | F184: 4 | G184: 9 | H184: 13 | I184: B
A185: 2 | B185: 72 | C185: 132 | D185: 204 | E185: 72 / 132 | F185: 4 | G185: 10 | H185: 14 | I185: B
A186: 2 | B186: 82 | C186: 32 | D186: 114 | E186: 82 / 32 | F186: 5 | G186: 0 | H186: 5 | I186: B
A187: 2 | B187: 82 | C187: 42 | D187: 124 | E187: 82 / 42 | F187: 5 | G187: 1 | H187: 6 | I187: B
A188: 2 | B188: 82 | C188: 52 | D188: 134 | E188: 82 / 52 | F188: 5 | G188: 2 | H188: 7 | I188: B
A189: 2 | B189: 82 | C189: 62 | D189: 144 | E189: 82 / 62 | F189: 5 | G189: 3 | H189: 8 | I189: B
A190: 2 | B190: 82 | C190: 72 | D190: 154 | E190: 82 / 72 | F190: 5 | G190: 4 | H190: 9 | I190: B
A191: 2 | B191: 82 | C191: 82 | D191: 164 | E191: 82 / 82 | F191: 5 | G191: 5 | H191: 10 | I191: B
A192: 2 | B192: 82 | C192: 92 | D192: 174 | E192: 82 / 92 | F192: 5 | G192: 6 | H192: 11 | I192: B
A193: 2 | B193: 82 | C193: 102 | D193: 184 | E193: 82 / 102 | F193: 5 | G193: 7 | H193: 12 | I193: B
A194: 2 | B194: 82 | C194: 112 | D194: 194 | E194: 82 / 112 | F194: 5 | G194: 8 | H194: 13 | I194: B
A195: 2 | B195: 82 | C195: 122 | D195: 204 | E195: 82 / 122 | F195: 5 | G195: 9 | H195: 14 | I195: B
A196: 2 | B196: 82 | C196: 132 | D196: 214 | E196: 82 / 132 | F196: 5 | G196: 10 | H196: 15 | I196: B
A197: 2 | B197: 92 | C197: 32 | D197: 124 | E197: 92 / 32 | F197: 6 | G197: 0 | H197: 6 | I197: B
A198: 2 | B198: 92 | C198: 42 | D198: 134 | E198: 92 / 42 | F198: 6 | G198: 1 | H198: 7 | I198: B
A199: 2 | B199: 92 | C199: 52 | D199: 144 | E199: 92 / 52 | F199: 6 | G199: 2 | H199: 8 | I199: B
A200: 2 | B200: 92 | C200: 62 | D200: 154 | E200: 92 / 62 | F200: 6 | G200: 3 | H200: 9 | I200: B
... 2266 more rows

Sheet S-Plan
L1: Anz.
L3: Typ
L7: Bezeichnung
L8: Schl.-Nummer
F9: Anzahl
A10: Pos | B10: Status | C10: Türbezeichnung | D10: Raumbezeichnung | E10: Schlüssel-Nr. | F10: Zyl. | G10: Sch | I10: Zylindertyp | J10: Ausführung | K10: Länge (A / B) | L10: Farbe
A11: 1 | H11: 0
A12: 2
A13: 3
A14: 4
A15: 5
A16: 6
A17: 7
A18: 8
A19: 9
A20: 10
A21: 11
A22: 12
A23: 13
A24: 14
A25: 15
A26: 16
A27: 17
A28: 18
A29: 19
A30: 20

Sheet art_system (hidden)
A1: Anlagenart | B1: Systeme | C1: Neuanlage E/N | D1: Sichtbar J/N | E1: ART | F1: System | I1: ID | J1: System | K1: Anlagenart | L1: ANLBU | M1: Bau/Ind | N1: Kenn/Neu | O1: Profil | P1: Typ | Q1: Stiftanzahl | R1: Prägermuss | S1: Servicesystem | T1: Systemfam1 | U1: Systemfam2 | V1: Vertriebsweg | W1: Zugriffskenn | X1: KundenSystem
A2: ? | B2: ? | C2: N | D2: J | E2: ? | F2: ? | I2: 1 | J2: DIAMANT | K2: GHS | L2: E | M2: B | N2: J | O2: 120 | P2: 166 | Q2: 10 | R2: N | S2: N | T2: 09 | U2: 09H | V2: 02 | W2: X | X2: N
A3: GHS | B3: D | C3: E | D3: J | E3: ? | F3: GHS | I3: 2 | J3: DIAMANT | K3: HS | L3: E | M3: B | N3: J | O3: 120 | P3: 166 | Q3: 10 | R3: N | S3: N | T3: 09 | U3: 09H | V3: 02 | W3: X | X3: N
A4: HS | B4: DAS | C4: N | D4: J | E4: ? | F4: HS | I4: 3 | J4: IX10KG | K4: GHS | L4: G | M4: B | N4: J | O4: 122 | P4: 150 | Q4: 10 | R4: N | S4: J | T4: 08 | U4: 08H | V4: 02 | W4: X | X4: N
A5: ZHS | B5: DIAMANT | C5: N | D5: J | E5: ? | F5: ZHS | I5: 4 | J5: IX10KG | K5: HS | L5: G | M5: B | N5: J | O5: 122 | P5: 150 | Q5: 10 | R5: N | S5: J | T5: 08 | U5: 08H | V5: 02 | W5: X | X5: N
A6: Z | B6: IX GAMMA | C6: N | D6: J | E6: ? | F6: Z | I6: 5 | J6: IX10KG | K6: ZHS | L6: G | M6: B | N6: J | O6: 122 | P6: 150 | Q6: 10 | R6: N | S6: J | T6: 08 | U6: 08H | V6: 02 | W6: X | X6: N
A7: CE | B7: IX10 | C7: E | D7: J | E7: ? | F7: CE | I7: 6 | J7: IX10KG | K7: GHS | L7: G | M7: B | N7: J | O7: 126 | P7: 150 | Q7: 10 | R7: N | S7: J | T7: 08 | U7: 08H | V7: 02 | W7: X | X7: N
B8: IX10KG | C8: E | D8: J | E8: D | F8: ? | I8: 7 | J8: IX10KG | K8: HS | L8: G | M8: B | N8: J | O8: 126 | P8: 150 | Q8: 10 | R8: N | S8: J | T8: 08 | U8: 08H | V8: 02 | W8: X | X8: N
B9: IX5HT | C9: E | D9: J | E9: D | F9: HS | I9: 8 | J9: IX10KG | K9: ZHS | L9: G | M9: B | N9: J | O9: 126 | P9: 150 | Q9: 10 | R9: N | S9: J | T9: 08 | U9: 08H | V9: 02 | W9: X | X9: N
B10: IX5KG | C10: E | D10: J | E10: D | F10: GHS | I10: 9 | J10: IX6SR | K10: GHS | L10: IC | M10: B | N10: J | O10: 128 | P10: 200 | Q10: 6 | R10: N | S10: N | T10: 32 | U10: 32H | V10: 02 | W10: X | X10: N
B11: IX6KG | C11: E | D11: J | E11: DAS | F11: Z | I11: 10 | J11: IX6SR | K11: HS | L11: IC | M11: B | N11: J | O11: 128 | P11: 200 | Q11: 6 | R11: N | S11: N | T11: 32 | U11: 32H | V11: 02 | W11: X | X11: N
B12: IX6SR | C12: N | D12: J | E12: DAS | F12: ZHS | I12: 11 | J12: IX6SR | K12: ZHS | L12: IC | M12: B | N12: J | O12: 128 | P12: 200 | Q12: 6 | R12: N | S12: N | T12: 32 | U12: 32H | V12: 02 | W12: X | X12: N
B13: IX6SR IT | C13: N | D13: N | E13: DAS | F13: HS | I13: 12 | J13: IX6SR | K13: Z | L13: IB | M13: B | N13: J | O13: 130 | P13: 200 | Q13: 6 | R13: N | S13: J | T13: 32 | U13: 32H | V13: 02 | W13: X | X13: N
B14: IX6SR235 | C14: N | D14: J | E14: DAS | F14: GHS | I14: 13 | J14: RS8 | K14: GHS | L14: ID | M14: B | N14: J | O14: 134 | P14: 203 | Q14: 8 | R14: N | S14: N | T14: 33 | U14: 33H | V14: 02 | W14: X | X14: N
B15: IXDAS | C15: N | D15: J | E15: DIAMANT | F15: ? | I15: 14 | J15: RS8 | K15: HS | L15: ID | M15: B | N15: J | O15: 134 | P15: 203 | Q15: 8 | R15: N | S15: N | T15: 33 | U15: 33H | V15: 02 | W15: X | X15: N
B16: IXHT | C16: N | D16: J | E16: DIAMANT | F16: HS | I16: 15 | J16: RS8 | K16: ZHS | L16: ID | M16: B | N16: J | O16: 134 | P16: 203 | Q16: 8 | R16: N | S16: N | T16: 33 | U16: 33H | V16: 02 | W16: X | X16: N
B17: IXSAT | C17: N | D17: J | E17: DIAMANT | F17: GHS | I17: 16 | J17: RS8DO1 | K17: GHS | L17: IE | M17: B | N17: J | O17: 135 | P17: 203 | Q17: 8 | R17: N | S17: J | T17: 33 | U17: 33H | V17: 02 | W17: X | X17: N
B18: IXSAT168 | C18: N | D18: J | E18: IX GAMMA | F18: ZHS | I18: 17 | J18: RS8DO1 | K18: HS | L18: IE | M18: B | N18: J | O18: 135 | P18: 203 | Q18: 8 | R18: N | S18: J | T18: 33 | U18: 33H | V18: 02 | W18: X | X18: N
B19: IXSATS | C19: N | D19: J | E19: IX GAMMA | F19: HS | I19: 18 | J19: RS8DO1 | K19: ZHS | L19: IE | M19: B | N19: J | O19: 135 | P19: 203 | Q19: 8 | R19: N | S19: J | T19: 33 | U19: 33H | V19: 02 | W19: X | X19: N
B20: IXTWINSTAR | C20: N | D20: J | E20: IX GAMMA | F20: GHS | I20: 19 | J20: RS8DO2 | K20: GHS | L20: IE | M20: B | N20: J | O20: 135 | P20: 203 | Q20: 8 | R20: N | S20: J | T20: 33 | U20: 33H | V20: 02 | W20: X | X20: N
B21: K6TL IT | C21: N | D21: N | E21: IX10 | F21: ? | I21: 20 | J21: RS8DO2 | K21: HS | L21: IE | M21: B | N21: J | O21: 135 | P21: 203 | Q21: 8 | R21: N | S21: J | T21: 33 | U21: 33H | V21: 02 | W21: X | X21: N
B22: RGB | C22: N | D22: J | E22: IX10 | F22: Z | I22: 21 | J22: RS8DO2 | K22: ZHS | L22: IE | M22: B | N22: J | O22: 135 | P22: 203 | Q22: 8 | R22: N | S22: J | T22: 33 | U22: 33H | V22: 02 | W22: X | X22: N
B23: RS SIGMA | C23: N | D23: J | E23: IX10 | F23: ZHS | I23: 22 | J23: RS8DO3 | K23: GHS | L23: IE | M23: B | N23: J | O23: 135 | P23: 203 | Q23: 8 | R23: N | S23: J | T23: 33 | U23: 33H | V23: 02 | W23: X | X23: N
B24: RS5 | C24: E | D24: J | E24: IX10 | F24: HS | I24: 23 | J24: RS8DO3 | K24: HS | L24: IE | M24: B | N24: J | O24: 135 | P24: 203 | Q24: 8 | R24: N | S24: J | T24: 33 | U24: 33H | V24: 02 | W24: X | X24: N
B25: RS6 | C25: E | D25: J | E25: IX10 | F25: GHS | I25: 24 | J25: RS8DO3 | K25: ZHS | L25: IE | M25: B | N25: J | O25: 135 | P25: 203 | Q25: 8 | R25: N | S25: J | T25: 33 | U25: 33H | V25: 02 | W25: X | X25: N
B26: RS8 | C26: N | D26: J | E26: IX10KG | F26: ? | I26: 25 | J26: RS8DO4 | K26: GHS | L26: IE | M26: B | N26: J | O26: 135 | P26: 203 | Q26: 8 | R26: N | S26: J | T26: 33 | U26: 33H | V26: 02 | W26: X | X26: N
B27: S5 | C27: E | D27: J | E27: IX10KG | F27: Z | I27: 26 | J27: RS8DO4 | K27: HS | L27: IE | M27: B | N27: J | O27: 135 | P27: 203 | Q27: 8 | R27: N | S27: J | T27: 33 | U27: 33H | V27: 02 | W27: X | X27: N
B28: S6 | C28: E | D28: J | E28: IX10KG | F28: ZHS | I28: 27 | J28: RS8DO4 | K28: ZHS | L28: IE | M28: B | N28: J | O28: 135 | P28: 203 | Q28: 8 | R28: N | S28: J | T28: 33 | U28: 33H | V28: 02 | W28: X | X28: N
B29: SC5 | C29: E | D29: J | E29: IX10KG | F29: HS | I29: 28 | J29: IXHT | K29: GHS | L29: IF | M29: B | N29: J | O29: 137 | P29: 211 | Q29: 5 | R29: N | S29: N | T29: 36 | U29: 36H | V29: 02 | W29: X | X29: N
B30: SC6 | C30: E | D30: J | E30: IX10KG | F30: GHS | I30: 29 | J30: IXHT | K30: HS | L30: IF | M30: B | N30: J | O30: 137 | P30: 211 | Q30: 5 | R30: N | S30: N | T30: 36 | U30: 36H | V30: 02 | W30: X | X30: N
B31: SIGMA PLUS | C31: N | D31: J | E31: IX5HT | F31: ? | I31: 30 | J31: IXHT | K31: ZHS | L31: IF | M31: B | N31: J | O31: 137 | P31: 211 | Q31: 5 | R31: N | S31: N | T31: 36 | U31: 36H | V31: 02 | W31: X | X31: N
B32: SIGMA PLUS IT | C32: N | D32: N | E32: IX5HT | F32: Z | I32: 31 | J32: IXDAS | K32: GHS | L32: IG | M32: B | N32: J | O32: 138 | P32: 212 | Q32: 5 | R32: N | S32: J | T32: 37 | U32: 37H | V32: 02 | W32: X | X32: N
B33: T250 IT | C33: N | D33: N | E33: IX5HT | F33: ZHS | I33: 32 | J33: IXDAS | K33: HS | L33: IG | M33: B | N33: J | O33: 138 | P33: 212 | Q33: 5 | R33: N | S33: J | T33: 37 | U33: 37H | V33: 02 | W33: X | X33: N
B34: IXTECO | C34: N | D34: J | E34: IX5HT | F34: HS | I34: 33 | J34: IXDAS | K34: ZHS | L34: IG | M34: B | N34: J | O34: 138 | P34: 212 | Q34: 5 | R34: N | S34: J | T34: 37 | U34: 37H | V34: 02 | W34: X | X34: N
B35: IXTWIDO | C35: N | D35: J | E35: IX5HT | F35: GHS | I35: 34 | J35: IXSAT | K35: Z | L35: IK | M35: B | N35: J | O35: 140 | P35: 214 | Q35: 10 | R35: N | S35: N | T35: 38 | U35: 38H | V35: 02 | W35: X | X35: N
B36: IX6HT | C36: N | D36: J | E36: IX5KG | F36: ? | I36: 35 | J36: IXSAT | K36: GHS | L36: IH | M36: B | N36: J | O36: 142 | P36: 213 | Q36: 10 | R36: N | S36: N | T36: 38 | U36: 38H | V36: 02 | W36: X | X36: N
B37: TWINSTARC | C37: N | D37: J | E37: IX5KG | F37: Z | I37: 36 | J37: IXSAT | K37: HS | L37: IH | M37: B | N37: J | O37: 142 | P37: 213 | Q37: 10 | R37: N | S37: N | T37: 38 | U37: 38H | V37: 02 | W37: X | X37: N
B38: 5000 | C38: N | D38: J | E38: IX5KG | F38: ZHS | I38: 37 | J38: IXSAT | K38: ZHS | L38: IH | M38: B | N38: J | O38: 142 | P38: 213 | Q38: 10 | R38: N | S38: N | T38: 38 | U38: 38H | V38: 02 | W38: X | X38: N
B39: 2000 | C39: N | D39: J | E39: IX5KG | F39: HS | I39: 38 | J39: RS SIGMA | K39: GHS | L39: IM | M39: B | N39: J | O39: 143 | P39: 019 | Q39: 6 | R39: N | S39: N | T39: 42 | U39: 42H | V39: 02 | W39: X | X39: N
B40: E | C40: N | D40: J | E40: IX5KG | F40: GHS | I40: 39 | J40: RS SIGMA | K40: HS | L40: IM | M40: B | N40: J | O40: 143 | P40: 019 | Q40: 6 | R40: N | S40: N | T40: 42 | U40: 42H | V40: 02 | W40: X | X40: N
B41: BPS | C41: N | D41: J | E41: IX6KG | F41: ? | I41: 40 | J41: RS SIGMA | K41: ZHS | L41: IM | M41: B | N41: J | O41: 143 | P41: 019 | Q41: 6 | R41: N | S41: N | T41: 42 | U41: 42H | V41: 02 | W41: X | X41: N
B42: SCX | C42: N | D42: J | E42: IX6KG | F42: Z | I42: 41 | J42: RS SIGMA | K42: Z | L42: IP | M42: B | N42: J | O42: 144 | P42: 019 | Q42: 6 | R42: N | S42: N | T42: 42 | U42: 42H | V42: 02 | W42: X | X42: N
B43: IX7TE | C43: N | D43: J | E43: IX6KG | F43: ZHS | I43: 42 | J43: SIGMA PLUS | K43: GHS | L43: IR | M43: B | N43: J | O43: 145 | P43: 019 | Q43: 6 | R43: N | S43: J | T43: 43 | U43: 43H | V43: 02 | W43: X | X43: N
B44: IX7TW | C44: N | D44: J | E44: IX6KG | F44: HS | I44: 43 | J44: SIGMA PLUS | K44: HS | L44: IR | M44: B | N44: J | O44: 145 | P44: 019 | Q44: 6 | R44: N | S44: J | T44: 43 | U44: 43H | V44: 02 | W44: X | X44: N
B45: IX6HT | C45: N | D45: J | E45: IX6KG | F45: GHS | I45: 45 | J45: SIGMA PLUS | K45: ZHS | L45: IR | M45: B | N45: J | O45: 145 | P45: 019 | Q45: 6 | R45: N | S45: J | T45: 43 | U45: 43H | V45: 02 | W45: X | X45: N
B46: SIRIUS | C46: N | D46: J | E46: IX6SR | F46: ? | I46: 46 | J46: RS8DO5 | K46: GHS | L46: IS | M46: B | N46: J | O46: 147 | P46: 203 | Q46: 8 | R46: N | S46: J | T46: 33 | U46: 33H | V46: 02 | W46: X | X46: N
B47: IX7SI | C47: N | D47: J | E47: IX6SR | F47: Z | I47: 50 | J47: RS8DO6 | K47: GHS | L47: IS | M47: B | N47: J | O47: 147 | P47: 203 | Q47: 8 | R47: N | S47: J | T47: 33 | U47: 33H | V47: 02 | W47: X | X47: N
E48: IX6SR | F48: ZHS | I48: 51 | J48: RS8DO6 | K48: HS | L48: IS | M48: B | N48: J | O48: 147 | P48: 203 | Q48: 8 | R48: N | S48: J | T48: 33 | U48: 33H | V48: 02 | W48: X | X48: N
E49: IX6SR | F49: HS | I49: 52 | J49: RS8DO6 | K49: Z | L49: IS | M49: B | N49: J | O49: 147 | P49: 203 | Q49: 8 | R49: N | S49: J | T49: 33 | U49: 33H | V49: 02 | W49: X | X49: N
E50: IX6SR | F50: GHS | I50: 53 | J50: RS8DO6 | K50: ZHS | L50: IS | M50: B | N50: J | O50: 147 | P50: 203 | Q50: 8 | R50: N | S50: J | T50: 33 | U50: 33H | V50: 02 | W50: X | X50: N
E51: IX6SR235 | F51: GHS | I51: 54 | J51: RS SIGMA | K51: GHS | L51: IT | M51: B | N51: J | O51: 151 | P51: 019 | Q51: 6 | R51: N | S51: J | T51: 42 | U51: 42H | V51: 02 | W51: X | X51: N
E52: IX6SR235 | F52: HS | I52: 55 | J52: RS SIGMA | K52: HS | L52: IT | M52: B | N52: J | O52: 151 | P52: 019 | Q52: 6 | R52: N | S52: J | T52: 42 | U52: 42H | V52: 02 | W52: X | X52: N
E53: IX6SR235 | F53: ZHS | I53: 56 | J53: RS SIGMA | K53: Z | L53: IT | M53: B | N53: J | O53: 151 | P53: 019 | Q53: 6 | R53: N | S53: J | T53: 42 | U53: 42H | V53: 02 | W53: X | X53: N
E54: IXDAS | F54: ZHS | I54: 57 | J54: RS SIGMA | K54: ZHS | L54: IT | M54: B | N54: J | O54: 151 | P54: 019 | Q54: 6 | R54: N | S54: J | T54: 42 | U54: 42H | V54: 02 | W54: X | X54: N
E55: IXDAS | F55: HS | I55: 58 | J55: IX GAMMA | K55: GHS | L55: IU | M55: B | N55: J | O55: 153 | P55: 215 | Q55: 5 | R55: J | S55: J | T55: 44 | U55: 44H | V55: 02 | W55: X | X55: N
E56: IXDAS | F56: GHS | I56: 59 | J56: IX GAMMA | K56: HS | L56: IU | M56: B | N56: J | O56: 153 | P56: 215 | Q56: 5 | R56: J | S56: J | T56: 44 | U56: 44H | V56: 02 | W56: X | X56: N
E57: IXHT | F57: ZHS | I57: 61 | J57: IX GAMMA | K57: ZHS | L57: IU | M57: B | N57: J | O57: 153 | P57: 215 | Q57: 5 | R57: J | S57: J | T57: 44 | U57: 44H | V57: 02 | W57: X | X57: N
E58: IXHT | F58: HS | I58: 62 | J58: IX GAMMA | K58: GHS | L58: IV | M58: B | N58: J | O58: 154 | P58: 215 | Q58: 5 | R58: J | S58: J | T58: 44 | U58: 44H | V58: 02 | W58: X | X58: N
E59: IXHT | F59: GHS | I59: 63 | J59: IX GAMMA | K59: HS | L59: IV | M59: B | N59: J | O59: 154 | P59: 215 | Q59: 5 | R59: J | S59: J | T59: 44 | U59: 44H | V59: 02 | W59: X | X59: N
E60: IXHT | F60: CE | I60: 65 | J60: IX GAMMA | K60: ZHS | L60: IV | M60: B | N60: J | O60: 154 | P60: 215 | Q60: 5 | R60: J | S60: J | T60: 44 | U60: 44H | V60: 02 | W60: X | X60: N
E61: IXSAT | F61: ? | I61: 66 | J61: IX GAMMA | K61: GHS | L61: IW | M61: B | N61: J | O61: 155 | P61: 215 | Q61: 5 | R61: J | S61: J | T61: 44 | U61: 44H | V61: 02 | W61: X | X61: N
E62: IXSAT | F62: Z | I62: 67 | J62: IX GAMMA | K62: HS | L62: IW | M62: B | N62: J | O62: 155 | P62: 215 | Q62: 5 | R62: J | S62: J | T62: 44 | U62: 44H | V62: 02 | W62: X | X62: N
E63: IXSAT | F63: ZHS | I63: 69 | J63: IX GAMMA | K63: ZHS | L63: IW | M63: B | N63: J | O63: 155 | P63: 215 | Q63: 5 | R63: J | S63: J | T63: 44 | U63: 44H | V63: 02 | W63: X | X63: N
E64: IXSAT | F64: HS | I64: 70 | J64: IXSATS | K64: GHS | L64: AA | M64: B | N64: J | O64: 169 | P64: 214 | Q64: 10 | R64: N | S64: J | T64: 47 | U64: 47H | V64: 02 | W64: X | X64: N
E65: IXSAT | F65: GHS | I65: 71 | J65: IXSATS | K65: HS | L65: AA | M65: B | N65: J | O65: 169 | P65: 214 | Q65: 10 | R65: N | S65: J | T65: 47 | U65: 47H | V65: 02 | W65: X | X65: N
E66: IXSAT | F66: CE | I66: 72 | J66: IXSATS | K66: Z | L66: AA | M66: B | N66: J | O66: 169 | P66: 214 | Q66: 10 | R66: N | S66: J | T66: 47 | U66: 47H | V66: 02 | W66: X | X66: N
E67: IXSAT168 | F67: GHS | I67: 73 | J67: IXSATS | K67: ZHS | L67: AA | M67: B | N67: J | O67: 169 | P67: 214 | Q67: 10 | R67: N | S67: J | T67: 47 | U67: 47H | V67: 02 | W67: X | X67: N
E68: IXSAT168 | F68: HS | I68: 74 | J68: IXSATS | K68: GHS | L68: AB | M68: B | N68: J | O68: 170 | P68: 214 | Q68: 10 | R68: N | S68: J | T68: 47 | U68: 47H | V68: 02 | W68: X | X68: N
E69: IXSAT168 | F69: ZHS | I69: 75 | J69: IXSATS | K69: HS | L69: AB | M69: B | N69: J | O69: 170 | P69: 214 | Q69: 10 | R69: N | S69: J | T69: 47 | U69: 47H | V69: 02 | W69: X | X69: N
E70: RGB | F70: Z | I70: 76 | J70: IXSATS | K70: Z | L70: AB | M70: B | N70: J | O70: 170 | P70: 214 | Q70: 10 | R70: N | S70: J | T70: 47 | U70: 47H | V70: 02 | W70: X | X70: N
E71: RGB | F71: ZHS | I71: 77 | J71: IXSATS | K71: ZHS | L71: AB | M71: B | N71: J | O71: 170 | P71: 214 | Q71: 10 | R71: N | S71: J | T71: 47 | U71: 47H | V71: 02 | W71: X | X71: N
E72: RGB | F72: HS | I72: 78 | J72: IXSATS | K72: GHS | L72: AC | M72: B | N72: J | O72: 171 | P72: 214 | Q72: 10 | R72: N | S72: J | T72: 47 | U72: 47H | V72: 02 | W72: X | X72: N
E73: RGB | F73: GHS | I73: 79 | J73: IXSATS | K73: HS | L73: AC | M73: B | N73: J | O73: 171 | P73: 214 | Q73: 10 | R73: N | S73: J | T73: 47 | U73: 47H | V73: 02 | W73: X | X73: N
E74: RS SIGMA | F74: ? | I74: 80 | J74: IXSATS | K74: Z | L74: AC | M74: B | N74: J | O74: 171 | P74: 214 | Q74: 10 | R74: N | S74: J | T74: 47 | U74: 47H | V74: 02 | W74: X | X74: N
E75: RS SIGMA | F75: Z | I75: 81 | J75: IXSATS | K75: ZHS | L75: AC | M75: B | N75: J | O75: 171 | P75: 214 | Q75: 10 | R75: N | S75: J | T75: 47 | U75: 47H | V75: 02 | W75: X | X75: N
E76: RS SIGMA | F76: ZHS | I76: 82 | J76: IXSATS | K76: GHS | L76: AD | M76: B | N76: J | O76: 172 | P76: 214 | Q76: 10 | R76: N | S76: J | T76: 47 | U76: 47H | V76: 02 | W76: X | X76: N
E77: RS SIGMA | F77: HS | I77: 83 | J77: IXSATS | K77: HS | L77: AD | M77: B | N77: J | O77: 172 | P77: 214 | Q77: 10 | R77: N | S77: J | T77: 47 | U77: 47H | V77: 02 | W77: X | X77: N
E78: RS SIGMA | F78: GHS | I78: 84 | J78: IXSATS | K78: Z | L78: AD | M78: B | N78: J | O78: 172 | P78: 214 | Q78: 10 | R78: N | S78: J | T78: 47 | U78: 47H | V78: 02 | W78: X | X78: N
E79: RS SIGMA | F79: CE | I79: 85 | J79: IXSATS | K79: ZHS | L79: AD | M79: B | N79: J | O79: 172 | P79: 214 | Q79: 10 | R79: N | S79: J | T79: 47 | U79: 47H | V79: 02 | W79: X | X79: N
E80: RS5 | F80: ? | I80: 86 | J80: IX6SR | K80: GHS | L80: IZ | M80: B | N80: J | O80: 235 | P80: 199 | Q80: 5 | R80: N | S80: N | T80: 32 | U80: 32H | V80: 02 | W80: X | X80: N
E81: RS5 | F81: Z | I81: 87 | J81: IX6SR | K81: HS | L81: IZ | M81: B | N81: J | O81: 235 | P81: 199 | Q81: 5 | R81: N | S81: N | T81: 32 | U81: 32H | V81: 02 | W81: X | X81: N
E82: RS5 | F82: ZHS | I82: 88 | J82: IX6SR | K82: Z | L82: IZ | M82: B | N82: J | O82: 235 | P82: 199 | Q82: 5 | R82: N | S82: N | T82: 32 | U82: 32H | V82: 02 | W82: X | X82: N
E83: RS5 | F83: HS | I83: 89 | J83: IX6SR | K83: ZHS | L83: IZ | M83: B | N83: J | O83: 235 | P83: 199 | Q83: 5 | R83: N | S83: N | T83: 32 | U83: 32H | V83: 02 | W83: X | X83: N
E84: RS5 | F84: GHS | I84: 90 | J84: IX6SR | K84: GHS | L84: IL | M84: B | N84: J | O84: 241 | P84: 200 | Q84: 6 | R84: N | S84: J | T84: 32 | U84: 32H | V84: 02 | W84: X | X84: N
E85: RS6 | F85: ? | I85: 91 | J85: IX6SR | K85: HS | L85: IL | M85: B | N85: J | O85: 241 | P85: 200 | Q85: 6 | R85: N | S85: J | T85: 32 | U85: 32H | V85: 02 | W85: X | X85: N
E86: RS6 | F86: ZHS | I86: 92 | J86: IX6SR | K86: Z | L86: IL | M86: B | N86: J | O86: 241 | P86: 200 | Q86: 6 | R86: N | S86: J | T86: 32 | U86: 32H | V86: 02 | W86: X | X86: N
E87: RS6 | F87: HS | I87: 93 | J87: IX6SR | K87: ZHS | L87: IL | M87: B | N87: J | O87: 241 | P87: 200 | Q87: 6 | R87: N | S87: J | T87: 32 | U87: 32H | V87: 02 | W87: X | X87: N
E88: RS6 | F88: GHS | I88: 94 | J88: RS8DO5 | K88: HS | L88: IS | M88: B | N88: J | O88: 147 | P88: 203 | Q88: 8 | R88: N | S88: J | T88: 33 | U88: 33H | V88: 02 | W88: X | X88: N
E89: RS8 | F89: ? | I89: 95 | J89: RS8DO5 | K89: ZHS | L89: IS | M89: B | N89: J | O89: 147 | P89: 203 | Q89: 8 | R89: N | S89: J | T89: 33 | U89: 33H | V89: 02 | W89: X | X89: N
E90: RS8 | F90: ZHS | I90: 96 | J90: IXSATS | K90: GHS | L90: AA | M90: B | N90: J | O90: 169 | P90: 225 | Q90: 10 | R90: N | S90: J | T90: 47 | U90: 47H | V90: 02 | W90: X | X90: N
E91: RS8 | F91: HS | I91: 97 | J91: IXSATS | K91: HS | L91: AA | M91: B | N91: J | O91: 169 | P91: 225 | Q91: 10 | R91: N | S91: J | T91: 47 | U91: 47H | V91: 02 | W91: X | X91: N
E92: RS8 | F92: GHS | I92: 98 | J92: IXSATS | K92: Z | L92: AA | M92: B | N92: J | O92: 169 | P92: 225 | Q92: 10 | R92: N | S92: J | T92: 47 | U92: 47H | V92: 02 | W92: X | X92: N
E93: RS8 | F93: CE | I93: 99 | J93: IXSATS | K93: ZHS | L93: AA | M93: B | N93: J | O93: 169 | P93: 225 | Q93: 10 | R93: N | S93: J | T93: 47 | U93: 47H | V93: 02 | W93: X | X93: N
E94: S5 | F94: ? | I94: 100 | J94: IXSATS | K94: GHS | L94: AB | M94: B | N94: J | O94: 170 | P94: 225 | Q94: 10 | R94: N | S94: J | T94: 47 | U94: 47H | V94: 02 | W94: X | X94: N
E95: S5 | F95: Z | I95: 101 | J95: IXSATS | K95: HS | L95: AB | M95: B | N95: J | O95: 170 | P95: 225 | Q95: 10 | R95: N | S95: J | T95: 47 | U95: 47H | V95: 02 | W95: X | X95: N
E96: S5 | F96: ZHS | I96: 102 | J96: IXSATS | K96: Z | L96: AB | M96: B | N96: J | O96: 170 | P96: 225 | Q96: 10 | R96: N | S96: J | T96: 47 | U96: 47H | V96: 02 | W96: X | X96: N
E97: S5 | F97: HS | I97: 103 | J97: IXSATS | K97: ZHS | L97: AB | M97: B | N97: J | O97: 170 | P97: 225 | Q97: 10 | R97: N | S97: J | T97: 47 | U97: 47H | V97: 02 | W97: X | X97: N
E98: S5 | F98: GHS | I98: 104 | J98: IXSATS | K98: GHS | L98: AC | M98: B | N98: J | O98: 171 | P98: 225 | Q98: 10 | R98: N | S98: J | T98: 47 | U98: 47H | V98: 02 | W98: X | X98: N
E99: S6 | F99: ? | I99: 105 | J99: IXSATS | K99: HS | L99: AC | M99: B | N99: J | O99: 171 | P99: 225 | Q99: 10 | R99: N | S99: J | T99: 47 | U99: 47H | V99: 02 | W99: X | X99: N
E100: S6 | F100: Z | I100: 106 | J100: IXSATS | K100: Z | L100: AC | M100: B | N100: J | O100: 171 | P100: 225 | Q100: 10 | R100: N | S100: J | T100: 47 | U100: 47H | V100: 02 | W100: X | X100: N
E101: S6 | F101: ZHS | I101: 107 | J101: IXSATS | K101: ZHS | L101: AC | M101: B | N101: J | O101: 171 | P101: 225 | Q101: 10 | R101: N | S101: J | T101: 47 | U101: 47H | V101: 02 | W101: X | X101: N
E102: S6 | F102: HS | I102: 108 | J102: IXSATS | K102: GHS | L102: AD | M102: B | N102: J | O102: 172 | P102: 225 | Q102: 10 | R102: N | S102: J | T102: 47 | U102: 47H | V102: 02 | W102: X | X102: N
E103: S6 | F103: GHS | I103: 109 | J103: IXSATS | K103: HS | L103: AD | M103: B | N103: J | O103: 172 | P103: 225 | Q103: 10 | R103: N | S103: J | T103: 47 | U103: 47H | V103: 02 | W103: X | X103: N
E104: SC5 | F104: ? | I104: 110 | J104: IXSATS | K104: Z | L104: AD | M104: B | N104: J | O104: 172 | P104: 225 | Q104: 10 | R104: N | S104: J | T104: 47 | U104: 47H | V104: 02 | W104: X | X104: N
E105: SC5 | F105: Z | I105: 111 | J105: IXSATS | K105: ZHS | L105: AD | M105: B | N105: J | O105: 172 | P105: 225 | Q105: 10 | R105: N | S105: J | T105: 47 | U105: 47H | V105: 02 | W105: X | X105: N
E106: SC5 | F106: ZHS | I106: 112 | J106: DAS | K106: GHS | L106: C | M106: B | N106: J | O106: 038 | P106: 177 | Q106: 5 | R106: N | S106: J | T106: 11 | U106: 11H | V106: 02 | W106: X | X106: N
E107: SC5 | F107: HS | I107: 113 | J107: DAS | K107: HS | L107: C | M107: B | N107: J | O107: 038 | P107: 177 | Q107: 5 | R107: N | S107: J | T107: 11 | U107: 11H | V107: 02 | W107: X | X107: N
E108: SC5 | F108: GHS | I108: 114 | J108: DAS | K108: ZHS | L108: C | M108: B | N108: J | O108: 038 | P108: 177 | Q108: 5 | R108: N | S108: J | T108: 11 | U108: 11H | V108: 02 | W108: X | X108: N
E109: SC6 | F109: ? | I109: 115 | J109: IXTWINSTAR | K109: GHS | L109: AL | M109: B | N109: J | O109: 290 | P109: 232 | Q109: 10 | R109: N | S109: N | T109: 49 | U109: 49H | V109: 02 | W109: X | X109: N
E110: SC6 | F110: Z | I110: 116 | J110: IXTWINSTAR | K110: HS | L110: AL | M110: B | N110: J | O110: 290 | P110: 232 | Q110: 10 | R110: N | S110: N | T110: 49 | U110: 49H | V110: 02 | W110: X | X110: N
E111: SC6 | F111: ZHS | I111: 117 | J111: IXTWINSTAR | K111: ZHS | L111: AL | M111: B | N111: J | O111: 290 | P111: 232 | Q111: 10 | R111: N | S111: N | T111: 49 | U111: 49H | V111: 02 | W111: X | X111: N
E112: SC6 | F112: HS | I112: 118 | J112: IXTWINSTAR | K112: Z | L112: AM | M112: B | N112: J | O112: 291 | P112: 232 | Q112: 10 | R112: N | S112: N | T112: 49 | U112: 49H | V112: 02 | W112: X | X112: N
E113: SC6 | F113: GHS | I113: 119 | J113: TWINSTARC | K113: GHS | L113: AT | M113: B | N113: J | O113: 298 | P113: 232 | Q113: 10 | R113: N | S113: N | T113: 50 | U113: 50H | V113: 02 | W113: X | X113: N
E114: SIGMA PLUS | F114: ? | I114: 120 | J114: TWINSTARC | K114: HS | L114: AT | M114: B | N114: J | O114: 298 | P114: 232 | Q114: 10 | R114: N | S114: N | T114: 50 | U114: 50H | V114: 02 | W114: X | X114: N
E115: SIGMA PLUS | F115: Z | I115: 121 | J115: TWINSTARC | K115: ZHS | L115: AT | M115: B | N115: J | O115: 298 | P115: 232 | Q115: 10 | R115: N | S115: N | T115: 50 | U115: 50H | V115: 02 | W115: X | X115: N
E116: SIGMA PLUS | F116: ZHS | I116: 123 | J116: D | K116: GHS | L116: M | M116: B | N116: J | O116: 107 | P116: 133 | Q116: 10 | R116: N | S116: N | T116: 05 | U116: 05H | V116: 02 | W116: X | X116: N
E117: SIGMA PLUS | F117: HS | I117: 124 | J117: D | K117: HS | L117: M | M117: B | N117: J | O117: 107 | P117: 133 | Q117: 10 | R117: N | S117: N | T117: 05 | U117: 05H | V117: 02 | W117: X | X117: N
E118: SIGMA PLUS | F118: GHS | I118: 125 | J118: D | K118: ZHS | L118: M | M118: B | N118: J | O118: 107 | P118: 133 | Q118: 10 | R118: N | S118: N | T118: 05 | U118: 05H | V118: 02 | W118: X | X118: N
E119: K6TL IT | F119: ? | I119: 126 | J119: PHT | K119: HS | L119: Q | M119: I | N119: J | O119: 162 | P119: 217 | Q119: 5 | R119: N | S119: N | T119: 57 | U119: 57 | V119: 01 | W119: X | X119: N
E120: K6TL IT | F120: Z | I120: 127 | J120: PHT | K120: HS | L120: Q | M120: I | N120: J | O120: 163 | P120: 217 | Q120: 6 | R120: N | S120: N | T120: 57 | U120: 57 | V120: 01 | W120: X | X120: N
E121: K6TL IT | F121: ZHS | I121: 128 | J121: PHT | K121: HS | L121: Q | M121: I | N121: J | O121: 362 | P121: 217 | Q121: 5 | R121: N | S121: N | T121: 57 | U121: 57 | V121: 01 | W121: X | X121: N
E122: K6TL IT | F122: HS | I122: 129 | J122: RS | K122: HS | L122: Q | M122: I | N122: J | O122: 022 | P122: 050 | Q122: 5 | R122: N | S122: N | T122: 51 | U122: 51 | V122: 01 | W122: X | X122: N
E123: K6TL IT | F123: GHS | I123: 130 | J123: DISC | K123: HS | L123: Q | M123: I | N123: J | O123: 106 | P123: 175 | Q123: 8 | R123: N | S123: N | T123: 82 | U123: 82 | V123: 01 | W123: X | X123: N
E124: T250 IT | F124: ? | I124: 131 | J124: IXKG | K124: HS | L124: Q | M124: I | N124: J | O124: 108 | P124: 072 | Q124: 5 | R124: N | S124: N | T124: 81 | U124: 81 | V124: 01 | W124: X | X124: N
E125: T250 IT | F125: Z | I125: 132 | J125: IXKG | K125: HS | L125: Q | M125: I | N125: J | O125: 109 | P125: 072 | Q125: 5 | R125: N | S125: N | T125: 81 | U125: 81 | V125: 01 | W125: X | X125: N
E126: T250 IT | F126: ZHS | I126: 133 | J126: RGB1 | K126: GHS | L126: IA | M126: B | N126: J | O126: 090 | P126: 019 | Q126: 5 | R126: N | S126: J | T126: 31 | U126: 31H | V126: 02 | W126: X | X126: N
E127: T250 IT | F127: HS | I127: 134 | J127: RGB1 | K127: HS | L127: IA | M127: B | N127: J | O127: 090 | P127: 019 | Q127: 5 | R127: N | S127: J | T127: 31 | U127: 31H | V127: 02 | W127: X | X127: N
E128: T250 IT | F128: GHS | I128: 135 | J128: RGB1 | K128: ZHS | L128: IA | M128: B | N128: J | O128: 090 | P128: 019 | Q128: 5 | R128: N | S128: J | T128: 31 | U128: 31H | V128: 02 | W128: X | X128: N
E129: SIGMA PLUS IT | F129: ? | I129: 136 | J129: RGB2 | K129: GHS | L129: IA | M129: B | N129: J | O129: 090 | P129: 019 | Q129: 5 | R129: N | S129: J | T129: 31 | U129: 31H | V129: 02 | W129: X | X129: N
E130: SIGMA PLUS IT | F130: Z | I130: 137 | J130: RGB2 | K130: HS | L130: IA | M130: B | N130: J | O130: 090 | P130: 019 | Q130: 5 | R130: N | S130: J | T130: 31 | U130: 31H | V130: 02 | W130: X | X130: N
E131: SIGMA PLUS IT | F131: ZHS | I131: 138 | J131: RGB2 | K131: ZHS | L131: IA | M131: B | N131: J | O131: 090 | P131: 019 | Q131: 5 | R131: N | S131: J | T131: 31 | U131: 31H | V131: 02 | W131: X | X131: N
E132: SIGMA PLUS IT | F132: HS | I132: 139 | J132: RGB3 | K132: GHS | L132: IA | M132: B | N132: J | O132: 090 | P132: 019 | Q132: 5 | R132: N | S132: J | T132: 31 | U132: 31H | V132: 02 | W132: X | X132: N
E133: SIGMA PLUS IT | F133: GHS | I133: 140 | J133: RGB3 | K133: HS | L133: IA | M133: B | N133: J | O133: 090 | P133: 019 | Q133: 5 | R133: N | S133: J | T133: 31 | U133: 31H | V133: 02 | W133: X | X133: N
E134: IX6SR IT | F134: ? | I134: 141 | J134: RGB3 | K134: ZHS | L134: IA | M134: B | N134: J | O134: 090 | P134: 019 | Q134: 5 | R134: N | S134: J | T134: 31 | U134: 31H | V134: 02 | W134: X | X134: N
E135: IX6SR IT | F135: Z | I135: 142 | J135: RGB4 | K135: GHS | L135: IA | M135: B | N135: J | O135: 090 | P135: 019 | Q135: 5 | R135: N | S135: J | T135: 31 | U135: 31H | V135: 02 | W135: X | X135: N
E136: IX6SR IT | F136: ZHS | I136: 143 | J136: RGB4 | K136: HS | L136: IA | M136: B | N136: J | O136: 090 | P136: 019 | Q136: 5 | R136: N | S136: J | T136: 31 | U136: 31H | V136: 02 | W136: X | X136: N
E137: IX6SR IT | F137: HS | I137: 144 | J137: RGB4 | K137: ZHS | L137: IA | M137: B | N137: J | O137: 090 | P137: 019 | Q137: 5 | R137: N | S137: J | T137: 31 | U137: 31H | V137: 02 | W137: X | X137: N
E138: IX6SR IT | F138: GHS | I138: 145 | J138: RGB5 | K138: GHS | L138: IA | M138: B | N138: J | O138: 090 | P138: 019 | Q138: 5 | R138: N | S138: J | T138: 31 | U138: 31H | V138: 02 | W138: X | X138: N
E139: IXTWINSTAR | F139: ? | I139: 146 | J139: RGB5 | K139: HS | L139: IA | M139: B | N139: J | O139: 090 | P139: 019 | Q139: 5 | R139: N | S139: J | T139: 31 | U139: 31H | V139: 02 | W139: X | X139: N
E140: IXTWINSTAR | F140: Z | I140: 147 | J140: RGB5 | K140: ZHS | L140: IA | M140: B | N140: J | O140: 090 | P140: 019 | Q140: 5 | R140: N | S140: J | T140: 31 | U140: 31H | V140: 02 | W140: X | X140: N
E141: IXTWINSTAR | F141: ZHS | I141: 148 | J141: IXTWIDO | K141: GHS | L141: AW | M141: B | N141: J | O141: 280 | P141: 234 | Q141: 6 | R141: N | S141: N | T141: 62 | U141: 62H | V141: 02 | W141: X | X141: N
E142: IXTWINSTAR | F142: HS | I142: 149 | J142: IXTWIDO | K142: HS | L142: AW | M142: B | N142: J | O142: 280 | P142: 234 | Q142: 6 | R142: N | S142: N | T142: 62 | U142: 62H | V142: 02 | W142: X | X142: N
E143: IXTWINSTAR | F143: GHS | I143: 150 | J143: IXTWIDO | K143: ZHS | L143: AW | M143: B | N143: J | O143: 280 | P143: 234 | Q143: 6 | R143: N | S143: N | T143: 62 | U143: 62H | V143: 02 | W143: X | X143: N
E144: IXTWINSTAR | F144: CE | I144: 151 | J144: IXTWIDO | K144: Z | L144: AX | M144: B | N144: J | O144: 281 | P144: 234 | Q144: 6 | R144: N | S144: N | T144: 62 | U144: 62H | V144: 02 | W144: X | X144: N
E145: IXTWIDO | F145: ? | I145: 152 | J145: IXTECO | K145: GHS | L145: AY | M145: B | N145: J | O145: 270 | P145: 234 | Q145: 6 | R145: N | S145: N | T145: 60 | U145: 60H | V145: 02 | W145: X | X145: N
E146: IXTWIDO | F146: Z | I146: 153 | J146: IXTECO | K146: HS | L146: AY | M146: B | N146: J | O146: 270 | P146: 234 | Q146: 6 | R146: N | S146: N | T146: 60 | U146: 60H | V146: 02 | W146: X | X146: N
E147: IXTWIDO | F147: ZHS | I147: 154 | J147: IXTECO | K147: ZHS | L147: AY | M147: B | N147: J | O147: 270 | P147: 234 | Q147: 6 | R147: N | S147: N | T147: 60 | U147: 60H | V147: 02 | W147: X | X147: N
E148: IXTWIDO | F148: HS | I148: 155 | J148: IXTECO | K148: Z | L148: AZ | M148: B | N148: J | O148: 271 | P148: 234 | Q148: 6 | R148: N | S148: N | T148: 60 | U148: 60H | V148: 02 | W148: X | X148: N
E149: IXTWIDO | F149: GHS | I149: 156 | J149: IX6HT | K149: GHS | L149: AV | M149: B | N149: J | O149: 256 | P149: 235 | Q149: 6 | R149: N | S149: N | T149: 64 | U149: 64H | V149: 02 | W149: X | X149: N
E150: IXTWIDO | F150: CE | I150: 157 | J150: IX6HT | K150: HS | L150: AV | M150: B | N150: J | O150: 256 | P150: 235 | Q150: 6 | R150: N | S150: N | T150: 64 | U150: 64H | V150: 02 | W150: X | X150: N
E151: IXTECO | F151: ? | I151: 158 | J151: IX6HT | K151: ZHS | L151: AV | M151: B | N151: J | O151: 256 | P151: 235 | Q151: 6 | R151: N | S151: N | T151: 64 | U151: 64H | V151: 02 | W151: X | X151: N
E152: IXTECO | F152: Z | I152: 159 | J152: TWINSTARC | K152: GHS | L152: AU | M152: B | N152: J | O152: 299 | P152: 232 | Q152: 10 | R152: N | S152: N | T152: 50 | U152: 50H | V152: 02 | W152: X | X152: N
E153: IXTECO | F153: ZHS | I153: 160 | J153: TWINSTARC | K153: HS | L153: AU | M153: B | N153: J | O153: 299 | P153: 232 | Q153: 10 | R153: N | S153: N | T153: 50 | U153: 50H | V153: 02 | W153: X | X153: N
E154: IXTECO | F154: HS | I154: 161 | J154: TWINSTARC | K154: ZHS | L154: AU | M154: B | N154: J | O154: 299 | P154: 232 | Q154: 10 | R154: N | S154: N | T154: 50 | U154: 50H | V154: 02 | W154: X | X154: N
E155: IXTECO | F155: GHS | I155: 162 | J155: IX7TW | K155: GHS | L155: BA | M155: B | N155: J | O155: 282 | P155: 234 | Q155: 6 | R155: N | S155: J | T155: 63 | U155: 63H | V155: 02 | W155: X | X155: N
E156: IXTECO | F156: CE | I156: 163 | J156: IX7TW | K156: HS | L156: BA | M156: B | N156: J | O156: 282 | P156: 234 | Q156: 6 | R156: N | S156: J | T156: 63 | U156: 63H | V156: 02 | W156: X | X156: N
E157: IXSATS | F157: ? | I157: 164 | J157: IX7TW | K157: ZHS | L157: BA | M157: B | N157: J | O157: 282 | P157: 234 | Q157: 6 | R157: N | S157: J | T157: 63 | U157: 63H | V157: 02 | W157: X | X157: N
E158: IXSATS | F158: Z | I158: 165 | J158: IX7TE | K158: GHS | L158: BB | M158: B | N158: J | O158: 273 | P158: 234 | Q158: 6 | R158: N | S158: J | T158: 61 | U158: 61H | V158: 02 | W158: X | X158: N
E159: IXSATS | F159: ZHS | I159: 166 | J159: IX7TE | K159: HS | L159: BB | M159: B | N159: J | O159: 273 | P159: 234 | Q159: 6 | R159: N | S159: J | T159: 61 | U159: 61H | V159: 02 | W159: X | X159: N
E160: IXSATS | F160: HS | I160: 167 | J160: IX7TE | K160: ZHS | L160: BB | M160: B | N160: J | O160: 273 | P160: 234 | Q160: 6 | R160: N | S160: J | T160: 61 | U160: 61H | V160: 02 | W160: X | X160: N
E161: IXSATS | F161: GHS | I161: 168 | J161: IX6SRS | K161: GHS | L161: AF | M161: B | N161: J | O161: 250 | P161: 199 | Q161: 5 | R161: N | S161: J | T161: 39 | U161: 39H | V161: 02 | W161: X | X161: N
E162: IXSATS | F162: CE | I162: 169 | J162: IX6SRS | K162: HS | L162: AF | M162: B | N162: J | O162: 250 | P162: 199 | Q162: 5 | R162: N | S162: J | T162: 39 | U162: 39H | V162: 02 | W162: X | X162: N
E163: IX6HT | F163: ? | I163: 170 | J163: IX6SRS | K163: ZHS | L163: AF | M163: B | N163: J | O163: 250 | P163: 199 | Q163: 5 | R163: N | S163: J | T163: 39 | U163: 39H | V163: 02 | W163: X | X163: N
E164: IX6HT | F164: Z | I164: 171 | J164: IX6SRS | K164: GHS | L164: AG | M164: B | N164: J | O164: 251 | P164: 199 | Q164: 5 | R164: N | S164: J | T164: 39 | U164: 39H | V164: 02 | W164: X | X164: N
E165: IX6HT | F165: ZHS | I165: 172 | J165: IX6SRS | K165: HS | L165: AG | M165: B | N165: J | O165: 251 | P165: 199 | Q165: 5 | R165: N | S165: J | T165: 39 | U165: 39H | V165: 02 | W165: X | X165: N
E166: IX6HT | F166: HS | I166: 173 | J166: IX6SRS | K166: ZHS | L166: AG | M166: B | N166: J | O166: 251 | P166: 199 | Q166: 5 | R166: N | S166: J | T166: 39 | U166: 39H | V166: 02 | W166: X | X166: N
E167: IX6HT | F167: GHS | I167: 174 | J167: IX6SRS | K167: GHS | L167: AH | M167: B | N167: J | O167: 252 | P167: 199 | Q167: 5 | R167: N | S167: J | T167: 39 | U167: 39H | V167: 02 | W167: X | X167: N
E168: IX6HT | F168: CE | I168: 175 | J168: IX6SRS | K168: HS | L168: AH | M168: B | N168: J | O168: 252 | P168: 199 | Q168: 5 | R168: N | S168: J | T168: 39 | U168: 39H | V168: 02 | W168: X | X168: N
E169: TWINSTARC | F169: ? | I169: 176 | J169: IX6SRS | K169: ZHS | L169: AH | M169: B | N169: J | O169: 252 | P169: 199 | Q169: 5 | R169: N | S169: J | T169: 39 | U169: 39H | V169: 02 | W169: X | X169: N
E170: TWINSTARC | F170: Z | I170: 177 | J170: IX6SRS | K170: GHS | L170: AI | M170: B | N170: J | O170: 253 | P170: 199 | Q170: 5 | R170: N | S170: J | T170: 39 | U170: 39H | V170: 02 | W170: X | X170: N
E171: TWINSTARC | F171: ZHS | I171: 178 | J171: IX6SRS | K171: HS | L171: AI | M171: B | N171: J | O171: 253 | P171: 199 | Q171: 5 | R171: N | S171: J | T171: 39 | U171: 39H | V171: 02 | W171: X | X171: N
E172: TWINSTARC | F172: HS | I172: 179 | J172: IX6SRS | K172: ZHS | L172: AI | M172: B | N172: J | O172: 253 | P172: 199 | Q172: 5 | R172: N | S172: J | T172: 39 | U172: 39H | V172: 02 | W172: X | X172: N
E173: TWINSTARC | F173: GHS | I173: 180 | J173: IX6SRS | K173: GHS | L173: AK | M173: B | N173: J | O173: 254 | P173: 199 | Q173: 5 | R173: N | S173: J | T173: 39 | U173: 39H | V173: 02 | W173: X | X173: N
E174: TWINSTARC | F174: CE | I174: 181 | J174: IX6SRS | K174: HS | L174: AK | M174: B | N174: J | O174: 254 | P174: 199 | Q174: 5 | R174: N | S174: J | T174: 39 | U174: 39H | V174: 02 | W174: X | X174: N
E175: 5000 | F175: GHS | I175: 182 | J175: IX6SRS | K175: ZHS | L175: AK | M175: B | N175: J | O175: 254 | P175: 199 | Q175: 5 | R175: N | S175: J | T175: 39 | U175: 39H | V175: 02 | W175: X | X175: N
E176: 5000 | F176: HS | I176: 183 | J176: SIGMA PLUS | K176: GHS | L176: AP | M176: B | N176: J | O176: 146 | P176: 019 | Q176: 6 | R176: N | S176: J | T176: 43 | U176: 43H | V176: 02 | W176: X | X176: N
E177: 5000 | F177: Z | I177: 184 | J177: SIGMA PLUS | K177: HS | L177: AP | M177: B | N177: J | O177: 146 | P177: 019 | Q177: 6 | R177: N | S177: J | T177: 43 | U177: 43H | V177: 02 | W177: X | X177: N
E178: 5000 | F178: ZHS | I178: 185 | J178: SIGMA PLUS | K178: ZHS | L178: AP | M178: B | N178: J | O178: 146 | P178: 019 | Q178: 6 | R178: N | S178: J | T178: 43 | U178: 43H | V178: 02 | W178: X | X178: N
E179: 5000 | F179: ? | I179: 186 | J179: IX7TW | K179: GHS | L179: BC | M179: B | N179: J | O179: 283 | P179: 234 | Q179: 6 | R179: N | S179: J | T179: 63 | U179: 63H | V179: 02 | W179: X | X179: N
E180: 2000 | F180: GHS | I180: 187 | J180: IX7TW | K180: HS | L180: BC | M180: B | N180: J | O180: 283 | P180: 234 | Q180: 6 | R180: N | S180: J | T180: 63 | U180: 63H | V180: 02 | W180: X | X180: N
E181: 2000 | F181: HS | I181: 188 | J181: IX7TW | K181: ZHS | L181: BC | M181: B | N181: J | O181: 283 | P181: 234 | Q181: 6 | R181: N | S181: J | T181: 63 | U181: 63H | V181: 02 | W181: X | X181: N
E182: 2000 | F182: ZHS | I182: 189 | J182: IX7TW | K182: GHS | L182: BD | M182: B | N182: J | O182: 284 | P182: 234 | Q182: 6 | R182: N | S182: J | T182: 63 | U182: 63H | V182: 02 | W182: X | X182: N
E183: 2000 | F183: Z | I183: 190 | J183: IX7TW | K183: HS | L183: BD | M183: B | N183: J | O183: 284 | P183: 234 | Q183: 6 | R183: N | S183: J | T183: 63 | U183: 63H | V183: 02 | W183: X | X183: N
E184: 2000 | F184: ? | I184: 191 | J184: IX7TW | K184: ZHS | L184: BD | M184: B | N184: J | O184: 284 | P184: 234 | Q184: 6 | R184: N | S184: J | T184: 63 | U184: 63H | V184: 02 | W184: X | X184: N
E185: E | F185: GHS | I185: 192 | J185: IX7TW | K185: GHS | L185: BE | M185: B | N185: J | O185: 288 | P185: 234 | Q185: 6 | R185: N | S185: J | T185: 63 | U185: 63H | V185: 02 | W185: X | X185: N
E186: E | F186: HS | I186: 193 | J186: IX7TW | K186: HS | L186: BE | M186: B | N186: J | O186: 288 | P186: 234 | Q186: 6 | R186: N | S186: J | T186: 63 | U186: 63H | V186: 02 | W186: X | X186: N
E187: E | F187: ZHS | I187: 194 | J187: IX7TW | K187: ZHS | L187: BE | M187: B | N187: J | O187: 288 | P187: 234 | Q187: 6 | R187: N | S187: J | T187: 63 | U187: 63H | V187: 02 | W187: X | X187: N
E188: E | F188: Z | I188: 195 | J188: IX7TE | K188: GHS | L188: BF | M188: B | N188: J | O188: 274 | P188: 234 | Q188: 6 | R188: N | S188: J | T188: 61 | U188: 61H | V188: 02 | W188: X | X188: N
E189: E | F189: ? | I189: 196 | J189: IX7TE | K189: HS | L189: BF | M189: B | N189: J | O189: 274 | P189: 234 | Q189: 6 | R189: N | S189: J | T189: 61 | U189: 61H | V189: 02 | W189: X | X189: N
E190: BPS | F190: GHS | I190: 197 | J190: IX7TE | K190: ZHS | L190: BF | M190: B | N190: J | O190: 274 | P190: 234 | Q190: 6 | R190: N | S190: J | T190: 61 | U190: 61H | V190: 02 | W190: X | X190: N
E191: BPS | F191: HS | I191: 198 | J191: IX7TE | K191: GHS | L191: BG | M191: B | N191: J | O191: 278 | P191: 234 | Q191: 6 | R191: N | S191: J | T191: 61 | U191: 61H | V191: 02 | W191: X | X191: N
E192: BPS | F192: ZHS | I192: 199 | J192: IX7TE | K192: HS | L192: BG | M192: B | N192: J | O192: 278 | P192: 234 | Q192: 6 | R192: N | S192: J | T192: 61 | U192: 61H | V192: 02 | W192: X | X192: N
E193: BPS | F193: Z | I193: 200 | J193: IX7TE | K193: ZHS | L193: BG | M193: B | N193: J | O193: 278 | P193: 234 | Q193: 6 | R193: N | S193: J | T193: 61 | U193: 61H | V193: 02 | W193: X | X193: N
E194: BPS | F194: ? | I194: 201 | J194: HT | K194: GHS | L194: Q | M194: I | N194: J | O194: 062 | P194: 180 | Q194: 6 | R194: N | S194: N | T194: 56 | U194: 56 | V194: 01 | W194: X | X194: N
E195: SCX | F195: GHS | I195: 203 | J195: HT | K195: HS | L195: Q | M195: I | N195: J | O195: 062 | P195: 180 | Q195: 6 | R195: N | S195: N | T195: 56 | U195: 56 | V195: 01 | W195: X | X195: N
E196: SCX | F196: HS | I196: 205 | J196: RS | K196: GHS | L196: Q | M196: I | N196: J | O196: 022 | P196: 050 | Q196: 5 | R196: N | S196: N | T196: 51 | U196: 51 | V196: 01 | W196: X | X196: N
E197: SCX | F197: ZHS | I197: 206 | J197: RS | K197: Z | L197: Q | M197: I | N197: J | O197: 022 | P197: 050 | Q197: 5 | R197: N | S197: N | T197: 51 | U197: 51 | V197: 01 | W197: X | X197: N
E198: SCX | F198: Z | I198: 207 | J198: DISC | K198: Z | L198: Q | M198: I | N198: J | O198: 106 | P198: 175 | Q198: 8 | R198: N | S198: N | T198: 82 | U198: 82 | V198: 01 | W198: X | X198: N
E199: SCX | F199: ? | I199: 208 | J199: DISC | K199: GHS | L199: Q | M199: I | N199: J | O199: 106 | P199: 175 | Q199: 8 | R199: N | S199: N | T199: 82 | U199: 82 | V199: 01 | W199: X | X199: N
E200: IX7TW | F200: ? | I200: 209 | J200: IXKG | K200: Z | L200: Q | M200: I | N200: J | O200: 108 | P200: 072 | Q200: 5 | R200: N | S200: N | T200: 81 | U200: 81 | V200: 01 | W200: X | X200: N
... 73 more rows

Sheet typen (hidden)
A1: 333|SIRIUS | B1: =VLOOKUP($A1,$A3:$AG2596,2,0) -> 333 | C1: =VLOOKUP($A1,$A3:$AG2596,3,0) -> SIRIUS | D1: =VLOOKUP($A1,$A3:$AG2596,4,0) -> 1 | E1: =VLOOKUP($A1,$A3:$AG2596,5,0) -> 1 | F1: =VLOOKUP($A1,$A3:$AG2596,6,0) -> 1 | G1: =VLOOKUP($A1,$A3:$AG2596,7,0) -> 219.9 | H1: =VLOOKUP($A1,$A3:$AG2596,8,0) -> 1 | I1: =VLOOKUP($A1,$A3:$AG2596,9,0) -> 1 | J1: =VLOOKUP($A1,$A3:$AG2596,10,0) -> 2 | K1: =VLOOKUP($A1,$A3:$AG2596,11,0) -> D | L1: =VLOOKUP($A1,$A3:$AG2596,12,0) -> n | M1: =VLOOKUP($A1,$A3:$AG2596,13,0) -> 333SIRIUS | N1: =VLOOKUP($A1,$A3:$AG2596,14,0) -> 0 | O1: =VLOOKUP($A1,$A3:$AG2596,15,0) -> 0 | P1: =VLOOKUP($A1,$A3:$AG2596,16,0) -> 0 | Q1: =VLOOKUP($A1,$A3:$AG2596,17,0) -> 0 | R1: =VLOOKUP($A1,$A3:$AG2596,18,0) -> 0 | S1: =VLOOKUP($A1,$A3:$AG2596,19,0) -> 0 | T1: =VLOOKUP($A1,$A3:$AG2596,20,0) -> 0 | U1: =VLOOKUP($A1,$A3:$AG2596,21,0) -> 0 | V1: =VLOOKUP($A1,$A3:$AG2596,22,0) -> 0 | W1: =VLOOKUP($A1,$A3:$AG2596,23,0) -> 0 | X1: =VLOOKUP($A1,$A3:$AG2596,24,0) -> 0 | Y1: =VLOOKUP($A1,$A3:$AG2596,25,0) -> 0 | Z1: =VLOOKUP($A1,$A3:$AG2596,26,0) -> 0 | AA1: =VLOOKUP($A1,$A3:$AG2596,27,0) -> 0 | AB1: =VLOOKUP($A1,$A3:$AG2596,28,0) -> 0 | AC1: =VLOOKUP($A1,$A3:$AG2596,29,0) -> 0 | AD1: =VLOOKUP($A1,$A3:$AG2596,30,0) -> 0 | AE1: =VLOOKUP($A1,$A3:$AG2596,31,0) -> 0 | AF1: =VLOOKUP($A1,$A3:$AG2596,32,0) -> 0 | AG1: =VLOOKUP($A1,$A3:$AG2596,33,0) -> 0 | AH1: =VLOOKUP($A1,$A3:$AH2596,34,0) -> B | AK1: =VLOOKUP($A1,$A3:$AK2596,37,0) -> 0 | AL1: Aufpreis Z nach HS | AM1: Aufpreis HS nachGHS | AO1: =VLOOKUP($A1,$A3:$AO2596,41,0) -> M | AP1: =VLOOKUP($A1,$A3:$AP2596,42,0) -> 0
A2: Typ SYS | B2: Typ | C2: System | D2: PZ/ZHS | E2: PHS | F2: PGHS | G2: P? | H2: L_Länge | I2: L_Farbe | J2: l_ausf | K2: Doppel | L2: Neuanlage | M2: MATERIAL | N2: Merkmal1 | O2: Mwert1 | P2: Merkmal2 | Q2: Mwert2 | R2: Merkmal3 | S2: Mwert3 | T2: Merkmal4 | U2: Mwert4 | V2: Merkmal5 | W2: Mwert5 | X2: Merkmal6 | Y2: Mwert6 | Z2: Merkmal7 | AA2: Mwert7 | AB2: Merkmal8 | AC2: Mwert8 | AD2: Merkmal9 | AE2: Mwert9 | AF2: Merkmal10 | AG2: Mwert10 | AH2: Netto | AI2: ENET | AJ2: COD ES | AK2: Preisanteil merkmale | AL2: 7.1 | AM2: 22.2 | AN2: Doppel | AO2: Variante ? | AP2: Text | AQ2: fam
A3: =CONCATENATE(B3,"|",C3) -> 203994 675011 0004|KON | B3: 203994 675011 0004 | C3: KON | D3: 1 | E3: 1 | F3: 1 | G3: 0 | H3: 0 | I3: 0 | J3: 0 | M3: 203994 675011 0004
A4: 2208|IX6HT | B4: 2208 | C4: IX6HT | D4: 1 | E4: 1 | F4: 1 | G4: 0.0003 | H4: 0 | I4: 4 | J4: 0 | K4: H | M4: 2208IX6HT | AH4: B | AK4: 0 | AO4: M
A5: 2208|IX6SR | B5: 2208 | C5: IX6SR | D5: 1 | E5: 1 | F5: 1 | G5: 0.0003 | H5: 0 | I5: 4 | J5: 0 | K5: H | M5: 2208IX6SR | AH5: B | AK5: 0 | AL5: 5.3 | AM5: 17.5 | AN5: Halb | AO5: M
A6: 2208|IX6SR235 | B6: 2208 | C6: IX6SR235 | D6: 1 | E6: 1 | F6: 1 | G6: 0.0003 | H6: 0 | I6: 4 | J6: 0 | K6: H | M6: 2208IX6SR235 | AO6: M
A7: 2208|IX7TE | B7: 2208 | C7: IX7TE | D7: 0 | E7: 0 | F7: 0 | G7: 0.0003 | H7: 0 | I7: 4 | J7: 0 | K7: H | M7: 2208IX7TE | AH7: B | AK7: 0 | AL7: 5.3 | AM7: 17.5 | AN7: Halb | AO7: M
A8: 2208|IX7TW | B8: 2208 | C8: IX7TW | D8: 0 | E8: 0 | F8: 0 | G8: 0.0003 | H8: 0 | I8: 4 | J8: 0 | K8: H | M8: 2208IX7TW | AH8: B | AK8: 0 | AL8: 5.3 | AM8: 17.5 | AN8: Halb | AO8: M
A9: 2208|IXTECO | B9: 2208 | C9: IXTECO | D9: 1 | E9: 1 | F9: 1 | G9: 0.0003 | H9: 0 | I9: 4 | J9: 0 | K9: H | M9: 2208IXTECO | AH9: B | AK9: 0 | AL9: 5.3 | AM9: 17.5 | AN9: Halb | AO9: M
A10: 2208|IXTWIDO | B10: 2208 | C10: IXTWIDO | D10: 1 | E10: 1 | F10: 1 | G10: 0.0003 | H10: 0 | I10: 4 | J10: 0 | K10: H | M10: 2208IXTWIDO | AH10: B | AK10: 0 | AL10: 5.3 | AM10: 17.5 | AN10: Halb | AO10: M
A11: 2222|? | B11: 2222 | C11: ? | D11: 0 | E11: 0 | F11: 0 | G11: =D11+E11+F11 -> 0 | H11: 0 | I11: 0 | J11: 0 | K11: D | L11: n | AH11: B | AK11: 0 | AO11: M
A12: 2222|D | B12: 2222 | C12: D | D12: 1 | E12: 1 | F12: 1 | G12: 3 | H12: 19 | I12: 1 | J12: 2 | K12: D | M12: 2222D | AH12: B | AK12: 0 | AO12: M
A13: 2222|IX10 | B13: 2222 | C13: IX10 | D13: 1 | E13: 1 | F13: 1 | G13: 3 | H13: 19 | I13: 1 | J13: 2 | K13: D | M13: 2222IX | AH13: B | AK13: 0 | AO13: M
A14: 2222|IX10KG | B14: 2222 | C14: IX10KG | D14: 1 | E14: 1 | F14: 1 | G14: 3 | H14: 19 | I14: 1 | J14: 2 | K14: D | L14: n | M14: 2222IXKG | AH14: B | AO14: M
A15: 2222|IX5HT | B15: 2222 | C15: IX5HT | D15: 1 | E15: 1 | F15: 1 | G15: 3 | H15: 19 | I15: 1 | J15: 2 | K15: D | L15: n | M15: 2222IX5HT | AH15: B | AO15: M
A16: 2222|IX5KG | B16: 2222 | C16: IX5KG | D16: 1 | E16: 1 | F16: 1 | G16: 3 | H16: 19 | I16: 1 | J16: 2 | K16: D | M16: 2222IX5KG | AH16: B | AO16: M
A17: 2222|IX6HT | B17: 2222 | C17: IX6HT | D17: 1 | E17: 1 | F17: 1 | G17: 3 | H17: 19 | I17: 1 | J17: 2 | K17: D | L17: n | M17: 2222IX6HT | AH17: B | AO17: M
A18: 2222|IX6KG | B18: 2222 | C18: IX6KG | D18: 1 | E18: 1 | F18: 1 | G18: =D18+E18+F18 -> 3 | H18: 19 | I18: 1 | J18: 2 | K18: D | M18: 2222IX6KG | AH18: B | AO18: M
A19: 2222|IX6SR | B19: 2222 | C19: IX6SR | D19: 1 | E19: 1 | F19: 1 | G19: =D19+E19+F19 -> 3 | H19: 19 | I19: 1 | J19: 2 | K19: D | L19: n | M19: 2222IX6SR | AH19: B | AO19: M
A20: 2222|IX6SR235 | B20: 2222 | C20: IX6SR235 | D20: 1 | E20: 1 | F20: 1 | G20: =D20+E20+F20 -> 3 | H20: 19 | I20: 1 | J20: 23 | K20: D | L20: n | M20: 2222IX6SR235 | AO20: M
A21: 2222|IX7TE | B21: 2222 | C21: IX7TE | D21: 0 | E21: 0 | F21: 0 | G21: 3 | H21: 19 | I21: 1 | J21: 2 | K21: D | L21: n | M21: 2222IX7TE | AH21: B | AO21: M
A22: 2222|IX7TW | B22: 2222 | C22: IX7TW | D22: 0 | E22: 0 | F22: 0 | G22: 3 | H22: 19 | I22: 1 | J22: 2 | K22: D | L22: n | M22: 2222IX7TW | AH22: B | AO22: M
A23: 2222|IXDAS | B23: 2222 | C23: IXDAS | D23: 1 | E23: 1 | F23: 1 | G23: 0 | H23: 19 | I23: 1 | J23: 2 | K23: D | L23: n | M23: 2222IXDAS | AH23: B | AK23: 0 | AO23: M
A24: 2222|IXHT | B24: 2222 | C24: IXHT | D24: 1 | E24: 1 | F24: 1 | G24: 0 | H24: 19 | I24: 1 | J24: 2 | K24: D | L24: n | M24: 2222IXHT | AH24: B | AO24: M
A25: 2222|IXSAT | B25: 2222 | C25: IXSAT | D25: 1 | E25: 1 | F25: 1 | G25: 3 | H25: 19 | I25: 1 | J25: 2 | K25: D | L25: n | M25: 2222IXSAT | AH25: B | AO25: M
A26: 2222|IXSATS | B26: 2222 | C26: IXSATS | D26: 1 | E26: 1 | F26: 1 | H26: 19 | I26: 1 | J26: 2 | K26: H | M26: 2222IXSATS
A27: 2222|IXTECO | B27: 2222 | C27: IXTECO | D27: 1 | E27: 1 | F27: 1 | G27: 3 | H27: 19 | I27: 1 | J27: 2 | K27: D | L27: n | M27: 2222IXTECO | AH27: B | AO27: M
A28: 2222|IXTWIDO | B28: 2222 | C28: IXTWIDO | D28: 1 | E28: 1 | F28: 1 | G28: 3 | H28: 19 | I28: 1 | J28: 2 | K28: D | L28: n | M28: 2222IXTWIDO | AH28: B | AO28: M
A29: 2222|IXTWINSTAR | B29: 2222 | C29: IXTWINSTAR | D29: 1 | E29: 1 | F29: 1 | G29: 3 | H29: 19 | I29: 1 | J29: 2 | K29: D | L29: n | M29: 2222IXSTAR | AH29: B | AO29: M
A30: 2222|RGB | B30: 2222 | C30: RGB | D30: 1 | E30: 1 | F30: 1 | G30: 3e-05 | H30: 19 | I30: 1 | J30: 2 | K30: D | L30: n | M30: 2222RGB | AH30: B | AK30: 0 | AO30: M
A31: 2222|RS5 | B31: 2222 | C31: RS5 | D31: 1 | E31: 1 | F31: 1 | G31: =D31+E31+F31 -> 3 | H31: 19 | I31: 1 | J31: 2 | K31: D | L31: n | M31: 2222RS5 | AH31: B | AO31: M
A32: 2222|RS6 | B32: 2222 | C32: RS6 | D32: 1 | E32: 1 | F32: 1 | G32: 3 | H32: 19 | I32: 1 | J32: 2 | K32: D | M32: 2222RS6 | AH32: B | AK32: 0 | AO32: M
A33: 2222|RS8 | B33: 2222 | C33: RS8 | D33: 1 | E33: 1 | F33: 1 | G33: 3 | H33: 19 | I33: 1 | J33: 2 | K33: D | L33: n | M33: 2222RS8 | AH33: B | AK33: 0 | AO33: M
A34: 2222|S5 | B34: 2222 | C34: S5 | D34: 1 | E34: 1 | F34: 1 | G34: 3 | H34: 19 | I34: 1 | J34: 2 | K34: D | M34: 2222S5 | AH34: B | AK34: 0 | AO34: M
A35: 2222|S6 | B35: 2222 | C35: S6 | D35: 1 | E35: 1 | F35: 1 | G35: 3 | H35: 12 | I35: 1 | J35: 2 | K35: D | M35: 2222S6 | AH35: B | AK35: 0 | AO35: M
A36: 2222|SC5 | B36: 2222 | C36: SC5 | D36: 1 | E36: 1 | F36: 1 | G36: 3 | H36: 19 | I36: 1 | J36: 2 | K36: D | M36: 2222SC5 | AH36: B | AK36: 0 | AO36: M
A37: 2222|SC6 | B37: 2222 | C37: SC6 | D37: 1 | E37: 1 | F37: 1 | G37: 3 | H37: 19 | I37: 1 | J37: 2 | K37: D | M37: 2222SC6 | AH37: B | AK37: 0 | AO37: M
A38: 2222|TWINSTARC | B38: 2222 | C38: TWINSTARC | D38: 1 | E38: 1 | F38: 1 | G38: 3 | H38: 19 | I38: 1 | J38: 2 | K38: D | L38: n | M38: 2222IXSTARC | AH38: B | AO38: M
A39: 2222CHK6CH|IX6HT | B39: 2222CHK6CH | C39: IX6HT | D39: 1 | E39: 1 | F39: 1 | G39: 3 | H39: 19 | I39: 1 | J39: 2 | K39: D | L39: n | M39: 2222IX6HT | N39: B_KNAUFAUSF | O39: KNK6CH | P39: B_MITNEHMERAUSF | Q39: MICH | AH39: B | AO39: M
A40: 2222H|IX10KG | B40: 2222H | C40: IX10KG | D40: 1 | E40: 1 | F40: 1 | G40: 3 | H40: 20 | I40: 1 | J40: 2 | K40: D | L40: n | M40: 2222IXKGH | AH40: B | AO40: M
A41: 2222H|IX5HT | B41: 2222H | C41: IX5HT | D41: 1 | E41: 1 | F41: 1 | G41: 3 | H41: 20 | I41: 1 | J41: 2 | K41: D | L41: n | M41: 2222IX5HTH | AH41: B | AO41: M
A42: 2222H|IX5KG | B42: 2222H | C42: IX5KG | D42: 1 | E42: 1 | F42: 1 | G42: 3 | H42: 20 | I42: 1 | J42: 2 | K42: D | M42: 2222IX5KGH | AH42: B | AO42: M
A43: 2222H|IX6HT | B43: 2222H | C43: IX6HT | D43: 1 | E43: 1 | F43: 1 | H43: 20 | I43: 4 | J43: 8 | K43: H | M43: 2222IX6HTH | AH43: B | AO43: M
A44: 2222H|IX6KG | B44: 2222H | C44: IX6KG | D44: 1 | E44: 1 | F44: 1 | G44: 3 | H44: 20 | I44: 1 | J44: 2 | K44: D | M44: 2222IX6KGH | AH44: B | AO44: M
A45: 2222H|IX6SR | B45: 2222H | C45: IX6SR | D45: 1 | E45: 1 | F45: 1 | H45: 20 | I45: 4 | J45: 8 | K45: H | M45: 2222IX6SRH | AH45: B | AO45: M
A46: 2222H|IX6SR235 | B46: 2222H | C46: IX6SR235 | D46: 1 | E46: 1 | F46: 1 | G46: 3 | H46: 20 | I46: 1 | J46: 19 | K46: D | L46: n | M46: 2222IX6SRH235 | AO46: M
A47: 2222H|IX7TE | B47: 2222H | C47: IX7TE | D47: 0 | E47: 0 | F47: 0 | H47: 20 | I47: 4 | J47: 8 | K47: H | M47: 2222IX7TEH | AH47: B | AO47: M
A48: 2222H|IX7TW | B48: 2222H | C48: IX7TW | D48: 0 | E48: 0 | F48: 0 | H48: 20 | I48: 4 | J48: 8 | K48: H | M48: 2222IX7TWH | AH48: B | AO48: M
A49: 2222H|IXHT | B49: 2222H | C49: IXHT | D49: 1 | E49: 1 | F49: 1 | H49: 20 | I49: 4 | J49: 8 | K49: H | M49: 2222IXHTH | AH49: B | AO49: M
A50: 2222H|IXSAT | B50: 2222H | C50: IXSAT | D50: 1 | E50: 1 | F50: 1 | G50: 3 | H50: 20 | I50: 1 | J50: 2 | K50: D | L50: n | M50: 2222IXSATH | AH50: B | AO50: M
A51: 2222H|IXSATS | B51: 2222H | C51: IXSATS | D51: 1 | E51: 1 | F51: 1 | H51: 20 | I51: 1 | J51: 2 | K51: H | M51: 2222IXSATSH
A52: 2222H|IXTECO | B52: 2222H | C52: IXTECO | D52: 1 | E52: 1 | F52: 1 | H52: 20 | I52: 4 | J52: 8 | K52: H | M52: 2222IXTECOH | AH52: B | AO52: M
A53: 2222H|IXTWIDO | B53: 2222H | C53: IXTWIDO | D53: 1 | E53: 1 | F53: 1 | H53: 20 | I53: 4 | J53: 8 | K53: H | M53: 2222IXTWIDOH | AH53: B | AO53: M
A54: 2222H|IXTWINSTAR | B54: 2222H | C54: IXTWINSTAR | D54: 1 | E54: 1 | F54: 1 | G54: 3 | H54: 20 | I54: 1 | J54: 2 | K54: D | L54: n | M54: 2222IXSTARH | AH54: B | AO54: M
A55: 2222H|TWINTEC | B55: 2222H | C55: TWINTEC | D55: 1 | E55: 1 | F55: 1 | H55: 20 | I55: 1 | J55: 2 | K55: H | M55: 2222TWINTECH
A56: 2222H|RS5 | B56: 2222H | C56: RS5 | D56: 1 | E56: 1 | F56: 1 | G56: 3 | H56: 20 | I56: 1 | J56: 2 | K56: D | L56: n | M56: 2222RS5H | AH56: B | AO56: M
A57: 2222H|TWINSTARC | B57: 2222H | C57: TWINSTARC | D57: 1 | E57: 1 | F57: 1 | G57: 3 | H57: 20 | I57: 1 | J57: 2 | K57: D | L57: n | M57: 2222IXSTARCH | AH57: B | AO57: M
A58: 2222K2CH|IXHT | B58: 2222K2CH | C58: IXHT | D58: 1 | E58: 1 | F58: 1 | G58: 0 | H58: 19 | I58: 1 | J58: 2 | K58: D | L58: n | M58: 2222IXHT | N58: B_KNAUFAUSF | O58: KNK2CH | P58: B_MITNEHMERAUSF | Q58: MICH | AH58: B | AO58: M
A59: 2222K6|? | B59: 2222K6 | C59: ? | D59: 0 | E59: 0 | F59: 0 | G59: =D59+E59+F59 -> 0 | H59: 0 | I59: 0 | J59: 0 | K59: D | L59: n | AH59: B | AK59: 0 | AO59: M
A60: 2222K6|D | B60: 2222K6 | C60: D | D60: 1 | E60: 1 | F60: 1 | G60: =D60+E60+F60 -> 3 | H60: 1 | I60: 1 | J60: 2 | K60: D | M60: 2222D | N60: B_KNAUFAUSF | O60: KNK6 | AH60: B | AK60: 0 | AO60: M
A61: 2222K6|DAS | B61: 2222K6 | C61: DAS | D61: -1 | E61: -1 | F61: -1 | G61: 0 | H61: 1 | I61: 1 | J61: 2 | K61: D | L61: n | M61: 2222IX5DAS | N61: B_KNAUFAUSF | O61: KNK6 | AH61: B | AK61: -2.2 | AO61: M
A62: 2222K6|IX10 | B62: 2222K6 | C62: IX10 | D62: 1 | E62: 1 | F62: 1 | G62: =D62+E62+F62 -> 3 | H62: 1 | I62: 1 | J62: 2 | K62: D | M62: 2222IX | N62: B_KNAUFAUSF | O62: KNK6 | AH62: B | AK62: 0 | AO62: M
A63: 2222K6|IX10KG | B63: 2222K6 | C63: IX10KG | D63: -1 | E63: -1 | F63: -1 | G63: =D63+E63+F63 -> -3 | H63: 1 | I63: 1 | J63: 2 | K63: D | L63: n | M63: 2222IXKG | N63: B_KNAUFAUSF | O63: KNK6 | AH63: B | AK63: -2.2 | AO63: M
A64: 2222K6|IX5HT | B64: 2222K6 | C64: IX5HT | D64: -1 | E64: -1 | F64: -1 | G64: =D64+E64+F64 -> -3 | H64: 1 | I64: 1 | J64: 2 | K64: D | L64: n | M64: 2222IX5HT | N64: B_KNAUFAUSF | O64: KNK6 | AH64: B | AK64: -2.2 | AO64: M
A65: 2222K6|IX5KG | B65: 2222K6 | C65: IX5KG | D65: -1 | E65: -1 | F65: -1 | G65: =D65+E65+F65 -> -3 | H65: 1 | I65: 1 | J65: 2 | K65: D | M65: 2222IX5KG | N65: B_KNAUFAUSF | O65: KNK6 | AH65: B | AK65: -2.2 | AO65: M
A66: 2222K6|IX6KG | B66: 2222K6 | C66: IX6KG | D66: -1 | E66: -1 | F66: -1 | G66: =D66+E66+F66 -> -3 | H66: 1 | I66: 1 | J66: 2 | K66: D | M66: 2222IX6KG | N66: B_KNAUFAUSF | O66: KNK6 | AH66: B | AK66: -2.2 | AO66: M
A67: =CONCATENATE(B67,"|",C67) -> 2222K6|IXDAS | B67: 2222K6 | C67: IXDAS | D67: -1 | E67: -1 | F67: -1 | G67: 0 | H67: 1 | I67: 1 | J67: 2 | K67: D | L67: n | M67: 2222IXDAS | N67: B_KNAUFAUSF | O67: KNK6 | AH67: B | AK67: -2.2 | AO67: M
A68: 2222K6|IXSAT | B68: 2222K6 | C68: IXSAT | D68: -1 | E68: -1 | F68: -1 | G68: 3 | H68: 1 | I68: 1 | J68: 2 | K68: D | L68: n | M68: 2222IXSAT | N68: B_KNAUFAUSF | O68: KNK6 | AH68: B | AK68: -2.2 | AO68: M
A69: 2222K6|IXTWINSTAR | B69: 2222K6 | C69: IXTWINSTAR | D69: -1 | E69: -1 | F69: -1 | G69: 3 | H69: 1 | I69: 1 | J69: 2 | K69: D | L69: n | M69: 2222IXSTAR | N69: B_KNAUFAUSF | O69: KNK6 | AH69: B | AK69: -2.2 | AO69: M
A70: 2222K6|RGB | B70: 2222K6 | C70: RGB | D70: 1 | E70: 1 | F70: 1 | G70: 3e-05 | H70: 1 | I70: 1 | J70: 2 | K70: D | L70: n | M70: 2222RGB | N70: B_KNAUFAUSF | O70: KNK6 | AH70: B | AK70: 0 | AO70: M
A71: 2222K6|RS5 | B71: 2222K6 | C71: RS5 | D71: -1 | E71: -1 | F71: -1 | G71: =D71+E71+F71 -> -3 | H71: 1 | I71: 1 | J71: 2 | K71: D | L71: n | M71: 2222RS5 | N71: B_KNAUFAUSF | O71: KNK6 | AH71: B | AK71: -2.2 | AO71: M
A72: 2222K6|RS6 | B72: 2222K6 | C72: RS6 | D72: 1 | E72: 1 | F72: 1 | G72: 3 | H72: 1 | I72: 1 | J72: 2 | K72: D | M72: 2222RS6 | N72: B_KNAUFAUSF | O72: KNK6 | AH72: B | AK72: 0 | AO72: M
A73: 2222K6|RS8 | B73: 2222K6 | C73: RS8 | D73: 1 | E73: 1 | F73: 1 | G73: 3 | H73: 1 | I73: 1 | J73: 2 | K73: D | L73: n | M73: 2222RS8 | N73: B_KNAUFAUSF | O73: KNK6 | AH73: B | AK73: 0 | AO73: M
A74: 2222K6|S5 | B74: 2222K6 | C74: S5 | D74: 1 | E74: 1 | F74: 1 | G74: 3 | H74: 1 | I74: 1 | J74: 2 | K74: D | M74: 2222S5 | N74: B_KNAUFAUSF | O74: KNK6 | AH74: B | AK74: 0 | AO74: M
A75: 2222K6|S6 | B75: 2222K6 | C75: S6 | D75: 1 | E75: 1 | F75: 1 | G75: 3 | H75: 12 | I75: 1 | J75: 2 | K75: D | M75: 2222S6 | N75: B_KNAUFAUSF | O75: KNK6 | AH75: B | AK75: 0 | AO75: M
A76: 2222K6|SC5 | B76: 2222K6 | C76: SC5 | D76: 1 | E76: 1 | F76: 1 | G76: 3 | H76: 1 | I76: 1 | J76: 2 | K76: D | M76: 2222SC5 | N76: B_KNAUFAUSF | O76: KNK6 | AH76: B | AK76: 0 | AO76: M
A77: 2222K6|SC6 | B77: 2222K6 | C77: SC6 | D77: 1 | E77: 1 | F77: 1 | G77: 3 | H77: 1 | I77: 1 | J77: 2 | K77: D | M77: 2222SC6 | N77: B_KNAUFAUSF | O77: KNK6 | AH77: B | AK77: 0 | AO77: M
A78: 2222K6|TWINSTAR | B78: 2222K6 | C78: TWINSTAR | D78: -1 | E78: -1 | F78: -1 | G78: 3 | H78: 1 | I78: 1 | J78: 2 | K78: D | L78: n | M78: 2222IXSTAR | N78: B_KNAUFAUSF | O78: KNK6CH | P78: B_MITNEHMERAUSF | Q78: MICH | AH78: B | AK78: -2.2 | AO78: M
A79: 2222K6|TWINSTARC | B79: 2222K6 | C79: TWINSTARC | D79: -1 | E79: -1 | F79: -1 | G79: 3 | H79: 1 | I79: 1 | J79: 2 | K79: D | L79: n | M79: 2222IXSTARC | N79: B_KNAUFAUSF | O79: KNK6 | AH79: B | AK79: -2.2 | AO79: M
A80: 2222K6CHCH|IX6SR | B80: 2222K6CHCH | C80: IX6SR | D80: 1 | E80: 1 | F80: 1 | G80: =D80+E80+F80 -> 3 | H80: 19 | I80: 1 | J80: 2 | K80: D | L80: n | M80: 2222IX6SR | N80: B_KNAUFAUSF | O80: KNK6CH | P80: B_MITNEHMERAUSF | Q80: MICH | AH80: B | AO80: M
A81: 2222K6CHCH|IX6SR235 | B81: 2222K6CHCH | C81: IX6SR235 | D81: 1 | E81: 1 | F81: 1 | G81: =D81+E81+F81 -> 3 | H81: 19 | I81: 1 | J81: 0 | K81: D | M81: 2222IX6SR235 | N81: B_KNAUFAUSF | O81: KNK6 | P81: B_MITNEHMERAUSF | Q81: MICH
A82: 2222K6CHCH|IX7TE | B82: 2222K6CHCH | C82: IX7TE | D82: 0 | E82: 0 | F82: 0 | G82: 3 | H82: 19 | I82: 1 | J82: 2 | K82: D | L82: n | M82: 2222IX7TE | N82: B_KNAUFAUSF | O82: KNK6CH | P82: B_MITNEHMERAUSF | Q82: MICH | AH82: B | AO82: M
A83: 2222K6CHCH|IX7TW | B83: 2222K6CHCH | C83: IX7TW | D83: 0 | E83: 0 | F83: 0 | G83: 3 | H83: 19 | I83: 1 | J83: 2 | K83: D | L83: n | M83: 2222IX7TW | N83: B_KNAUFAUSF | O83: KNK6CH | P83: B_MITNEHMERAUSF | Q83: MICH | AH83: B | AO83: M
A84: 2222K6CHCH|IXHT | B84: 2222K6CHCH | C84: IXHT | D84: 1 | E84: 1 | F84: 1 | G84: 0 | H84: 19 | I84: 1 | J84: 2 | K84: D | L84: n | M84: 2222IXHT | N84: B_KNAUFAUSF | O84: KNK6CH | P84: B_MITNEHMERAUSF | Q84: MICH | AH84: B | AO84: M
A85: 2222K6CHCH|IXTECO | B85: 2222K6CHCH | C85: IXTECO | D85: 1 | E85: 1 | F85: 1 | G85: 3 | H85: 19 | I85: 1 | J85: 2 | K85: D | L85: n | M85: 2222IXTECO | N85: B_KNAUFAUSF | O85: KNK6CH | P85: B_MITNEHMERAUSF | Q85: MICH | AH85: B | AO85: M
A86: 2222K6CHCH|IXTWIDO | B86: 2222K6CHCH | C86: IXTWIDO | D86: 1 | E86: 1 | F86: 1 | G86: 3 | H86: 19 | I86: 1 | J86: 2 | K86: D | L86: n | M86: 2222IXTWIDO | N86: B_KNAUFAUSF | O86: KNK6CH | P86: B_MITNEHMERAUSF | Q86: MICH | AH86: B | AO86: M
A87: 2222-LS|IX6HT | B87: 2222-LS | C87: IX6HT | D87: 1 | E87: 1 | F87: 1 | H87: 1 | I87: 1 | J87: 2 | K87: D | M87: 2222IX6HT-LS | AH87: B | AK87: 0 | AO87: M
A88: 2222-LS|IX6SR | B88: 2222-LS | C88: IX6SR | D88: 1 | E88: 1 | F88: 1 | H88: 1 | I88: 1 | J88: 2 | K88: D | M88: 2222IX6SR-LS | AH88: B | AK88: 0 | AO88: M
A89: 2222-LS|IX7TE | B89: 2222-LS | C89: IX7TE | D89: 0 | E89: 0 | F89: 0 | H89: 1 | I89: 1 | J89: 2 | K89: D | M89: 2222IX7TE-LS | AH89: B | AK89: 0 | AO89: M
A90: 2222-LS|IX7TW | B90: 2222-LS | C90: IX7TW | D90: 0 | E90: 0 | F90: 0 | H90: 1 | I90: 1 | J90: 2 | K90: D | M90: 2222IX7TW-LS | AH90: B | AK90: 0 | AO90: M
A91: 2222-LS|IXHT | B91: 2222-LS | C91: IXHT | D91: 1 | E91: 1 | F91: 1 | H91: 1 | I91: 1 | J91: 2 | K91: D | M91: 2222IXHT-LS | AH91: B | AK91: 0 | AO91: M
A92: 2222-LS|IXTECO | B92: 2222-LS | C92: IXTECO | D92: 1 | E92: 1 | F92: 1 | H92: 1 | I92: 1 | J92: 2 | K92: D | M92: 2222IXTECO-LS | AH92: B | AK92: 0 | AO92: M
A93: 2222-LS|IXTWIDO | B93: 2222-LS | C93: IXTWIDO | D93: 1 | E93: 1 | F93: 1 | H93: 1 | I93: 1 | J93: 2 | K93: D | M93: 2222IXTWIDO-LS | AH93: B | AK93: 0 | AO93: M
A94: 2222MF|IX6SR235 | B94: 2222MF | C94: IX6SR235 | D94: 1 | E94: 1 | F94: 1 | H94: 1 | I94: 1 | J94: 21 | K94: D | L94: D | M94: 2222IX6SRMF235 | AO94: M
A95: 2222-MFA|IX6HT | B95: 2222-MFA | C95: IX6HT | D95: 1 | E95: 1 | F95: 1 | H95: 1 | I95: 1 | J95: 2 | K95: D | M95: 2222IX6HT-MFA | AH95: B | AK95: 0 | AO95: M
A96: 2222-MFA|IX6SR | B96: 2222-MFA | C96: IX6SR | D96: 1 | E96: 1 | F96: 1 | H96: 1 | I96: 1 | J96: 2 | K96: D | M96: 2222IX6SR-MFA | AH96: B | AK96: 0 | AO96: M
A97: 2222-MFA|IX7TE | B97: 2222-MFA | C97: IX7TE | D97: 0 | E97: 0 | F97: 0 | H97: 1 | I97: 1 | J97: 2 | K97: D | M97: 2222IX7TE-MFA | AH97: B | AK97: 0 | AO97: M
A98: 2222-MFA|IX7TW | B98: 2222-MFA | C98: IX7TW | D98: 0 | E98: 0 | F98: 0 | H98: 1 | I98: 1 | J98: 2 | K98: D | M98: 2222IX7TW-MFA | AH98: B | AK98: 0 | AO98: M
A99: 2222-MFA|IXHT | B99: 2222-MFA | C99: IXHT | D99: 1 | E99: 1 | F99: 1 | H99: 1 | I99: 1 | J99: 2 | K99: D | M99: 2222IXHT-MFA | AH99: B | AK99: 0 | AO99: M
A100: 2222-MFA|IXTECO | B100: 2222-MFA | C100: IXTECO | D100: 1 | E100: 1 | F100: 1 | H100: 1 | I100: 1 | J100: 2 | K100: D | M100: 2222IXTECO-MFA | AH100: B | AK100: 0 | AO100: M
A101: 2222-MFA|IXTWIDO | B101: 2222-MFA | C101: IXTWIDO | D101: 1 | E101: 1 | F101: 1 | H101: 1 | I101: 1 | J101: 2 | K101: D | M101: 2222IXTWIDO-MFA | AH101: B | AK101: 0 | AO101: M
A102: 2222-MFB|IX6HT | B102: 2222-MFB | C102: IX6HT | D102: 1 | E102: 1 | F102: 1 | H102: 1 | I102: 1 | J102: 2 | K102: D | M102: 2222IX6HT-MFB | AH102: B | AK102: 0 | AO102: M
A103: 2222-MFB|IX6SR | B103: 2222-MFB | C103: IX6SR | D103: 1 | E103: 1 | F103: 1 | H103: 1 | I103: 1 | J103: 2 | K103: D | M103: 2222IX6SR-MFB | AH103: B | AK103: 0 | AO103: M
A104: 2222-MFB|IX7TE | B104: 2222-MFB | C104: IX7TE | D104: 0 | E104: 0 | F104: 0 | H104: 1 | I104: 1 | J104: 2 | K104: D | M104: 2222IX7TE-MFB | AH104: B | AK104: 0 | AO104: M
A105: 2222-MFB|IX7TW | B105: 2222-MFB | C105: IX7TW | D105: 0 | E105: 0 | F105: 0 | H105: 1 | I105: 1 | J105: 2 | K105: D | M105: 2222IX7TW-MFB | AH105: B | AK105: 0 | AO105: M
A106: 2222-MFB|IXHT | B106: 2222-MFB | C106: IXHT | D106: 1 | E106: 1 | F106: 1 | H106: 1 | I106: 1 | J106: 2 | K106: D | M106: 2222IXHT-MFB | AH106: B | AK106: 0 | AO106: M
A107: 2222-MFB|IXTECO | B107: 2222-MFB | C107: IXTECO | D107: 1 | E107: 1 | F107: 1 | H107: 1 | I107: 1 | J107: 2 | K107: D | M107: 2222IXTECO-MFB | AH107: B | AK107: 0 | AO107: M
A108: 2222-MFB|IXTWIDO | B108: 2222-MFB | C108: IXTWIDO | D108: 1 | E108: 1 | F108: 1 | H108: 1 | I108: 1 | J108: 2 | K108: D | M108: 2222IXTWIDO-MFB | AH108: B | AK108: 0 | AO108: M
A109: 2222-MFC|IX6HT | B109: 2222-MFC | C109: IX6HT | D109: 1 | E109: 1 | F109: 1 | H109: 1 | I109: 1 | J109: 2 | K109: D | M109: 2222IX6HT-MFC | AH109: B | AK109: 0 | AO109: M
A110: 2222-MFC|IX6SR | B110: 2222-MFC | C110: IX6SR | D110: 1 | E110: 1 | F110: 1 | H110: 1 | I110: 1 | J110: 2 | K110: D | M110: 2222IX6SR-MFC | AH110: B | AK110: 0 | AO110: M
A111: 2222-MFC|IX7TE | B111: 2222-MFC | C111: IX7TE | D111: 0 | E111: 0 | F111: 0 | H111: 1 | I111: 1 | J111: 2 | K111: D | M111: 2222IX7TE-MFC | AH111: B | AK111: 0 | AO111: M
A112: 2222-MFC|IX7TW | B112: 2222-MFC | C112: IX7TW | D112: 0 | E112: 0 | F112: 0 | H112: 1 | I112: 1 | J112: 2 | K112: D | M112: 2222IX7TW-MFC | AH112: B | AK112: 0 | AO112: M
A113: 2222-MFC|IXHT | B113: 2222-MFC | C113: IXHT | D113: 1 | E113: 1 | F113: 1 | H113: 1 | I113: 1 | J113: 2 | K113: D | M113: 2222IXHT-MFC | AH113: B | AK113: 0 | AO113: M
A114: 2222-MFC|IXTECO | B114: 2222-MFC | C114: IXTECO | D114: 1 | E114: 1 | F114: 1 | H114: 1 | I114: 1 | J114: 2 | K114: D | M114: 2222IXTECO-MFC | AH114: B | AK114: 0 | AO114: M
A115: 2222-MFC|IXTWIDO | B115: 2222-MFC | C115: IXTWIDO | D115: 1 | E115: 1 | F115: 1 | H115: 1 | I115: 1 | J115: 2 | K115: D | M115: 2222IXTWIDO-MFC | AH115: B | AK115: 0 | AO115: M
A116: 2222-MFD|IX6HT | B116: 2222-MFD | C116: IX6HT | D116: 1 | E116: 1 | F116: 1 | H116: 1 | I116: 1 | J116: 2 | K116: D | M116: 2222IX6HT-MFD | AH116: B | AK116: 0 | AO116: M
A117: 2222-MFD|IX6SR | B117: 2222-MFD | C117: IX6SR | D117: 1 | E117: 1 | F117: 1 | H117: 1 | I117: 1 | J117: 2 | K117: D | M117: 2222IX6SR-MFD | AH117: B | AK117: 0 | AO117: M
A118: 2222-MFD|IX7TE | B118: 2222-MFD | C118: IX7TE | D118: 0 | E118: 0 | F118: 0 | H118: 1 | I118: 1 | J118: 2 | K118: D | M118: 2222IX7TE-MFD | AH118: B | AK118: 0 | AO118: M
A119: 2222-MFD|IX7TW | B119: 2222-MFD | C119: IX7TW | D119: 0 | E119: 0 | F119: 0 | H119: 1 | I119: 1 | J119: 2 | K119: D | M119: 2222IX7TW-MFD | AH119: B | AK119: 0 | AO119: M
A120: 2222-MFD|IXHT | B120: 2222-MFD | C120: IXHT | D120: 1 | E120: 1 | F120: 1 | H120: 1 | I120: 1 | J120: 2 | K120: D | M120: 2222IXHT-MFD | AH120: B | AK120: 0 | AO120: M
A121: 2222-MFD|IXTECO | B121: 2222-MFD | C121: IXTECO | D121: 1 | E121: 1 | F121: 1 | H121: 1 | I121: 1 | J121: 2 | K121: D | M121: 2222IXTECO-MFD | AH121: B | AK121: 0 | AO121: M
A122: 2222-MFD|IXTWIDO | B122: 2222-MFD | C122: IXTWIDO | D122: 1 | E122: 1 | F122: 1 | H122: 1 | I122: 1 | J122: 2 | K122: D | M122: 2222IXTWIDO-MFD | AH122: B | AK122: 0 | AO122: M
A123: 2222-MFF|IX6HT | B123: 2222-MFF | C123: IX6HT | D123: 1 | E123: 1 | F123: 1 | H123: 1 | I123: 1 | J123: 2 | K123: D | M123: 2222IX6HT-MFF | AH123: B | AK123: 0 | AO123: M
A124: 2222-MFF|IX6SR | B124: 2222-MFF | C124: IX6SR | D124: 1 | E124: 1 | F124: 1 | H124: 1 | I124: 1 | J124: 2 | K124: D | M124: 2222IX6SR-MFF | AH124: B | AK124: 0 | AO124: M
A125: 2222-MFF|IX7TE | B125: 2222-MFF | C125: IX7TE | D125: 0 | E125: 0 | F125: 0 | H125: 1 | I125: 1 | J125: 2 | K125: D | M125: 2222IX7TE-MFF | AH125: B | AK125: 0 | AO125: M
A126: 2222-MFF|IX7TW | B126: 2222-MFF | C126: IX7TW | D126: 0 | E126: 0 | F126: 0 | H126: 1 | I126: 1 | J126: 2 | K126: D | M126: 2222IX7TW-MFF | AH126: B | AK126: 0 | AO126: M
A127: 2222-MFF|IXHT | B127: 2222-MFF | C127: IXHT | D127: 1 | E127: 1 | F127: 1 | H127: 1 | I127: 1 | J127: 2 | K127: D | M127: 2222IXHT-MFF | AH127: B | AK127: 0 | AO127: M
A128: 2222-MFF|IXTECO | B128: 2222-MFF | C128: IXTECO | D128: 1 | E128: 1 | F128: 1 | H128: 1 | I128: 1 | J128: 2 | K128: D | M128: 2222IXTECO-MFF | AH128: B | AK128: 0 | AO128: M
A129: 2222-MFF|IXTWIDO | B129: 2222-MFF | C129: IXTWIDO | D129: 1 | E129: 1 | F129: 1 | H129: 1 | I129: 1 | J129: 2 | K129: D | M129: 2222IXTWIDO-MFF | AH129: B | AK129: 0 | AO129: M
A130: 2222-MFG|IX6HT | B130: 2222-MFG | C130: IX6HT | D130: 1 | E130: 1 | F130: 1 | H130: 1 | I130: 1 | J130: 2 | K130: D | M130: 2222IX6HT-MFG | AH130: B | AK130: 0 | AO130: M
A131: =CONCATENATE(B131,"|",C131) -> 2222-MFG|IX6SR | B131: 2222-MFG | C131: IX6SR | D131: 1 | E131: 1 | F131: 1 | H131: 1 | I131: 1 | J131: 2 | K131: D | M131: 2222IX6SR-MFG | AH131: B | AK131: 0 | AO131: M
A132: 2222-MFG|IX7TE | B132: 2222-MFG | C132: IX7TE | D132: 0 | E132: 0 | F132: 0 | H132: 1 | I132: 1 | J132: 2 | K132: D | M132: 2222IX7TE-MFG | AH132: B | AK132: 0 | AO132: M
A133: 2222-MFG|IX7TW | B133: 2222-MFG | C133: IX7TW | D133: 0 | E133: 0 | F133: 0 | H133: 1 | I133: 1 | J133: 2 | K133: D | M133: 2222IX7TW-MFG | AH133: B | AK133: 0 | AO133: M
A134: 2222-MFG|IXHT | B134: 2222-MFG | C134: IXHT | D134: 1 | E134: 1 | F134: 1 | H134: 1 | I134: 1 | J134: 2 | K134: D | M134: 2222IXHT-MFG | AH134: B | AK134: 0 | AO134: M
A135: 2222-MFG|IXTECO | B135: 2222-MFG | C135: IXTECO | D135: 1 | E135: 1 | F135: 1 | H135: 1 | I135: 1 | J135: 2 | K135: D | M135: 2222IXTECO-MFG | AH135: B | AK135: 0 | AO135: M
A136: 2222-MFG|IXTWIDO | B136: 2222-MFG | C136: IXTWIDO | D136: 1 | E136: 1 | F136: 1 | H136: 1 | I136: 1 | J136: 2 | K136: D | M136: 2222IXTWIDO-MFG | AH136: B | AK136: 0 | AO136: M
A137: 2222-MFH|IX6HT | B137: 2222-MFH | C137: IX6HT | D137: 1 | E137: 1 | F137: 1 | H137: 1 | I137: 1 | J137: 2 | K137: D | M137: 2222IX6HT-MFH | AH137: B | AK137: 0 | AO137: M
A138: 2222-MFH|IX6SR | B138: 2222-MFH | C138: IX6SR | D138: 1 | E138: 1 | F138: 1 | H138: 1 | I138: 1 | J138: 2 | K138: D | M138: 2222IX6SR-MFH | AH138: B | AK138: 0 | AO138: M
A139: 2222-MFH|IX7TE | B139: 2222-MFH | C139: IX7TE | D139: 0 | E139: 0 | F139: 0 | H139: 1 | I139: 1 | J139: 2 | K139: D | M139: 2222IX7TE-MFH | AH139: B | AK139: 0 | AO139: M
A140: 2222-MFH|IX7TW | B140: 2222-MFH | C140: IX7TW | D140: 0 | E140: 0 | F140: 0 | H140: 1 | I140: 1 | J140: 2 | K140: D | M140: 2222IX7TW-MFH | AH140: B | AK140: 0 | AO140: M
A141: 2222-MFH|IXHT | B141: 2222-MFH | C141: IXHT | D141: 1 | E141: 1 | F141: 1 | H141: 1 | I141: 1 | J141: 2 | K141: D | M141: 2222IXHT-MFH | AH141: B | AK141: 0 | AO141: M
A142: 2222-MFH|IXTECO | B142: 2222-MFH | C142: IXTECO | D142: 1 | E142: 1 | F142: 1 | H142: 1 | I142: 1 | J142: 2 | K142: D | M142: 2222IXTECO-MFH | AH142: B | AK142: 0 | AO142: M
A143: 2222-MFH|IXTWIDO | B143: 2222-MFH | C143: IXTWIDO | D143: 1 | E143: 1 | F143: 1 | H143: 1 | I143: 1 | J143: 2 | K143: D | M143: 2222IXTWIDO-MFH | AH143: B | AK143: 0 | AO143: M
A144: 2222-MFJ|IX6HT | B144: 2222-MFJ | C144: IX6HT | D144: 1 | E144: 1 | F144: 1 | H144: 1 | I144: 1 | J144: 2 | K144: D | M144: 2222IX6HT-MFJ | AH144: B | AK144: 0 | AO144: M
A145: 2222-MFJ|IX6SR | B145: 2222-MFJ | C145: IX6SR | D145: 1 | E145: 1 | F145: 1 | H145: 1 | I145: 1 | J145: 2 | K145: D | M145: 2222IX6SR-MFJ | AH145: B | AK145: 0 | AO145: M
A146: 2222-MFJ|IX7TE | B146: 2222-MFJ | C146: IX7TE | D146: 0 | E146: 0 | F146: 0 | H146: 1 | I146: 1 | J146: 2 | K146: D | M146: 2222IX7TE-MFJ | AH146: B | AK146: 0 | AO146: M
A147: 2222-MFJ|IX7TW | B147: 2222-MFJ | C147: IX7TW | D147: 0 | E147: 0 | F147: 0 | H147: 1 | I147: 1 | J147: 2 | K147: D | M147: 2222IX7TW-MFJ | AH147: B | AK147: 0 | AO147: M
A148: 2222-MFJ|IXHT | B148: 2222-MFJ | C148: IXHT | D148: 1 | E148: 1 | F148: 1 | H148: 1 | I148: 1 | J148: 2 | K148: D | M148: 2222IXHT-MFJ | AH148: B | AK148: 0 | AO148: M
A149: 2222-MFJ|IXTECO | B149: 2222-MFJ | C149: IXTECO | D149: 1 | E149: 1 | F149: 1 | H149: 1 | I149: 1 | J149: 2 | K149: D | M149: 2222IXTECO-MFJ | AH149: B | AK149: 0 | AO149: M
A150: 2222-MFJ|IXTWIDO | B150: 2222-MFJ | C150: IXTWIDO | D150: 1 | E150: 1 | F150: 1 | H150: 1 | I150: 1 | J150: 2 | K150: D | M150: 2222IXTWIDO-MFJ | AH150: B | AK150: 0 | AO150: M
A151: 2222-MFO|IX6HT | B151: 2222-MFO | C151: IX6HT | D151: 1 | E151: 1 | F151: 1 | H151: 1 | I151: 1 | J151: 2 | K151: D | M151: 2222IX6HT-MFO | AH151: B | AK151: 0 | AO151: M
A152: 2222-MFO|IX6SR | B152: 2222-MFO | C152: IX6SR | D152: 1 | E152: 1 | F152: 1 | H152: 1 | I152: 1 | J152: 2 | K152: D | M152: 2222IX6SR-MFO | AH152: B | AK152: 0 | AO152: M
A153: 2222-MFO|IX7TE | B153: 2222-MFO | C153: IX7TE | D153: 0 | E153: 0 | F153: 0 | H153: 1 | I153: 1 | J153: 2 | K153: D | M153: 2222IX7TE-MFO | AH153: B | AK153: 0 | AO153: M
A154: 2222-MFO|IX7TW | B154: 2222-MFO | C154: IX7TW | D154: 0 | E154: 0 | F154: 0 | H154: 1 | I154: 1 | J154: 2 | K154: D | M154: 2222IX7TW-MFO | AH154: B | AK154: 0 | AO154: M
A155: 2222-MFO|IXHT | B155: 2222-MFO | C155: IXHT | D155: 1 | E155: 1 | F155: 1 | H155: 1 | I155: 1 | J155: 2 | K155: D | M155: 2222IXHT-MFO | AH155: B | AK155: 0 | AO155: M
A156: 2222-MFO|IXTECO | B156: 2222-MFO | C156: IXTECO | D156: 1 | E156: 1 | F156: 1 | H156: 1 | I156: 1 | J156: 2 | K156: D | M156: 2222IXTECO-MFO | AH156: B | AK156: 0 | AO156: M
A157: 2222-MFO|IXTWIDO | B157: 2222-MFO | C157: IXTWIDO | D157: 1 | E157: 1 | F157: 1 | H157: 1 | I157: 1 | J157: 2 | K157: D | M157: 2222IXTWIDO-MFO | AH157: B | AK157: 0 | AO157: M
A158: 2222-MFU|IX6HT | B158: 2222-MFU | C158: IX6HT | D158: 1 | E158: 1 | F158: 1 | H158: 1 | I158: 1 | J158: 2 | K158: D | M158: 2222IX6HT-MFU | AH158: B | AK158: 0 | AO158: M
A159: 2222-MFU|IX6SR | B159: 2222-MFU | C159: IX6SR | D159: 1 | E159: 1 | F159: 1 | H159: 1 | I159: 1 | J159: 2 | K159: D | M159: 2222IX6SR-MFU | AH159: B | AK159: 0 | AO159: M
A160: 2222-MFU|IX7TE | B160: 2222-MFU | C160: IX7TE | D160: 0 | E160: 0 | F160: 0 | H160: 1 | I160: 1 | J160: 2 | K160: D | M160: 2222IX7TE-MFU | AH160: B | AK160: 0 | AO160: M
A161: 2222-MFU|IX7TW | B161: 2222-MFU | C161: IX7TW | D161: 0 | E161: 0 | F161: 0 | H161: 1 | I161: 1 | J161: 2 | K161: D | M161: 2222IX7TW-MFU | AH161: B | AK161: 0 | AO161: M
A162: 2222-MFU|IXHT | B162: 2222-MFU | C162: IXHT | D162: 1 | E162: 1 | F162: 1 | H162: 1 | I162: 1 | J162: 2 | K162: D | M162: 2222IXHT-MFU | AH162: B | AK162: 0 | AO162: M
A163: 2222-MFU|IXTECO | B163: 2222-MFU | C163: IXTECO | D163: 1 | E163: 1 | F163: 1 | H163: 1 | I163: 1 | J163: 2 | K163: D | M163: 2222IXTECO-MFU | AH163: B | AK163: 0 | AO163: M
A164: 2222-MFU|IXTWIDO | B164: 2222-MFU | C164: IXTWIDO | D164: 1 | E164: 1 | F164: 1 | H164: 1 | I164: 1 | J164: 2 | K164: D | M164: 2222IXTWIDO-MFU | AH164: B | AK164: 0 | AO164: M
A165: 2225|IX6SR235 | B165: 2225 | C165: IX6SR235 | D165: 1 | E165: 1 | F165: 1 | G165: =D165+E165+F165 -> 3 | H165: 0 | I165: 0 | J165: 0 | K165: H | M165: 2225IX6SR235 | AO165: M
A166: 2230|IX6HT | B166: 2230 | C166: IX6HT | D166: 1 | E166: 1 | F166: 1 | H166: 0 | I166: 4 | J166: 0 | K166: H | M166: 2230IX6HT | AH166: B | AK166: 0 | AO166: M
A167: 2230|IX6SR | B167: 2230 | C167: IX6SR | D167: 1 | E167: 1 | F167: 1 | H167: 0 | I167: 4 | J167: 0 | K167: H | M167: 2230IX6SR | AH167: B | AK167: 0 | AO167: M
A168: 2230|IX7TE | B168: 2230 | C168: IX7TE | D168: 0 | E168: 0 | F168: 0 | H168: 0 | I168: 4 | J168: 0 | K168: H | M168: 2230IX7TE | AH168: B | AK168: 0 | AO168: M
A169: 2230|IX7TW | B169: 2230 | C169: IX7TW | D169: 0 | E169: 0 | F169: 0 | H169: 0 | I169: 4 | J169: 0 | K169: H | M169: 2230IX7TW | AH169: B | AK169: 0 | AO169: M
A170: 2230|IXHT | B170: 2230 | C170: IXHT | D170: 1 | E170: 1 | F170: 1 | H170: 0 | I170: 4 | J170: 0 | K170: H | M170: 2230IXHT | AH170: B | AK170: 0 | AO170: M
A171: 2230|IXTECO | B171: 2230 | C171: IXTECO | D171: 1 | E171: 1 | F171: 1 | H171: 0 | I171: 4 | J171: 0 | K171: H | M171: 2230IXTECO | AH171: B | AK171: 0 | AO171: M
A172: 2230|IXTWIDO | B172: 2230 | C172: IXTWIDO | D172: 1 | E172: 1 | F172: 1 | H172: 0 | I172: 4 | J172: 0 | K172: H | M172: 2230IXTWIDO | AH172: B | AK172: 0 | AO172: M
A173: 2240|IX6HT | B173: 2240 | C173: IX6HT | D173: 1 | E173: 1 | F173: 1 | H173: 0 | I173: 4 | J173: 0 | K173: H | M173: 2240IX6HT | AH173: B | AK173: 0 | AO173: M
A174: 2240|IX6SR | B174: 2240 | C174: IX6SR | D174: 1 | E174: 1 | F174: 1 | H174: 0 | I174: 4 | J174: 0 | K174: H | M174: 2240IX6SR | AH174: B | AK174: 0 | AO174: M
A175: 2240|IX7TE | B175: 2240 | C175: IX7TE | D175: 0 | E175: 0 | F175: 0 | H175: 0 | I175: 4 | J175: 0 | K175: H | M175: 2240IX7TE | AH175: B | AK175: 0 | AO175: M
A176: 2240|IX7TW | B176: 2240 | C176: IX7TW | D176: 0 | E176: 0 | F176: 0 | H176: 0 | I176: 4 | J176: 0 | K176: H | M176: 2240IX7TW | AH176: B | AK176: 0 | AO176: M
A177: 2240|IXHT | B177: 2240 | C177: IXHT | D177: 1 | E177: 1 | F177: 1 | H177: 0 | I177: 4 | J177: 0 | K177: H | M177: 2240IXHT | AH177: B | AK177: 0 | AO177: M
A178: 2240|IXTECO | B178: 2240 | C178: IXTECO | D178: 1 | E178: 1 | F178: 1 | H178: 0 | I178: 4 | J178: 0 | K178: H | M178: 2240IXTECO | AH178: B | AK178: 0 | AO178: M
A179: 2240|IXTWIDO | B179: 2240 | C179: IXTWIDO | D179: 1 | E179: 1 | F179: 1 | H179: 0 | I179: 4 | J179: 0 | K179: H | M179: 2240IXTWIDO | AH179: B | AK179: 0 | AO179: M
A180: 2262MF|IX6SR235 | B180: 2262MF | C180: IX6SR235 | D180: 1 | E180: 1 | F180: 1 | H180: 0 | I180: 4 | J180: 22 | K180: H | M180: 2262IX6SRMF235 | AO180: M
A181: 2262-MFA|IX6HT | B181: 2262-MFA | C181: IX6HT | D181: 1 | E181: 1 | F181: 1 | H181: 0 | I181: 4 | J181: 0 | K181: H | M181: 2262IX6HT-MFA | AH181: B | AK181: 0 | AO181: M
A182: 2262-MFA|IX6SR | B182: 2262-MFA | C182: IX6SR | D182: 1 | E182: 1 | F182: 1 | H182: 0 | I182: 4 | J182: 0 | K182: H | M182: 2262IX6SR-MFA | AH182: B | AK182: 0 | AO182: M
A183: 2262-MFA|IX7TE | B183: 2262-MFA | C183: IX7TE | D183: 0 | E183: 0 | F183: 0 | H183: 0 | I183: 4 | J183: 0 | K183: H | M183: 2262IX7TE-MFA | AH183: B | AK183: 0 | AO183: M
A184: 2262-MFA|IX7TW | B184: 2262-MFA | C184: IX7TW | D184: 0 | E184: 0 | F184: 0 | H184: 0 | I184: 4 | J184: 0 | K184: H | M184: 2262IX7TW-MFA | AH184: B | AK184: 0 | AO184: M
A185: 2262-MFA|IXHT | B185: 2262-MFA | C185: IXHT | D185: 1 | E185: 1 | F185: 1 | H185: 0 | I185: 4 | J185: 0 | K185: H | M185: 2262IXHT-MFA | AH185: B | AK185: 0 | AO185: M
A186: 2262-MFA|IXTECO | B186: 2262-MFA | C186: IXTECO | D186: 1 | E186: 1 | F186: 1 | H186: 0 | I186: 4 | J186: 0 | K186: H | M186: 2262IXTECO-MFA | AH186: B | AK186: 0 | AO186: M
A187: 2262-MFA|IXTWIDO | B187: 2262-MFA | C187: IXTWIDO | D187: 1 | E187: 1 | F187: 1 | H187: 0 | I187: 4 | J187: 0 | K187: H | M187: 2262IXTWIDO-MFA | AH187: B | AK187: 0 | AO187: M
A188: 2262-MFB|IX6HT | B188: 2262-MFB | C188: IX6HT | D188: 1 | E188: 1 | F188: 1 | H188: 0 | I188: 4 | J188: 0 | K188: H | M188: 2262IX6HT-MFB | AH188: B | AK188: 0 | AO188: M
A189: 2262-MFB|IX6SR | B189: 2262-MFB | C189: IX6SR | D189: 1 | E189: 1 | F189: 1 | H189: 0 | I189: 4 | J189: 0 | K189: H | M189: 2262IX6SR-MFB | AH189: B | AK189: 0 | AO189: M
A190: 2262-MFB|IX7TE | B190: 2262-MFB | C190: IX7TE | D190: 0 | E190: 0 | F190: 0 | H190: 0 | I190: 4 | J190: 0 | K190: H | M190: 2262IX7TE-MFB | AH190: B | AK190: 0 | AO190: M
A191: 2262-MFB|IX7TW | B191: 2262-MFB | C191: IX7TW | D191: 0 | E191: 0 | F191: 0 | H191: 0 | I191: 4 | J191: 0 | K191: H | M191: 2262IX7TW-MFB | AH191: B | AK191: 0 | AO191: M
A192: 2262-MFB|IXHT | B192: 2262-MFB | C192: IXHT | D192: 1 | E192: 1 | F192: 1 | H192: 0 | I192: 4 | J192: 0 | K192: H | M192: 2262IXHT-MFB | AH192: B | AK192: 0 | AO192: M
A193: 2262-MFB|IXTECO | B193: 2262-MFB | C193: IXTECO | D193: 1 | E193: 1 | F193: 1 | H193: 0 | I193: 4 | J193: 0 | K193: H | M193: 2262IXTECO-MFB | AH193: B | AK193: 0 | AO193: M
A194: 2262-MFB|IXTWIDO | B194: 2262-MFB | C194: IXTWIDO | D194: 1 | E194: 1 | F194: 1 | H194: 0 | I194: 4 | J194: 0 | K194: H | M194: 2262IXTWIDO-MFB | AH194: B | AK194: 0 | AO194: M
A195: =CONCATENATE(B195,"|",C195) -> 2262-MFC|IX6HT | B195: 2262-MFC | C195: IX6HT | D195: 1 | E195: 1 | F195: 1 | H195: 0 | I195: 4 | J195: 0 | K195: H | M195: 2262IX6HT-MFC | AH195: B | AK195: 0 | AO195: M
A196: 2262-MFC|IX6SR | B196: 2262-MFC | C196: IX6SR | D196: 1 | E196: 1 | F196: 1 | H196: 0 | I196: 4 | J196: 0 | K196: H | M196: 2262IX6SR-MFC | AH196: B | AK196: 0 | AO196: M
A197: 2262-MFC|IX7TE | B197: 2262-MFC | C197: IX7TE | D197: 0 | E197: 0 | F197: 0 | H197: 0 | I197: 4 | J197: 0 | K197: H | M197: 2262IX7TE-MFC | AH197: B | AK197: 0 | AO197: M
A198: 2262-MFC|IX7TW | B198: 2262-MFC | C198: IX7TW | D198: 0 | E198: 0 | F198: 0 | H198: 0 | I198: 4 | J198: 0 | K198: H | M198: 2262IX7TW-MFC | AH198: B | AK198: 0 | AO198: M
A199: 2262-MFC|IXHT | B199: 2262-MFC | C199: IXHT | D199: 1 | E199: 1 | F199: 1 | H199: 0 | I199: 4 | J199: 0 | K199: H | M199: 2262IXHT-MFC | AH199: B | AK199: 0 | AO199: M
A200: 2262-MFC|IXTECO | B200: 2262-MFC | C200: IXTECO | D200: 1 | E200: 1 | F200: 1 | H200: 0 | I200: 4 | J200: 0 | K200: H | M200: 2262IXTECO-MFC | AH200: B | AK200: 0 | AO200: M
... 2297 more rows

Sheet Sprachen (hidden)
A1: ID | B1: DE | C1: GB | D1: FR | E1: NL | F1: PL | G1: IT | H1: ES | I1: HR | J1: CZ | K1: SLO | L1: Russisch1 | M1: Russisch2 | N1: NN1 | O1: NN2
A2: 1 | B2: Deutsch | C2: English | D2: Français | E2: Nederlands | F2: Polski | G2: Italiano | H2: Spain | I2: Hrvatski | J2: Česky | K2: Slovenščina | L2: Русский | M2: Russkij
A3: 2 | B3: S-Plan speichern unter | C3: Save MK-plan as | D3: Enregistrer sous | E3: Sluitplan opslaan als.. | F3: Zachowaj MK-plan jako | G3: Salva come | H3: Guardar como | I3: Pohraniti plan zaključavanja | J3: Uložit plán jako | K3: Shrani sistem zaklepanja kot | L3: Сохранить Мастер-план как | M3: Sohranit Master-plan kak
A4: 3 | B4: Dateiname/Projekt | C4: File name / Project | D4: Nom du fichier/Projet | E4: Bestand/ projectnaam | F4: Nazwa pliku / projektu | G4: Nome del file /Progetto | H4: Nombre del archivo/proyecto | I4: Naziv datoteke/Projekt | J4: Název souboru/projektu | K4: Ime datoteke/Projekt | L4: Имя Файла / Проект | M4: Imja faila / Proekt
A5: 4 | B5: Schließplan bearbeiten | C5: Edit Masterkey Plan | D5: Éditer le plan | E5: Sluitplan bewerken | F5: Edytuj plan systemu | G5: Stampare il progetto | H5: Editar Amaestramiento | I5: Promjeniti plan zaključavanja | J5: Zobrazit plán generálního klíče | K5: Spremeni sistem zaklepanja | L5: Редактировать Мастер-план | M5: Redaktirovatj Master-plan
A6: 5 | B6: Massen (F4) ... | C6: Calculate (F4) ... | D6: Calcul du Prix (F4) ... | E6: Prijs ... | F6: Ceny ... | G6: Calcolo del prezzo (F4) | H6: Calcular Precio | I6: Izračunavanje cijene (F4) | J6: Výpočet ceny (F4) | K6: Izračun cene | L6: Рассчитать ( F4 ) | M6: Rasschitatj ( F4 )
A7: 6 | B7: Fachhändler | C7: Customer | D7: Revendeur | E7: Klant | F7: Klient | G7: Rivenditore | H7: Cliente | I7: Kupac | J7: Klient | K7: Kupec | L7: Клиент | M7: Klient
A8: 7 | B8: Kundennummer | C8: Customer No. | D8: N° de client | E8: Klantnummer | F8: Nr klienta | G8: Cliente N° | H8: Núm de cliente | I8: Br. kupca | J8: Číslo klienta | K8: Št. kupca | L8: № Клиента | M8: № Klienta
A9: 8 | B9: Telefon | C9: Telefon | D9: Téléphone | E9: Telefoon | F9: Telefon | G9: Telefono | H9: Teléfono | I9: Telefon | J9: Telefon | K9: Telefon | L9: Телефон | M9: Telefon
A10: 9 | B10: Ansprechpartner | C10: Respond partner | D10: Contact | E10: Kontaktpersoon | F10: Dystrybutor | G10: Contatto | H10: Contacto | I10: Kontakt osoba | J10: Kontaktní osoba | K10: Kontakt kupca | L10: Контактное лицо | M10: Kontactnoe lico
A11: 10 | B11: Straße | C11: Road | D11: Rue | E11: Straat | F11: Ulica | G11: Via | H11: Calle | I11: Ulica | J11: Ulice | K11: Naslov | L11: Улица | M11: Ulica
A12: 11 | B12: Land (DE) | C12: Country (GB) | D12: Pays (FR) | E12: Land (NL) | F12: Panstwo (PL) | G12: Paese (I) | H12: Pais (ES) | I12: Država (HR) | J12: Země (CZ) | K12: Država (SLO) | L12: Страна | M12: Strana
A13: 12 | B13: Postleitzahl | C13: Postcode | D13: Code postal | E13: Postcode | F13: Kod pocztowy | G13: CAP | H13: Código Postal | I13: Poštanski broj | J13: PSČ | K13: Poštna št. | L13: Индекс | M13: Indeks
A14: 13 | B14: Ort | C14: City | D14: Ville | E14: Provincie | F14: Miasto | G14: Città | H14: Ciudad | I14: Mjesto | J14: Město | K14: Kraj | L14: Город | M14: Gorod
A15: 14 | B15: Objekt | C15: Object | D15: Objet/Organigr. | E15: Project | F15: Obiekt | G15: Oggetto | H15: Objeto | I15: Objekt | J15: Objekt | K15: Objekt | L15: Объект | M15: Ob'ekt
A16: 15 | B16: Kommission | C16: Commission | D16: Référence cde | E16: Referentie | F16: Komisja | G16: Riferim. ordine | H16: Código Referencia | I16: Posrednik | J16: Provize | K16: Provizija | L16: Комиссия | M16: Komissija
A17: 16 | B17: Wunschtermin | C17: Term of delivery | D17: Délais | E17: Levertijd | F17: Termin | G17: Termini di conse. | H17: Plazo | I17: Željeni datum isporuke | J17: Dodací podmínky | K17: Željeni datum dobave | L17: Условия поставки | M17: Uslovija postavki
A18: 17 | B18: Abweichende Lieferanschrift | C18: Special delivery adress | D18: Adresse de livraison complémentaire | E18: Afwijkend leveradres | F18: Dodatkowy adres | G18: Indirizzo di consegna | H18: Dirección de entrega | I18: Željena adresa isporuke | J18: Dodací adresa | K18: Naslov za dobavo | L18: Адрес доставки | M18: Adres dostavki
A19: 18 | B19: Name 1 | C19: Name 1 | D19: Nom 1 | E19: Naam 1 | F19: Nazwa 1 | G19: Nome 1 | H19: Nombre 1 | I19: Naziv 1 | J19: Jméno 1 | K19: Ime 1 | L19: Имя 1 | M19: Imja 1
A20: 19 | B20: Name 2 | C20: Name 2 | D20: Nom 2 | E20: Naam 2 | F20: Nazwa 2 | G20: Nome 2 | H20: Nombre 2 | I20: Naziv 2 | J20: Jméno 2 | K20: Ime 2 | L20: Имя 2 | M20: Imja 2
A21: 20 | B21: Ortsteil | C21: District | D21: Lieu | F21: Dzielnica | G21: Luogo | H21: Distrito | I21: Županija | J21: Okres | K21: Občina | L21: Район | M21: Rajon
A22: 21 | B22: Besondere Hinweise | C22: Special Hints | D22: Remarque particulière | E22: Bijzonderheden 2 | F22: Specjalne wskazowki | G22: Informazioni complementari | H22: Observaciones | I22: Posebne napomene | J22: Zvláštní pokyny | K22: Posebnosti | L22: Специальные подсказки | M22: Specialjnie podskazki
A23: 22 | B23: Titel | C23: Titel | D23: Titre | E23: Titel | F23: Tytul | G23: Titolo | H23: Título | I23: Naziv | J23: Název | K23: Naziv | L23: Название | M23: Nazvanie
A24: 23 | B24: Sicherungskarte | C24: Security card | D24: Carte de propriété | E24: Veiligheidscertificaat | F24: Karta bezpieczenstwa | G24: Carta di proprietà | H24: Tarjeta de Seguridad | I24: Sigurnosna kartica | J24: Bezpečnostní karta | K24: Varnostna kartica | L24: Карта безопасности | M24: Karta bezopasnosti
A25: 24 | B25: Anlagennummer | C25: System code | D25: Code organigramme | E25: Sluitplannummer | F25: Numer systemu | G25: Codice organigramma | H25: Código del amaestramiento | I25: Šifra sistema | J25: Kód systému | K25: Številka sistema | L25: Системный код | M25: Sistemniy kod
A26: 25 | B26: Anlagenart | C26: Type of System | D26: Type d'organigramme | E26: Inrichting | F26: Typ systemu | G26: Typo di organigramma | H26: Tipo de Amaestramiento | I26: Tip sistema | J26: Typ systému | K26: Tip sistema | L26: Тип системы | M26: Tip sistemi
A27: 26 | B27: System | C27: System | D27: Système | E27: Systeem | F27: System | G27: Sistema | H27: Sistema/ Amaestramiento | I27: Sistem | J27: Systém | K27: Sistem | L27: Система | M27: Sistema
A28: 27 | B28: Kartennummer | C28: No. of security card | D28: N° de carte | E28: Kaartnummer | F28: Nr karty bezpieczenstwa | G28: Numero carta di proprietà | H28: Núm de tarjeta de Seguridad | I28: Br. sigurnosne kartice | J28: Číslo bezpečnostní karty | K28: Št. varnostne kartice | L28: № Карты безопасности | M28: № Karti bezopasnosti
A29: 28 | B29: Karte eingelesen am | C29: S.-card reading date | D29: Carte lu le | E29: Kaart ingelezen op.. | F29: Czytanie danych karty bezp. | G29: Carta di proprietà letta il | H29: Tarjeta lectora | I29: Datum očitanja sig. kartice | J29: Data načtené karty | K29: Datum branja kartice | L29: Дата чтения карточки | M29: Data chtenija kartochki
A30: 29 | B30: Karte einlesen | C30: Reading card | D30: Lecture de la carte | E30: Kaart inlezen | F30: Czytanie karty | G30: Lettura della carta | H30: Tarjeta lectora | I30: Očitavanje kartice | J30: Číst kartu | K30: Branje kartice | L30: Чтение карточки | M30: Chetije kartochki
A31: 30 | B31: Zurücksetzen | C31: Reset data | D31: Réinitialiser | E31: Terug | F31: Czyszczenie danych | G31: Resettare | H31: Fecha de reinicio | I31: Ponovno slanje podataka | J31: Obnova dat / zpět | K31: Obnova podatkov | L31: Сброс данных | M31: Sbros dannih
A32: 31 | B32: Anschluß des Kartenlesers | C32: Card reader connection | D32: Port du lecteur de carte | E32: Aansluiting kaartlezer | F32: Polaczenie czytnika kart | G32: Connessione lettore di card | H32: Puerto de tarjeta lectora | I32: Priključak čitača kartica | J32: Připojení čtečky | K32: Priključek čitalca kartic | L32: Подключение устройства чтения карт | M32: Podkluchenie ustroistva chtenija kart
A33: 32 | B33: Tastaturleser (z.B.MAGTEC) | C33: Keybordreader (MAGTEC) | D33: clavier (MAGTEC) | E33: kaartlezer (MAGTEC) | F33: klawiatura (MAGTEC) | G33: tastiera (MAGTEC) | H33: Teclado (MAGTEC) | I33: tipkovnici (MAGTEC) | J33: klávesnice (MAGTEC) | K33: Čitalec tipkovnice (MAGTEC) | L33: клавиатура (MAGTEC) | M33: klaviatura (MAGTEC)
A34: 33 | B34: Daten der Sicherungskarte | C34: Security card data | D34: Données de la carte de propriété | E34: Gegevens van het Veiligheidscertificaat | F34: Dane karty bezpieczenstwa | G34: Dati della carta di proprietà | H34: Fecha de tarjeta de seguridad | I34: Podaci sigurnosne kartice | J34: Údaje bezpečnostní karty | K34: Podatki varnostne kartice | L34: Дата Карты безопасности | M34: Data karti bezopasnosti
A35: 34 | B35: Neuanlage | C35: New System | D35: Nouvel organigramme | E35: Nieuw sluitsysteem | F35: Nowy system | G35: Nuovo organigramma | H35: Nuevo amaestramiento | I35: Novi sistem | J35: Nový systém | K35: Nov sistem | L35: Новая система | M35: Novaya sistema
A36: 35 | B36: Erweiterung | C36: Extension | D36: Extension | E36: Uitbreiding | F36: Rozszerzenie | G36: Estensione organigramma | H36: Extensión | I36: Proširenje sistema | J36: Rozšíření | K36: Razširitev sistema | L36: Расширение | M36: Rashirenie
A37: 36 | B37: Funktion | C37: Function | D37: Fonction | E37: Functie | F37: Funkcja | G37: Funzione | H37: Función | I37: Funkcija | J37: Funkce | K37: Funkcija | L37: Функционал | M37: Funkcional
A38: 37 | B38: Nummer | C38: Number | D38: Numéro | E38: Nummer | F38: Numer | G38: Numero | H38: Número | I38: Broj | J38: Číslo | K38: Številka sistema | L38: Номер | M38: Nomer
A39: 38 | B39: Bezeichnung | C39: Marking | D39: Description | E39: Omschrijving | F39: Oznaczenie | G39: Descrizione | H39: Descripción | I39: Opis | J39: Označení | K39: Oznaka | L39: Обозначение | M39: Oboznachenie
A40: 39 | B40: Anzahl | C40: Quantity | D40: Quantité | E40: Aantal | F40: Ilosc | G40: Quantità | H40: Cantidad | I40: Količina | J40: Počet | K40: Količina | L40: Количество | M40: Kolichestvo
A41: 40 | B41: Pos | C41: Pos | D41: Lg | E41: Positie | F41: Poz. | G41: Pos | H41: Posición | I41: RB | J41: Pozice | K41: Poz. | L41: Позиция | M41: Poziciya
A42: 41 | B42: Status | C42: State | D42: état | E42: Status | F42: Status | G42: Stato | H42: Estado | I42: Status | J42: Status | K42: Status | L42: Статус | M42: Status
A43: 42 | B43: Türbezeichnung | C43: Door description | D43: Pporte | E43: Deurteomschrijving | F43: Numer/nazwa drzwi 2 | G43: Descrizione/porta/locale 2 | H43: Descripción de puerta 2 | I43: Vrata/opis prostora 2 | J43: Popis dveří/místnosti 2 | K43: Opis vrat | L43: Описание двери/помещения 2 | M43: Opisanie dveri / pomesheniya 2
A44: 43 | B44: Schlüssel-Nr. | C44: Key.-No. | D44: N° de clé | E44: Sleutelnummer | F44: Nr klucza | G44: Chiave n° | H44: Núm. De llave | I44: Oznaka klj. | J44: Číslo klíče | K44: Oznaka ključa | L44: № ключа | M44: № klucha
A45: 44 | B45: Raumbezeichnung | C45: Room description | D45: Désignation | E45: Ruimteomschrijving | F45: Numer/nazwa drzwi 1 | G45: Descrizione/porta/locale 1 | H45: Descripción de puerta 1 | I45: Vrata/opis prostora 1 | J45: Popis dveří/místnosti 1 | K45: Opis prostora | L45: Описание двери/помещения 1 | M45: Opisanie dveri / pomesheniya 1
A46: 45 | B46: Zyl. | C46: Cyl. | D46: Cyl. | E46: Cil. | F46: Cyl. | G46: Cil. | H46: Cilindro | I46: Cil. | J46: Vložka | K46: Cilinder | L46: Цилиндр | M46: Cilindr
A47: 46 | B47: Sch | C47: Key | D47: Clé | E47: Sl. | F47: Klucz | G47: Chiavi | H47: Llave | I47: Klj. | J47: Klíč | K47: Ključ | L47: Ключ | M47: Kluch
A48: 47 | B48: Zylindertyp | C48: Cylinder type | D48: Type | E48: Cilindertype | F48: Typ cylindra | G48: Tipo cilindro | H48: Tipo de cilindro | I48: Tip cilindra | J48: Typ vložky | K48: Tip cilindra | L48: Тип цилиндра | M48: Tip cilindra
A49: 48 | B49: Ausführung | C49: Design | D49: Fonctions | E49: Uitvoering | F49: Wykonczenie | G49: Funzioni | H49: Función | I49: Izvedba/diz. | J49: Provedení | K49: Izvedba | L49: Исполнение | M49: Ispolenie
A50: 49 | B50: Länge (A / B) | C50: Length (A / B) | D50: longueurs (A/B) | E50: Lengte (A / B) | F50: Dlugosc (A / B) | G50: Dimensioni (A/B) | H50: Longitud (A/B) | I50: Dužina (A / B) | J50: Délka (A/B) | K50: Dolžina (A / B) | L50: Длина ( A / B ) | M50: Dlina ( A / B )
A51: 50 | B51: Farbe | C51: Color | D51: Finition | E51: kleur | F51: Kolor | G51: Finitura | H51: Acabado | I51: Obrada | J51: Barva | K51: Barva | L51: Цвет | M51: Cvet
A52: 51 | B52: Keine Gruppenspalte | C52: column not defined for groups | D52: Pas de colonne de passe | E52: Geen groepenkolom | F52: Kolumna nie przeznaczona dla grup | G52: Nessuna colonna chiavia maestre | H52: Columna no definida para grupos | I52: Stupac nije definiran za grupe | J52: Neupřesněna skupina ve sloupci | K52: Stolpec ni definiran za skupine | L52: Не определена группа для столбца | M52: Ne opredelena gruppa dlya stolbca
A53: 52 | B53: Gruppennummer fehlt | C53: masterkey number missing | D53: N° de passe inexistant | E53: Groepennummer ontbreekt | F53: Brakujacy nr klucza grupowego | G53: N° chiave maestra inesistente | H53: Número de amaestramiento inexistente | I53: Nedostaje oznaka grupnih (master) klj. | J53: Chybí číslo skupiny | K53: Manjka oznaka master ključa | L53: Отсутствует номер группы | M53: Otsutstvuet nomer gruppi
A54: 53 | B54: Schlüsselnummer fehlt bei Pos | C54: Key number missing in position | D54: N° de clé inexistant | E54: Sleutelnummer ontbreekt bij positie | F54: Brakujacy nr klucza w pozycji | G54: N° chiave inesistente | H54: Número de llave inexistente | I54: Nedostaje oznaka klj. kod RB | J54: Chybí číslo klíče | K54: Manjka oznaka ključa pri Poz. | L54: Отсутствует номер ключа | M54: Otsutstvuet nomer klucha
A55: 54 | B55: In dieser Zeile/Spalte ist keine weitere Z/M-Funktion möglich | C55: No more Z/M-function not possible | D55: Impossible d'insérer 1 fonction d'OC suppl. | E55: In deze rij/ kolom is geen Z/M functie meer mogelijk | F55: Niedostepna funkcja centralnej wkladki | G55: Impossibile inserire ulteriori funzioni Z/M | H55: No más Z/M. Función no permitida | I55: U ovom retku/stupcu Z/M funkcije više nisu moguće | J55: Řádek nebo sloupec neumožňuje funkci Z / M | K55: V teh vrsticah/stolpcih Z/M funkcije niso mogoče | L55: В этой строке / столбце невозможна Z / M функция | M55: V etoi stroke / stolbce nevozmogna Z / M funcija
A56: 55 | B56: Schlüsselnummer für Zentralzylinder muß mit "Z..." beginnen | C56: Key number for Centralcylinder must start with "Z..." | D56: Les n° d' ouvertures centrales doivent commencer par "Z…." | E56: Sleutelnummer voor Centraalcilinder moet met "Z.." beginnen | F56: Nr klucza centralnej wkladki musi zaczynac się od "Z…" | G56: Il n° degli accessi centrali deve iniziare con "Z" | H56: Los núm de cilindros centrales deben comenzar por Z | I56: Oznaka ključa za centralni cilindar mora se označiti sa "Z" | J56: Číslo klíče pro centrální vložku musí začínat "Z..." | K56: Oznaka ključa za centralni cilinder se mora začeti z "Z…" | L56: Номер ключа для центрального цилиндра должен начинаться с "Z..." | M56: Nomer klucha dlya centralnogo cilindra dolgen nachinat'sya s "Z..."
A57: 56 | B57: Z/M-Funktion kann nicht überschrieben werden | C57: Overwrite Z/M not possible | D57: La Fonction OC ne peut être modifiée | E57: Z/M functie kan niet overschreven worden | F57: Niedostepna modyfikacja funkcji Z/M | G57: Funzione Z/M non modificabile | H57: No es posible la función "Modificar" | I57: Oznaku Z/M nije moguće mijenjati | J57: Funkci Z / M nelze přepisovat | K57: Sprememba Z/M ni mogoča | L57: Z/M-функция не может быть перезаписана | M57: Z / M - funcija ne moget bit' perezapisana
A58: 57 | B58: Keine Z oder M-Spalte | C58: No Z or M row | D58: Pas de colonne d'OC | E58: Geen Z of M-kolom | F58: Nie mozliwa Z albo M - kolumna | G58: Nessuna colonna Z/M | H58: Sin columna modificar | I58: Nema Z ili M u retku | J58: V řádku není Z / M | K58: Z ali M ni v vrstici | L58: В столбце нет Z или M | M58: V stolbce net Z ili M
A59: 58 | B59: G-Funktion bereits in Zeile vorhanden oder Schließfunktionen (X/I) ungleich | C59: G-function already exist or different X/I function. | E59: G functie reeds in regels beschikbaar of sluitfuncties X/I ongelijk | F59: Istniejaca funkcja G lub rozna X/I funkcja | G59: Funzione G- già esistente o funzione X/I differente | H59: La función G ya existe o diferentes X/I funciones | I59: G-funkcije već postoje u istim ili raziličitim X/I funkcijama | J59: G funkce již existuje nebo změňte X/I funkci | K59: G-funkcije že obstajajo v istih ali različnih X/I funkcijah | L59: G-функциия уже существует или измените X/I функции | M59: G-funciya uge sushestvuet ili izmenite X/I funkcii
A60: 59 | B60: Max eine Mitschließung möglich | C60: Max one I-Funktion | D60: Une entrouverture max. possible ! | E60: Maximaal 1 meesluiting mogelijk | F60: Mozliwa tylko jedna I- funkcja | G60: Solo una funzione KA possibile ! | H60: Máximo una I-Función | I60: Maksmialno jedna I-funkcija | J60: Maximálně jedna I-funkce | K60: Največ ena I-Funkcija | L60: Возможна только одна I функция ! | M60: Vozmogna tol'ko odna I funkciya
A61: 60 | B61: Gruppen | C61: Master key | D61: Passes | E61: Groepen | F61: Klucz grupowy | G61: chiavi maestre | H61: Amaestramiento | I61: Grupni (master) ključ | J61: Skupinový klíč | K61: Master ključ | L61: Групповой Мастер ключ | M61: Gruppovoi Master kluch
A62: 61 | B62: Schl.-Nummer | C62: MK number | D62: N° de clé | E62: Sleutelnummer | F62: Numer klucza grupowego | G62: Chiave MK numero | H62: Número de llave | I62: Oznaka grupnog (master) klj. | J62: Číslo skupinového klíče | K62: oznaka master ključa | L62: № Мастер ключа | M62: № Master klucha
A63: 62 | B63: Bezeichnung | C63: Marking | D63: Désignation | E63: Omschrijving | F63: Oznaczenie | G63: Riferimento | H63: Marca | I63: Opis | J63: Označení | K63: Opis | L63: Обозначение | M63: Oboznachenie
A64: 63 | B64: Anz. | C64: Quant. | D64: Quantité | E64: Aantal | F64: Ilosc | G64: Quantità | H64: Cantidad | I64: Kom | J64: Množství | K64: Količina | L64: Количество | M64: Kolichestvo
A65: 64 | B65: Typ | C65: Type | D65: Type | E65: Type | F65: Typ | G65: Tipo | H65: Tipo | I65: Tip | J65: Typ | K65: Tip | L65: Тип | M65: Tip
A66: 65 | B66: Keine Guppen bei dieser Anlagenart möglich | C66: No masterkeys possible in type of system | D66: Pas de passe disponible dans ce type d'organigramme | E66: In deze inrichting is geen groepenindeling mogelijk | F66: Klucze grupowe w tym systemie nie sa mozliwe | G66: Nessun | H66: Imposible este tipo de amaestramiento | I66: U ovom tipu sistema nije dostupan grupni (master) ključ | J66: V tomto typu systému není možný skupinový klíč | K66: V tem tipu sistema mastek ključ ni mogoč | L66: В этом типе Мастер системы невозможно создание Мастер ключей | M66: V etom tipe Master sistem nevozmogno sozdanie Master kluchei
A67: 66 | B67: Speichern | C67: Save | D67: Enregistrer | E67: Opslaan | F67: Zachowaj | G67: Salva | H67: Guardar | I67: Pohraniti | J67: Uložit | K67: Shrani | L67: Сохранить | M67: Sohranit'
A68: 67 | B68: Löschen | C68: Delete | D68: Supprimer | E68: Wissen | F68: Usun | G68: Cancella | H68: Eliminar | I68: Obrisati | J68: Smazat | K68: Izbriši | L68: Удалить | M68: Udalit'
A69: 68 | B69: Maximale Gruppenanzahl bei Anlagenart ZHS: 1 | C69: Max. Masterkeys in type ZHS: 1 | D69: En mode ZHS, nombre de passe max.: 1 | E69: Maximaal aantal groepen in een ZHS- inrichting: 1 | F69: Max. ilosc kluczy Master w ZHS: 1 | G69: Sistema ZHS numero massimo di Pass:1 | H69: Amaestramientos máximos en tipo ZHS:1 | I69: Maks. gupnih (master) ključeva kod sistema ZHS-CMK: 1 | J69: Maximální počet skupin v typu ZHS : 1 | K69: Max. master ključev v sistemu ZHS-CMK:1 | L69: Максимальное количество Групповых Мастер ключей в системе типа ZHS: 1 | M69: Maksimal'noe kolichestvo Gruppovih Master kluchei v sisteme tipa ZHS: 1
A70: 69 | B70: Maximale Gruppenanzahl bei Anlagenart HS: 2 (HS + HS-T) | C70: Max. Masterkeys in type HS: 2 | D70: En mode HS, nombre de passe max.: 1 | E70: Maximale groepenaantal in een HS- inrichting: 2 (HS + HS-TD) | F70: Max. ilosc kluczy Master w HS: 2 | G70: Sistema HS numero massimo di Pass:1 | H70: Amaestramientos máximos en tipo HS:2 | I70: Maks. gupnih (master) ključeva kod sistema HS-CMK: 2 (HS + HS-T) | J70: Maximální počet skupin v typu HS : 2 | K70: Max. master ključev v sistemu HS-CMK:2 | L70: Максимальное количество Групповых Мастер ключей в системе типа HS: 2 (HS + HS-T) | M70: Maksimal'noe kolichestvo Gruppovih Master kluchei v sisteme tipa HS: 2 (HS + HS-T)
A71: 70 | B71: Bitte Schlüsselnummer, Typ und Neu oder Bestehend angeben. | C71: Please input Masterkey number, type and new or existing group. | D71: Veuillez indiquer le n°de clé, le type ou l'état | E71: Sleutelnummer, type, nieuw of bestaand aangeven a.u.b. | F71: Wstaw numer klucza grupowego, typ, N-nowy, B-istniejacy | G71: Inserire n° | H71: Indicar número de amaestramiento, tipo y grupo nuevo o existente | I71: Molimo odaberite oznaku grupnog ključa, tip, te jeli nova ili postojeća grupa | J71: Prosím, zadejte číslo skupinového klíče, typ pro novou nebo existující skupinu | K71: Vnesite oznako master ključa, tipa in novo ali obstoječo skupino | L71: Пожалуйста, введите номер Мастер-ключа и тип для новой или существующей группы. | M71: Pozaluista, vvedite nomer Master-klucha I tip dlya novoi ili sushestvuyushei gruppi
A72: 71 | B72: Schlüsselnummer bereits vorhanden | C72: Keynumber already exists | D72: N° de clé déjà existant | E72: Sleutelnummer is reeds bekend | F72: Istniejacy numer klucza | G72: N° di chiave già esistente | H72: Número de llave existente | I72: Oznaka ključa već postoji | J72: Číslo klíče již existuje | K72: Oznaka ključa že obstaja | L72: Номер ключа уже существует | M72: Nomer klucha uge sushestvuet
A73: 72 | B73: Bearbeiten ... | C73: Edit ... | D73: Éditer ... | E73: Bewerken ... | F73: Edytuj ... | G73: Stampa | H73: Editar | I73: Obrada... | J73: Upravit | K73: Obdelava… | L73: Редактировать … | M73: Redaktirovat'
A74: 73 | B74: Spalte(n) hinzufügen | C74: Add column(s) | D74: Insérer colonne(s) | E74: Kolom invoegen | F74: Dodaj kolumne/y | G74: Inserisci colonne | H74: Insertar Columna(s) | I74: Dodati stupac (stupce) | J74: Doplnit sloupec (-ce) | K74: Dodaj stolpec (stolpce) | L74: Добавить столбец(-цы) | M74: Dobavit' stolbec ( -ci )
A75: 74 | B75: Spalte(n) löschen | C75: Delete column(s) | D75: Supprimer colonne(s) | E75: Kolom verwijderen | F75: Usun kolumne/y | G75: Eliminare colonne | H75: Eliminar Columna(s) | I75: Obrisati stupac (stupce) | J75: Smazat sloupec (-ce) | K75: Izbriši stolpec (stolpce) | L75: Удалить столбец(-цы) | M75: Udalit' stolbec ( -ci )
A76: 75 | B76: Zeile(n) hinzufügen | C76: Add row(s) | D76: Insérer ligne(s) | E76: Regel invoegen | F76: Dodaj rzad/rzedy | G76: Inserire linee | H76: Inseratr Fila(s) | I76: Dodati redak (retke) | J76: Doplnit řádek (-ky) | K76: Dodaj vrstico (vrstice) | L76: Добавить строку(-ки) | M76: Dobavit' stroku ( -ki )
A77: 76 | B77: Zeile(n) löschen | C77: Delete row(s) | D77: Supprimer ligne(s) | E77: Regel verwijderen | F77: Usun rzad/rzedy | G77: Eliminare linee | H77: Eliminar Fila(s) | I77: Obrisati redak (retke) | J77: Smazat řádek (-ky) | K77: Izbriši vrstico (vrstice) | L77: Удалить строку(-ки) | M77: Udalit' stroku ( -ki )
A78: 77 | B78: Spalten | C78: Columns | D78: Colonne | E78: Kolommen | F78: Kolumny | G78: Colonne | H78: Columna | I78: Stupac | J78: Sloupce | K78: Stolpec | L78: Столбцы | M78: Stolbci
A79: 78 | B79: Zeilen | C79: Rows | D79: Ligne | E79: Regels | F79: Rzedy | G79: linee | H79: Fila | I79: Redak | J79: Řádky | K79: Vrstica | L79: Строки | M79: Stroki
A80: 79 | B80: Bearbeitet werden die ausgwählten Zeilen oder Spalten. | C80: Eding the selected row/columns | D80: Édition des lignes ou colonnes sélectionnées | E80: De geselecteerde regels of kolommen worden bewerkt | F80: Edytuj zaznaczone rzedy/kolumny | G80: Stampa delle linee o colonne selezionate | H80: Edición de Filas o Columnas seleccionadas | I80: Obrada označenih redaka/stupaca | J80: Úprava vybraných řádků nebo sloupců | K80: Spremeni označene vrstice/stolpce | L80: Редактирование выбранных строк / столбцов | M80: Redaktirovanie vibrannih strok / stolbcov
A81: 80 | B81: Schließen | C81: Close | D81: Quitter | E81: Sluiten | F81: Zamknij | G81: Chiudi sessione | H81: Cerrar | I81: Zatvoriti | J81: Zavřít | K81: Zapri | L81: Закрыть | M81: Zakrit'
A82: 81 | B82: Bitte lesen Sie die Sicherungskarte in den Kartenleser ein. Danach OK drücken | C82: Please input security card and then OK. | D82: Insérer SVP la carte de propriété dans le lecteur puis cliquer sur OK | E82: Het veiligheidscertificaat door de kaartlezer halen. Daarna op OK drukken | F82: Wstaw karte bezpieczenstwa i kliknij OK.. | G82: Inserire la carta di proprietà nel lettore e premere su Ok | H82: Insertar Tarjeta de Seguridad y pulsar OK | I82: Molimo umetnite sigurnosnu karticu u čitač te odaberite OK (U redu). | J82: Prosím, položte bezpečnostní kartu na čtečku a stiskněte tlačítko "OK" | K82: Prosimo vstavite varnostno kartico in izberite OK | L82: Пожалуйста, установите карту в карт-ридер. После этого нажмите ОК | M82: Pozaluista, ustanovite kartu v kart-rider. Posle etogo nazmite OK
A83: 82 | B83: Eine bestehende Funktion soll geändert werden. Dies ist in der Regel nicht möglich. Trotzdem ändern? | C83: You try to change an existing Funktion. Mostly not possible. Nevertheless change? | D83: Une fonction existante doit être modifiée. Ce n'est pas pas possible normalement. Continuer ? | E83: Een bestaande functie moet gewijzigd worden.Dit is in het principe niet mogelijk. Toch veranderen? | F83: Zmieniasz istniejace funkcje. Czesto niemozliwe. Zmien pomimo to? | G83: Si sta tentando di modificare una funzione esistente. Continuare ? | H83: Está intentando modificar una función existente. Probablemente no es posible. ¿Continuar? | I83: Pokušavate promjeniti funkciju. Većinom nije primjenjivo. Želite li nastaviti promjenu? | J83: Snažíte se změnit stávající funkci. To nenín běžně možné. Přesto provést? | K83: Poskušate spremeniti funkcijo. Večinoma ni sprejemljivo. Želite nadaljevati? | L83: Вы пытаетесь изменить существующую функцию. Это, как правило, не представляется возможным. Тем не менее, изменить? | M83: Vi pitaetes' izmenit' sushestvuyushuyu funciyu. Eto, kaka pravilo, ne predstavlyaetsya vozmognim. Tem ne menee izmenit'
A84: 83 | B84: Typen OK | C84: Cylinder typ OK | D84: Types OK | E84: Types zijn OK | F84: Typ cylindra OK. | G84: Tipologia cilindro OK | H84: Modelo de cilindro OK | I84: Tip cilindra OK (U redu) | J84: Správný typ vložky | K84: Tip cilindra OK | L84: Тип цилиндра правильный, OK | M84: Tip cilindra pravilnyi, OK
A85: 84 | B85: Typen fehlerhaft | C85: Cylinder typ not correct. | D85: Types erronés | E85: Types foutmelding | F85: Zly typ cylindra | G85: Tipologia cilindro errato | H85: Modelo de cilindro incorrecto | I85: Tip cilindra nije točan | J85: Nesprávný typ vložky | K85: Tip cilindra ni pravi | L85: Тип цилиндра неправильный | M85: Tip cilindra ne pravilnyi
A86: 85 | B86: Typen prüfen | C86: Check types. | D86: Contrôle des types | E86: Types controleren | F86: Sprawdz typy cyl. | G86: Controllo tipologia | H86: Revisar Modelos | I86: Provjerite tipove | J86: Ověřte typ vložky | K86: Preverite tipe | L86: Проверьте Тип | M86: Prover'te tip
A87: 86 | B87: Mengenübersicht | C87: Quantity overview | D87: Aperçu des quantités | E87: Hoeveelheid overzicht | F87: Przegląd ilości | G87: Panoramica della quantità | H87: Resumen de cantidades | I87: Pregled količine | J87: Přehled množství | K87: Prehľad množstva | L87: Обзор количества | M87: Stoimost'
A88: 87 | B88: Multi % | C88: Multi % | D88: % Multi | E88: Korting % | F88: Mnoznik % | G88: Multi% | H88: Multi % | I88: Multi % | J88: Marže % | K88: Multi% | L88: Наценка % | M88: Nacenka %
A89: 88 | B89: BAZ (<=10Zyl.) % | C89: <=10 cyl. % | D89: <10 pièces | E89: Uitbreidingstoeslag % | F89: <=10 cyl. % | G89: <10 pezzi | H89: <= 10 cil% | I89: <=10 cil. % | J89: Marže pro méně než 10 vložek | K89: <=10 cil. % | L89: Наценка за <= 10 цилиндров % | M89: Nacenkaza <= 10 cilindrov %
A90: 89 | B90: Altanlage % | C90: Old system % | D90: % anc.plan | E90: Ouderdomstoeslag | F90: Stary system % | G90: Vecchio sistema % | H90: Sistema antiguo% | I90: Stari sistem % | J90: Marže pro starý systém | K90: Star sistem % | L90: Наценка за старую систему % | M90: Nacenka za staruyu sistemu %
A91: 90 | B91: Zuschlag 1 % | C91: Add 1 % | D91: % Plus-value 1 | E91: Toeslag 1 % | F91: Plus 1 % | G91: Sovrapprezzo 1% | H91: Añadir 1% | I91: Dodatak 1% | J91: Příplatek 1% | K91: Dodatek 1 % | L91: Наценка 1 % | M91: Nacenka 1 %
A92: 91 | B92: Zuschlag 2 % | C92: Add 2 % | D92: % Plus-value 2 | E92: Toeslag 2 % | F92: Plus 2 % | G92: Sovrapprezzo 2% | H92: Añadir 2% | I92: Dodatak 2% | J92: Příplatek 2% | K92: Dodatek 2 % | L92: Наценка 2 % | M92: Nacenka 2 %
A93: 92 | B93: Abschlag 1 % | C93: minus 1 % | D93: % Remise 1 | E93: Korting 1 % | F93: Minus 1 % | G93: Sconto 1% | H93: Restar 1% | I93: Smanjenje 1% | J93: Sleva 1% | K93: Zmanjšanje 1 % | L93: Скидка 1 % | M93: Skidka 1 %
A94: 93 | B94: Abschlag 2 % | C94: minus 2 % | D94: % Remise 2 | E94: Korting 2 % | F94: Minus 2 % | G94: Sconto 2% | H94: Restar 2% | I94: Smanjenje 2% | J94: Sleva 2% | K94: Zmanjšanje 2 % | L94: Скидка 2 % | M94: Skidka 2 %
A95: 94 | B95: Massen anzeigen | C95: Show | D95: Voir | E95: bekijken | F95: Pokaz | G95: Vedi | H95: Ver | I95: Pokazati | J95: Zobrazit | K95: Prikaži | L95: Показать | M95: Pokazat
A96: 95 | B96: MwSt. % | C96: Tax % | D96: % TVA | E96: BTW % | F96: VAT % | G96: %IVA | H96: %IVA | I96: PDV % | J96: DPH % | K96: DDV % | L96: НДС % | M96: NDS %
A97: 96 | B97: 19 | D97: 19.6 | E97: 19 | G97: 20 | I97: 25 | J97: 21 | K97: 25 | L97: 18 | M97: 18
A98: 97 | B98: zus. Einzelschlüssel | C98: additional keys | D98: Clés supplémentaires | E98: Extra monosleutels | F98: Dodatkowy klucz pojedynczy | G98: Chiavi suipplementari | H98: Llaves Suplementarias | I98: Dodatno ključeva | J98: Další klíče | K98: Dodatni ključi | L98: Дополнительные ключи | M98: Dopolnitel'nie kluchi
A99: 98 | B99: Einzelschl. ohne Zylinder | C99: Existing Keys | D99: Clé sans cylindre | E99: Monosleutels zonder cilinder | F99: Istniejace klucze | G99: Chiavi | H99: Llaves existentes | I99: Ključ bez cilindra | J99: Existující klíč | K99: Ključ brez cilindra | L99: Существующие ключи | M99: Sushestvuyushie kluchi
A100: 99 | B100: Neue GS/HS-Schlüssel | C100: New MK | D100: Nouveau Passe (PG seul ou PP ) | E100: Nieuwe GS/HS sleutels | F100: Nowy klucz grupowy GS/HS | G100: Nuovo MK | H100: Nuevo Amaestramiento Sencillo | I100: Novi sistem GS/HS - MK | J100: Nový hlavní skupinový klíč | K100: Nov sistem | L100: Новые Мастер / Групповые ключи | M100: Novie Master / Gruppovie kluchi
A101: 100 | B101: Best. GS/HS-Schlüssel | C101: Existing MK | D101: Passe existant (PG seul ou PP) | E101: Bestaande GS/HS sleutels | F101: Istniejacy klucz grupowy GS/HS- | G101: MK esistente | H101: Amaestramiento Sencillo Existente | I101: Postojeći sistem GS/HS - MK | J101: Existující hlavní skupinový klíč | K101: Obstoječi sistem | L101: Существующий Мастер / Групповой ключ | M101: Sushestvuyushij Master / Gruppovoi kluchi
A102: 101 | B102: Neue GHS-Schlüssel | C102: New GMK | D102: Nouveau Passe (PPG) | E102: Nieuwe GHS sleutels | F102: Nowy Klucz Generalny | G102: Nuovo GMK | H102: Nuevo Amaestramiento de Grupos | I102: Novi sistem GHS - GMK | J102: Nový generální klíč | K102: Nov sistem GMK | L102: Новый Гранд Мастер ключ | M102: Novij Grand Master kluch
A103: 102 | B103: Best. GHS-Schlüssel | C103: Existing GMK | D103: Passe existant (PPG) | E103: Bestaande GHS sleutels | F103: Istniejacy Klucz Generalny | G103: GMK esistente | H103: Amaestramiento de Grupos existente | I103: Postojeći sistem GHS - GMK | J103: Existující generální klíč | K103: Obstoječi sistem GMK | L103: Существующий Гранд Мастер ключ | M103: Sushestvuyushij Grand Master kluch
A104: 103 | B104: Neue G-Schlüssel | C104: New G | D104: Nouvelle clé G | E104: Nieuwe G sleutel | F104: Nowy Klucz Grupowy | G104: Nuova chiave G | H104: Nuena llave de Grupo | I104: Novi G-ključ (isti) | J104: Nový skupinový klíč | K104: Novi G-ključ | L104: Новый Групповой ключ | M104: Novij Gruppovoi kluch
A105: 104 | B105: Best. G-Schlüssel | C105: Existing G | D105: Clé G éxistante | E105: Bestaande G sleutel | F105: Istniejacy Klucz Grupowy | G105: Chiave G esistente | H105: Llave de Grupo existente | I105: Postojeći G-ključ (isti) | J105: Existující skupinový klíč | K105: Obstoječi G-ključ | L105: Существующий Групповой ключ | M105: Sushestvuyushij Gruppovoi kluch
A106: 105 | B106: Gesamt | C106: Total | D106: Total | E106: Totaal | F106: Lacznie | G106: Totale | H106: Total | I106: Ukupno | J106: Celkem | K106: Skupaj | L106: Всего | M106: Vsego
A107: 106 | B107: Anz. VL | C107: Quant. Length | D107: Qté de rallongements | E107: Aantal verlengingen | F107: Ilosc przedluzen | G107: Allungamenti | H107: Cantidad Longitud | I107: Količina Dužina | J107: Množství rozšíření | K107: Količina Dolžina | L107: Количество расширений | M107: Kolichestvo rasshirenij
A108: 107 | B108: Summe | C108: Sum | D108: Total | E108: Totaal | F108: Suma | G108: Totale | H108: Suma/Total | I108: Zbroj | J108: Celkem | K108: Vsota | L108: Сумма | M108: Summa
A109: 108 | B109: Preis | C109: Price | D109: Prix | E109: Prijs | F109: Cena | G109: Prezzo | H109: Precio | I109: Cijena | J109: Cena | K109: Cena | L109: Цена | M109: Cena
A110: 109 | B110: Einzelpreis | C110: Single Price | D110: Prix unitaire | E110: Stuksprijs | F110: Cena za sztuke | G110: Prezzo unitario | H110: Precio Unitario | I110: Jedinična cijena | J110: Jednotková cena | K110: Cena za kos | L110: Цена за единицу | M110: Cena za edinicu
A111: 110 | B111: Preisliste | C111: Price list | D111: Liste de prix | E111: Prijslijst | F111: Cennik | G111: Listino | H111: Precio de Tarifa | I111: Cjenik | J111: Ceník | K111: Cenik | L111: Прайс-лист | M111: Prais-list
A112: 111 | B112: Planung | C112: Planing | D112: Prévision | E112: Planning | F112: Planowane rozszerzenie | G112: Previsioni | H112: Previsión | I112: Planiranje | J112: Plánování | K112: Planiranje | L112: Планирование | M112: Planirovanije
A113: 112 | B113: N =Neu | C113: N = New | D113: N=Nouveau | E113: N= Nieuw | F113: N = Nowy | G113: N=nuovo | H113: N=Nuevo | I113: N= Novi | J113: N = nový | K113: N=Novi | L113: N= Новый | M113: N=Novij
A114: 113 | B114: B = Bestehend | C114: B = Exist | D114: B=Existant | E114: B= Bestaand | F114: B = Istniejacy | G114: B=esistente | H114: B=Existente | I114: B = Postojeći | J114: B = existující | K114: B=Obstoječi | L114: B= Существующий | M114: B=Sushestvuyushij
A115: 114 | B115: Import ab Pos. | C115: Import to Pos. | D115: Importer de lg. | E115: Import vanaf positie | F115: Przenies do poz. | G115: Importa dalla posizione | H115: Importar de Pos. | I115: Ubaciti kod RB | J115: Import na posici | K115: Uvozi v Poz. | L115: Импортировать в позицию | M115: Inmportirovat' v poziciyu
A116: 115 | B116: Spalte(n) Import | C116: Columns import | D116: Importer colonne(s) | E116: Import van kolom(men) | F116: Przenies kolumny | G116: Importare colonna (e) | H116: Importar Columna(s) | I116: Uvoz stupaca | J116: Import sloupců | K116: Uvozi stolpec | L116: Импортировать столбцы | M116: Inmportirovat' stolbci
A117: 116 | B117: Bitte Funktionsart wählen. X, Z, M, I, G | C117: Choose kind of Function. X, Z, M, I, G | D117: Choisir, SVP, le type de fonction (X, Z, M, I, G) | E117: Kies uit functie: X, Z, M, I, G | F117: Wybierz rodzaj funkcji: X, Z, M, I, G. | G117: Selezionare la funzione (X,Z,M,I,G) | H117: Elegir tipo de función:X, Z, M, I, G | I117: Izaberite funkciju: X, Z, M, I, G | J117: Vyberte typ funkce: X, Z, M, I, G | K117: Izberite funkcijo: X, Z, M, I, G | L117: Выбрать Функциольное назначение : X, Z, M, I, G | M117: Vibrat' Funkcional'noe naznachenije : X, Z, M, I, G
A118: 117 | B118: Sicherungkarte paßt nicht zur Anlagennummer!!! | C118: Security card data not equal to system code | D118: Carte incompatible avec l'organigramme | E118: Veiligheidscertificaat komt niet overeen met Sluitsysteemnummer | F118: Dane karty bezp. niezgodne z kodem systemu | G118: Carta di proprietà non riconosciuta | H118: Tarjeta de Seguridad no compatible con código del amaestramiento | I118: Sigurnosna kartica ne odgovara šifri sistema! | J118: Číslo bezpečnostní karty nesouhlasí!!! | K118: Varnostna kartica ne ustreza številki sistema | L118: Данные Карты безопасности не соответствуют Коду Системы | M118: Danie Karti bezopasnosti ne sootvetstvuyut Kodu Sistemi
A119: 118 | B119: Unverbindliche Preisermittlung auf der Grundlage der o.g. Vorgaben. | D119: Ce devis est calculé à titre indicatif et n´a pas de valeur contractuelle. | E119: Prijsindicaties van het systeem zijn onder voorbehoud van een correcte invoer | G119: Questo preventivo è a titolo indicativo e non ha valore contrattuale | H119: Importe calculado a título indicativo, sin valor contractual | I119: Neobvezujuće formiranje cijena na temelju zadanih vrijednosti. | J119: Doporučená maloobchodní cena na základě výše uvedené specifikace. | K119: Neobvezno formiranje cene na podlagi podanih vrednosti | L119: Рекомендуемая розничная цена определена на основе вышеуказанных Технических характеристик | M119: Rekomenduemaya roznicnaya cena opredelena na osnove visheukazannich Technicheskih harakteristik
A120: 119 | B120: Bitte beachten Sie die Preise unserer Auftragsbestätigung. | D120: Le prix vous sera confirmé par le service d'administration des ventes. | E120: Let U a.u.b. op de prijzen die vermeld staan op de opdrachtbevestiging | G120: Il prezzo vi sarà confermato dall'amministrazione vendite | H120: El precio será confirmado por el departamento comercial | I120: Molimo osvrnite se na cijene na našim potvrdama narudžbi. | J120: Vezměte na vědomí, že konečné ceny budou stanoveny v potvrzení objednávky. | K120: Prosimo preglejte cene na naših potrditvah naročil | L120: Обратите внимание, окончательные цены будут определены после нашего подтверждения заказа. | M120: Obratite vnimanie, okonchate'nie ceni budut opredeleni posle nashego podtvergdeniya zakaza
A121: 120 | B121: Diese Preisermittlung wird beim verlassen der Tabelle gelöscht. | D121: Ce calcul de prix sera supprimé en quittant ce tableau | E121: Deze prijsopgaaf wordt bij het verlaten van dit tabblad gewist | G121: Questo preventivo sarà cancellato chiudendo questa tabella | H121: El cálculo del precio se eliminará al salir de la tabla | I121: Formirane cijene će se kod slijedećeg zatvaranja tablice obrisati. | J121: Tato hodnota bude smazána při opuštění tabulky. | K121: Cene se bodo pri sledečem zapiranju tabele izbrisale | L121: Это значение сбрасывается при выходе из таблицы. | M121: Eto znachenie sbrasivaetsya pri vihode iz tablici
A122: 121 | B122: Schlüssel | C122: Keys | D122: Clé | E122: Sleutel | F122: Klucze | G122: Chiave | H122: Llaves | I122: Ključ | J122: Klíč | K122: Ključ | L122: Ключи | M122: Kluchi
A123: 122 | B123: Zylinder | C123: Cylinders | D123: Cylindre | E123: Cilinder | F123: Cylindry | G123: Cilindro | H123: Cilindro | I123: Cilindar | J123: Vložka | K123: Cilinder | L123: Цилиндры | M123: Cilindri
A124: 123 | B124: Duplizieren mit "@" | C124: duplicate with "@" | D124: Dupliquer avec "@" | E124: Kopie met "@" | F124: Powiel uzywajac "@" | G124: duplicare con "@" | H124: Duplicar con "@" | I124: Poduplati sa "@" | J124: Zdvojení s "@" | K124: Podvoji z "@" | L124: Дублирование с "@" | M124: Dublirovanie s "@"
A125: 124 | B125: Startnummer für "@" | C125: Start number for "@" | D125: 1er numéro | E125: Start nummer | F125: Zacznij numerowanie - "@" | G125: Numero di partenza per "@" | H125: Iniciar número por "@" | I125: Početni broj za "@" | J125: Prvotní číslo s "@" | K125: Začetna številka za "@" | L125: Начните номер с "@" | M125: Nachnite nomer s "@"
A126: 125 | B126: Anzahl der Kopien | C126: Copys count | D126: Nombre de copie | E126: Aantal copys | F126: Ilosc kopii | G126: Numero di copia | H126: Número de copias | I126: Broj kopija | J126: Množství kopií | K126: Število kopij | L126: Количество копий | M126: Kolichestvo kopij
A127: 126 | B127: Wertehilfe für Typ, Ausf., Länge und Farbe mit "F1" | C127: Input help for types, design, length and color with "F1" | D127: Aide pour le Type, Fonction, longueurs et Finition avec "F1" | E127: "F1"- Help: Typ, Uitvoering, Lengte, kleur | F127: Pomoc w szukaniu - "F1" | G127: Aiuto per Tipologia,Funzione,Lunghezza e Finitura con "F1" | H127: Ayuda para el Tipo, Función, Longitud y Acabado con "F1" | I127: Pomoć kod ispunjavanja za tip, izvedbu/dizajn, dužinu i obradu sa "F1" | J127: Stiskněte "F1" pro nápovědu k typu, versi, délku a barvu. | K127: Pomoč za tip, izvedbo, dolžino in barvo z "F1" | L127: Нажмите "F1" для получения возможных вариантов типа, исполнения, длины и цвета цилиндра | M127: Nagmite "F1" dlya polucheniya vozmognih variantov tipa, ispolnenija, dlini i cveta cilindra
A128: 127 | B128: Lesefehler | C128: reading error | D128: Erreur de lecture | E128: Error inlezen | F128: Blad odczytu | G128: Errore di lettura | H128: Error de lectura | I128: Greška kod očitavanja | J128: Chyba čtení | K128: Napaka pri branju | L128: Ошибка чтения | M128: Oshibka chtenija
A129: 128 | B129: Nur neue Positionen ohne Status | C129: Only new positions with no status | D129: Uniquement les positions en extension | E129: Nieuwe positions zonder status | F129: Tylko nowe pozycje bez statusu | G129: Solo nuove posizioni senza status | H129: Unicamente las posiciones de ampliación | I129: Samo su nove pozicije bez statusa | J129: Pouze nové pozice bez zařazení | K129: Samo nove pozicije brez statusa | L129: Только новые позиции без статуса | M129: Tol'ko novie pozicii bez statusa
A130: 129 | B130: Drucken | C130: Print | D130: Imprimer | E130: Drukken | F130: Druk | G130: Stampa | H130: Imprimir | I130: Printanje | J130: Tisk | K130: Natisni | L130: Печать | M130: Pechat'
A131: 130 | B131: . (Punkt) bitte nicht verwenden. | C131: Please do not use "." (Full stop) | D131: . ! Merci de ne pas utiliser le point | E131: "." - Nummer Error | F131: Zly numerowanie (".") | G131: Si prega di non utilizzare "." | H131: No usar por favor "." (Punto) | I131: Molimo ne koristite točku "." | J131: Prosím, nepoužívejte "." (Tečku) | K131: Ne uporabljaj "." | L131: Пожалуйста не используйте "." | M131: Pogalujsta ne ispol'zujte "."
A132: 131 | B132: Fester Aufschag je Zylinder | C132: Text 131 | D132: Plus-value / cyl. | E132: Toeslag per cylinder | F132: Text 131 | G132: Plusvalenza / cil. | H132: Texto 131 | I132: Fiksna nadoplata na svaki cilindar | J132: Pevná cena za vložku | K132: Doplačilo za vsak cilinder | L132: Фиксированная плата за цилиндр | M132: Fiksirovannaya plata za cilindr
A133: 132 | B133: Fehler Daten Typ bei Abzug je Zylinder | C133: Text 132 | D133: Erreur Data-Type - Remise par cylindres | E133: Error - Korting per cilinder | F133: Text 132 | G133: Errore Data - Tipo - sconto per cilindro | H133: Texto 132 | I133: Greška prilikom odbitka kod podatka o tipu na svaki cilindar | J133: Chyba dat - typu - sleva na vložku | K133: Napaka pri odbitku pri podatkih o tipu za vsak cilinder | L133: Ошибка типа данных - скидка за цилиндр | M133: Oshibka tipa dannich - skidka za cilindr
A134: 133 | B134: Sortieren nach Spalte | C134: Sort by column | D134: trier colonne | E134: Sort by column | F134: sortowanie wedlug kolumn | G134: Ordinare per colonna | H134: Ordenar por columnas | I134: Sortirati prema stupcu | J134: Seřadit podle sloupce | K134: Razvrsti po stoplcu | L134: Сортировать по столбцу | M134: Sortirovat' po stolbcu
A135: 134 | B135: Der Schließplan ist auf max. 5000 Zeilen begrenzt. | C135: Maximally 5000 rows | D135: Au maximum 5000 lignes | E135: Maximaal 5000 regel | F135: Max 5000 rzedy | G135: Massimo 5000 linee | H135: Máximo 5000 líneas | I135: Plan zaključavanja je ograničen na maks. 5000 redaka | J135: Maximum 5000 řádků | K135: Načrt zaklepanja je omejen na največ 5000 vrstic | L135: Максимум 5000 строк | M135: Maksimum 5000 strok
A136: 135 | B136: Anzahl Sonderspalten. Werden wie die "Freie Eingabe" nicht in DOM-Plan übernommen | C136: Special Columns | D136: Colonne spécialement | E136: Speciaal Kolommen | F136: Kolumny extra | G136: Colonne speciali | H136: Columnas especiales | I136: Broj specijalnih stupaca. DOM plan ne dozvoljava "slobodan unos". | J136: Speciální sloupce s "Volný vstup" nejsou zahrnuty do plánu | K136: Št. posebnih stolpcev. DOM plan ne dovoli "prostega vnosa" | L136: Специальные столбцы | M136: Specialniye stolbci
A137: 136 | B137: Schüsselnummer mehrfach vorhanden. Funktion wird für alle Positionen übernommen. | C137: Keynumber already exists. Existing positions get the new funktion. | D137: N° de clé déjà existant. La nouvelle fonction est prise en charge. | E137: Sleutelnummer is reeds bekend. Lijkt op functie, Lijkt op nummer. | F137: Uwaga! Istniejacy numer klucza. Istniejaca funkcja bedzie zmieniona. | G137: N° di chiave già esistente.La nuova funzione è supportata | H137: Núm de llave existente. Posición existente obtener nueva función | I137: Oznaka ključa već postoji. Sve postojeće pozicije će dobiti nove funkcije. | J137: Pozor! Číslo klíče již existuje. Budou změněny funkce existujícího klíče! | K137: Oznaka ključa že obstaja. Vse obstoječe pozicije bodo dobile nove funkcije. | L137: Внимание! Номер ключа уже существует. Функция всех существующих позиций будет изменена. | M137: Vnimanie! Nomer klucha uge sushestvuyet. Funkcija vseh sushestvuyushih pozocij budet izmenena
A138: 137 | B138: Neu! | C138: New! | D138: Nouveau! | E138: Nieuw! | F138: Nowy | G138: Nuova | H138: Nuevo | I138: Novi | J138: Nový | K138: Nov | L138: Новая | M138: Novaya
A139: 138 | B139: Typenbezeichnung | C139: Type designation | D139: Dénomination du type | E139: Typeaanduiding | F139: Oznaczenie typu | G139: Designazione tipo | H139: Denominación del Tipo | I139: Oznaka tipa | J139: Popis typu | K139: Oznaka tipa | L139: Описание Типа | M139: Opisanije Tipa
A140: 139 | B140: GHS | C140: GMK | D140: PPG | E140: GMK | F140: GMK | G140: GMK | H140: GRUPO | I140: MKS | J140: MKS | K140: GMK | L140: MKS | M140: MKS
A141: 140 | B141: HS | C141: MK | D141: PG | E141: MK | F141: MK | G141: MK | H141: MAESTRA | I141: MK | J141: MK | K141: MK | L141: MK | M141: MK
A142: 141 | B142: ZHS | C142: CMK | D142: CPG | E142: CMK | F142: CMK | G142: CK | H142: MAESTRA/PORTAL | I142: CMK | J142: CMK | K142: CMK | L142: CMK | M142: CMK
A143: 142 | B143: Z | C143: CC | D143: C | E143: CC | F143: CC | G143: C | H143: PORTAL | I143: CC | J143: CC | K143: CC | L143: CC | M143: CC
A144: 143 | B144: ? | C144: ? | D144: ? | E144: ? | F144: ? | G144: ? | H144: ? | I144: ? | J144: ? | K144: ? | L144: ? | M144: ?
A145: 144 | B145: Profilserie | C145: profile series | D145: profile series | E145: profile series | F145: seria profili | G145: Serie profilo | H145: profile series | I145: profile series | J145: profile series | K145: Serija profila | L145: profile series | M145: profile series
A146: 145 | B146: Zentralzyl. I in Z | C146: central cylinder | D146: centrales | E146: Centraalcilinder | F146: centralna wkladka I zamyka Z ( Z - centralna wkladka) | G146: centrali | H146: central cylinder | I146: central cylinder | J146: central cylinder | K146: Centralni cilinder | L146: central cylinder | M146: central cylinder
A147: 146 | B147: Z-Funktion I in Z | C147: central function | D147: function centrales | E147: Centraalcilinder | F147: centralna funkcja I zamyka Z ( Z - centralna wkladka) | G147: centrali funzione | H147: central function | I147: central function | J147: central function | K147: Centralna funkcija | L147: central function | M147: central function
A148: 147 | B148: Schlüsselnummer für Zentralzylinder muß mit "C..." beginnen | C148: Key number for Centralcylinder must start with "C..." | D148: Les n° d' ouvertures centrales doivent commencer par "C…." | E148: Sleutelnummer voor Centraalcilinder moet met "C.." beginnen | F148: Nr klucza centralnej wkladki musi zaczynac się od "C…" | G148: Il n° degli accessi centrali deve iniziare con "C" | H148: Los núm de cilindros centrales deben comenzar por C | I148: Oznaka ključa za centralni cilindar mora se označiti sa "C" | J148: Číslo klíče pro centrální vložku musí začínat "C..." | K148: Oznaka ključa za centralni cilinder se mora začeti z "C…" | L148: Номер ключа для центрального цилиндра должен начинаться с "C..." | M148: Nomer klucha dlya centralnogo cilindra dolgen nachinat'sya s "C..."
A149: 148 | B149: GS | C149: MK | D149: SPG | E149: MK | F149: MK | G149: SGC | H149: SUPGRUPO | I149: SMK | J149: SMK | K149: MK | L149: SMK | M149: SMK
A150: 149 | B150: Eingang | C150: entrance | D150: contribution | E150: invoer | F150: wkład | G150: ingresso | H150: entrada | I150: bemenet | J150: vstup | K150: Vhod | L150: вход | M150: uvachod
A151: 150 | B151: Haupteingang | C151: Main entrance | D151: entrée principale | E151: hoofdingang | F151: główne wejście | G151: portone | H151: entrada principal | I151: főbejárat | J151: hlavní vchod | K151: Glavni vhod | L151: главный вход | M151: haloŭny ŭvachod
A152: 151 | B152: Nebeneingang | C152: side entrance | D152: entrée latérale | E152: zijingang | F152: boczne wejście | G152: ingresso laterale | H152: entrada lateral | I152: oldalbejárat | J152: boční vchod | K152: Stranski vhod | L152: боковой вход | M152: bakavy ŭvachod
A153: 152 | B153: Fahrradkeller | C153: Bicycle storage | D153: Garage à vélos | E153: fietsenstalling | F153: Przechowalnia rowerów | G153: Deposito biciclette | H153: para guardar las bicicletas | I153: Kerékpár tároló | J153: úschovna kol | K153: Kolesarnica | L153: для хранения велосипедов | M153: dlia zachoŭvannia rovaraŭ
A154: 153 | B154: Hausanschlussraum | C154: Building connection room | D154: Bâtiment salle de connexion | E154: Gebouw verbinding room | F154: Budowa połączenia pokoju | G154: Building collegamento | H154: Edificio sala de conexión | I154: Építési kapcsolat szoba | J154: Budova spojení místnost | K154: Servisna soba | L154: Подключение номера здания | M154: Padkliučennie numary budynka
A155: 154 | B155: Heizung | C155: heating | D155: chauffage | E155: verwarming | F155: ogrzewanie | G155: riscaldamento | H155: calefacción | I155: fűtés | J155: topení | K155: Kurilnica | L155: отопление | M155: aciapliennie
A156: 155 | B156: Müll | C156: trash | D156: déchets | E156: afval | F156: odpady | G156: spreco | H156: residuos | I156: hulladék | J156: odpad | K156: Smeti | L156: отходы | M156: adchody
A157: 156 | B157: Wohnung | C157: apartment | D157: appartement | E157: appartement | F157: apartament | G157: appartamento | H157: apartamento | I157: lakás | J157: byt | K157: Stanovanje | L157: квартира | M157: kvatera
A158: 157 | B158: Keller | C158: cellar | D158: cave | E158: kelder | F158: piwnica | G158: cantina | H158: bodega | I158: pince | J158: sklep | K158: Klet | L158: подвал | M158: padval
A159: 158 | B159: Briefkasten | C159: mailbox | D159: boîte aux lettres | E159: brievenbus | F159: skrzynka pocztowa | G159: cassetta della posta | H159: buzón | I159: postafiók | J159: poštovní schránka | K159: Nabiralnik | L159: почтовый ящик | M159: paštovuju skryniu
A160: 159 | B160: Garage | C160: garage | D160: garage | E160: garage | F160: garaż | G160: garage | H160: garaje | I160: garázs | J160: garáž | K160: Garaža | L160: гараж | M160: haraž
A161: 160 | B161: WC | C161: WC | D161: toilettes | E161: WC | F161: toaleta | G161: WC | H161: WC | I161: WC | J161: WC | K161: Stranišče | L161: туалет | M161: tualiet
A162: 161 | B162: WC Damen | C162: WC Women | D162: WC Femmes | E162: WC Vrouwen | F162: WC kobiety | G162: WC Donne | H162: WC Mujeres | I162: WC Női | J162: WC Ženy | K162: Žensko stranišće | L162: WC Женщины | M162: WC Žančyny
A163: 162 | B163: WC Herren | C163: WC Men | D163: WC hommes | E163: WC Men | F163: WC mezczyzni | G163: WC Men | H163: WC Hombres | I163: WC Men | J163: WC Men | K163: Moško stranišče | L163: WC Мужчины | M163: WC Mužčyny
A164: 163 | B164: Büro | C164: office | D164: bureau | E164: kantoor | F164: biuro | G164: ufficio | H164: oficina | I164: iroda | J164: kancelář | K164: Pisarna | L164: офис | M164: ofis
A165: 164 | B165: Vorraum | C165: anteroom | D165: antichambre | E165: voorkamer | F165: przedpokój | G165: anticamera | H165: antesala | I165: előszoba | J165: předpokoj | K165: Predprostor | L165: передняя | M165: piaredniaja
A166: 165 | B166: Durchgang | C166: passage | D166: passage | E166: passage | F166: przejście | G166: passaggio | H166: pasaje | I166: áthaladás | J166: průchod | K166: Prehod | L166: прохождение | M166: prachodžannie
A167: 166 | B167: Geschäftsleitung | C167: Management | D167: gestion | E167: beheer | F167: zarządzanie | G167: gestione | H167: administración | I167: vezetés | J167: management | K167: Uprava | L167: управление | M167: kiravannie
A168: 167 | B168: Personalabteilung | C168: personnel department | D168: service du personnel | E168: personeelsdienst | F168: dział kadr | G168: ufficio del personale | H168: departamento de personal | I168: személyzeti osztály | J168: osobní oddělení | K168: Kadrovski oddelek | L168: отдел кадров | M168: addziel kadraŭ
A169: 168 | B169: Konstuktion | C169: Architectural Technology | D169: technologie de l'architecture | E169: Architectural Technology | F169: Technologia architektoniczne | G169: Tecnologia dell'Architettura | H169: arquitectura Técnica | I169: építészeti technológia | J169: architektonické Technology | K169: Arhitektura | L169: архитектурные технологии | M169: architekturnyja technalohii
A170: 169 | B170: Verkauf | C170: sale | D170: vente | E170: verkoop | F170: sprzedaż | G170: vendita | H170: venta | I170: eladás | J170: prodej | K170: Prodaja | L170: продажа | M170: prodaž
A171: 170 | B171: Produktion | C171: production | D171: production | E171: productie | F171: produkcja | G171: produzione | H171: producción | I171: termelés | J171: výroba | K171: Proizvodnja | L171: производство | M171: vytvorčasć
A172: 171 | B172: Halle | C172: Hall | D172: hall | E172: hal | F172: hala | G172: sala | H172: sala | I172: hall | J172: sál | K172: Dvorana | L172: зал | M172: zala
A173: 172 | B173: IT | C173: IT | D173: IT | E173: IT | F173: IT | G173: IT | H173: informática | I173: IT | J173: IT | K173: IT | L173: IT | M173: IT
A174: 173 | B174: Server | C174: server | D174: serveur | E174: server | F174: serwer | G174: server | H174: servidor | I174: szerver | J174: Server | K174: Strežnik | L174: сервер | M174: siervier
A175: 174 | B175: EDV | C175: it | D175: IT | E175: IT | F175: IT | G175: IT | H175: informática | I175: IT | J175: IT | K175: IT | L175: IT | M175: IT
A176: 175 | B176: Vertrieb | C176: distribution | D176: ventes | E176: verkoop | F176: obroty | G176: vendite | H176: venta | I176: értékesítés | J176: odbyt | K176: Distribucija | L176: продаж | M176: prodažaŭ
A177: 176 | B177: Export | C177: export | D177: exportation | E177: export | F177: eksport | G177: esportazione | H177: exportación | I177: export | J177: export | K177: Izvoz | L177: экспорт | M177: ekspart
A178: 177 | B178: Technik | C178: technology | D178: technologie | E178: technologie | F178: technologia | G178: tecnologia | H178: tecnología | I178: technológia | J178: technologie | K178: Tehnologija | L178: технология | M178: technalohija
A179: 178 | B179: Systeme für Neuanlagen | C179: New systems | D179: Nouveaux systèmes | E179: New systems | F179: New systems | G179: New systems | H179: New systems | I179: New systems | J179: New systems | K179: Novi sistemi | L179: New systems | M179: New systems
A180: 179 | B180: Sonstige Systeme | C180: Other systems | D180: D'autres systèmes | E180: Other systems | F180: Other systems | G180: Other systems | H180: Other systems | I180: Other systems | J180: Other systems | K180: Drugi sistemi | L180: Other systems | M180: Other systems
A181: 180 | B181: Händlerprofile | C181: Lochsmith profiles | D181: Revendeur profil | E181: Lochsmith profiles | F181: Lochsmith profiles | G181: Lochsmith profiles | H181: Lochsmith profiles | I181: Lochsmith profiles | J181: Lochsmith profiles | K181: Servisni profili | L181: Lochsmith profiles | M181: Lochsmith profiles
A182: 181 | B182: Objektpreisnummer | C182: object price number | D182: numéro de prix de l'objet | E182: object prijs nummer | F182: numer ceny obiektu | G182: numero del prezzo dell'oggetto | H182: número de precio del objeto | I182: object price number | J182: object price number | K182: object price number | L182: object price number | M182: object price number

Sheet Schluessel (hidden)
A1: Gruppenschlüssel | B1: Schließplan | C1: Nachlieferung | D1: Gesamt | F1: Einzelschlüssel | G1: Schließplan | H1: Nachlieferung | I1: Gesamt

Sheet example 1

Sheet example 2 (hidden)

Sheet example 3 (hidden)

Sheet Produkte (hidden)
D1: Für weitere Informationen hier klicken. | F1: Händlerportal www.domextranet.de
B2: Zylindertypen
B4: Typ 333 | D4: Typ 333H | F4: Typ 333K6 | H4: Typ 393 | J4: Typ 555
B5: Doppelzylinder (333T beidseitig schließbar) | D5: Halbzylinder | F5: Knaufzylinder | H5: Zylinder für Schlüsselschalter mit Steckschloss und 2 Microschaltern. | J5: Typ 555P (Holztür) Typ555R (Metalltür) Außenzylinder für Aufschraubschlösser
B7: Typ 333M | D7: Typ 382 | F7: Typ 777G3 | H7: Typ 633
B8: Modularzylinder (333MU unmontiert) | D8: Schweres Zylinderhebelschloss | F8: Hangschloss | H8: Runddoppelzylinder
B10: Für weitere Informationen hier klicken.

Sheet Ausführungen
A1: Beidseitig
A2: T
A3: Biffar Nase
A4: Biffar
A5: Bohrschutz
A6: B
A7: Bügelhöhe 120 mm (SV selbstverriegelung/ ZV Zwangsverriegelung)
A8: SV 120 mm
A9: ZV 120 mm
A10: Bügelhöhe 32 mm (SV selbstverriegelung/ ZV Zwangsverriegelung)
A11: SV 32 mm
A12: ZV 32 mm
A13: Bügelhöhe 60 mm (SV selbstverriegelung/ ZV Zwangsverriegelung)
A14: SV 60 mm
A15: ZV 60 mm
A16: durchrutschend links
A17: L
A18: durchrutschend rechts
A19: R
A20: Eins SS Eins Normal
A21: SN
A22: Eins. Blind, Eins SS
A23: BLS
A24: Einseitig Blind einseitig normal
A25: BLN
A26: Gefahrenfunktion mit sep. Gefahrenschlüssel
A27: G
A28: Gewinde - Mitnehmer
A29: A
A30: B
A31: C
A32: D
A33: E
A34: F
A35: G
A36: Hebel Schlüsselschrank
A37: DS
A38: Innen Aussen
A39: I/A
A40: Knauf
A41: K1
A42: K2
A43: K3
A44: K4
A45: K6
A46: K6CH
A47: KUBEIGE
A48: KUDUNKELBLAU
A49: KUDUNKELBRAUN
A50: KUDUNKELGRUEN
A51: KUDUNKELROT
A52: KUGELB
A53: KUGRAU
A54: KUGRUEN
A55: KUROT
A56: KUSCHWARZ
A57: KUWEISS
A58: Knauf Mitnehmer
A59: K6CHCH
A60: Links
A61: LI
A62: Rechts
A63: RE
A64: SCHALTERSTELLUNG MFA 4X90°
A65: MFA
A66: SCHALTERSTELLUNG MFB 6X60°
A67: MFB
A68: SCHALTERSTELLUNG MFC 8X45°
A69: MFC
A70: SCHALTERSTELLUNG MFD 12X30°
A71: MFD
A72: SCHALTERSTELLUNG MFF 4X90°
A73: MFF
A74: SCHALTERSTELLUNG MFG 6X60°
A75: MFG
A76: SCHALTERSTELLUNG MFH 8X45°
A77: MFH
A78: SCHALTERSTELLUNG MFJ 12X30°
A79: MFJ
A80: SCHALTERSTELLUNG MFO 1X360°
A81: MFO
A82: SCHALTERSTELLUNG MFU 4X90°
A83: MFU
A84: Schlüsseldrehweg
A85: 393/1 - 1 x 90°
A86: 393/2 - 1 x 90° rückfedernd
A87: 393/3 - 1 x 360° 90°
A88: 393/4 - 2 x 90°
A89: Schweizer Mitnehmer
A90: CH
A91: CHK2
A92: CHK3
A93: CHK6
A94: Seewasser
A95: SEW
A96: Spanischer Mitnehmer
A97: MI ESP
A98: SS
A99: SS
A100: T und Bohrschutz
A101: TB
A102: Zahnrad Schlüsseldepot
A103: SD

Sheet Farben

Sheet Hilfe-DE (hidden)
A3: DOM-XL
A5: DOM - Sicherheitstechnik GmbH , 50309 Brühl
A7: Tel: 02232/ 704-0
A9: Bitte senden Sie uns den fertigen DOM-XL-Schließplan per E-Mail.
A11: Anleitung:
A13: Nach dem Lesen der folgenden Zeilen sind Sie in der Lage, mit DOMXL Schließanlagen schnell zu erfassen und vorab zu kalkulieren.
A15: Start
A17: 1. Öffnen Sie die Datei DOMXL.XLT. Beim Öffnen werden Sie gefragt ob Sie "Makros aktivieren" möchten. Diese Frage müssen Sie mit "Ja" beantworten, um die Datei mit voller Funktionalität zu öffnen. Sollte diese Frage nicht gestellt werden, müssen Sie in Excel unter "Extras>Macro>Sicherheit" die Sicherheitsstufe auf "Mittel" oder "Niedrig" einstellen. Danach schließen Sie Excel und starten Excel neu.
A18: 2. Füllen Sie, soweit bekannt, die Felder im Tabellenblatt "Start" aus.
A19: 3. Wenn Sie einen Magnetkartenleser besitzen und zu einer bestehenden Schließanlage eine Erweiterung erfassen wollen, klicken Sie auf "Sicherungskarte". In der nächsten Maske stellen Sie den Anschluss Ihres Kartenlesers ein und wählen "Karte einlesen". Nachdem die Karte in den Leser eingelesen wurde wählen Sie "OK".
A20: 4. Über "Schließplan bearbeiten" oder F3 gelangen Sie zum Schließplan.
A22: Schließplan
A24: 1. Soweit die Felder noch nicht durch die Sicherungskarte gefüllt wurden, machen Sie Angaben zu "Neuanlage/Erweiterung", "Anlagennummer", "Anlagenart" und "System".
A25: 2. Erfassen Sie die Spalten "Raumbezeichnungen", "Freie Eingabe" und "Schlüsselnummer". Über den Schalter "Bearbeiten>Spalten importieren" (oder F8-Taste ) können externe Daten durch Kopieren über die Zwischenablage übernommen werden.
A26: 3. Füllen Sie die Felder "Anzahl", "Zylindertyp", "Ausführung", "Länge" und "Farbe" aus. Hier erhalten Sie mit der F1-Taste Hilfe über eine Auswahlliste gültiger Werte, die Sie durch Anklicken übernehmen können.
A28: F1: Wertehilfe für Zylindertyp, Ausführung, Länge und Farbe.
A29: F5: Übernimmt den Wert der darüberliegenden Zelle.
A30: F6: Übernimmt die darüberliegende Zeile komplett.
A31: F7: Übernimmt den rechten Rest der darüberliegenden Zeile.
A32: F9: Fügt Zeile(n) ein. Diese Funktion ist auch unter dem Schalter "Bearbeiten zu finden".
A33: F10: Löscht Zeile(n). Diese Funktion ist auch unter dem Schalter "Bearbeiten zu finden".
A34: F11: Fügt Spalte(n) ein. Diese Funktion ist auch unter dem Schalter "Bearbeiten zu finden".
A35: F12: Löscht Spalte(n). Diese Funktion ist auch unter dem Schalter "Bearbeiten zu finden".
A36: Shift F5: Kopiert die markierten Werte einer Spalte und fügt sie unterhalb der Markierung ein.
A37: Shift F6: Kopiert den markierten Bereich und fügt ihn unterhalb der Markierung ein.
A39: 4. Rot markierte Felder deuten darauf hin, dass hier noch eine Eingabe bzw. Änderung (z.B.: Andere Schreibweise, Ausführung nicht hinterlegt etc.) erforderlich ist.
A40: 5. Die Gruppenschlüssel werden durch Auswahl von Schlüsselnummer, -Bezeichnung oder -Typ im Schließplankopf erfasst und geändert. Achtung: Das Erfassungsfenster öffnet sich nur, wenn Sie die Auswahl wechseln. Mit Hilfe des "@"-Zeichens können Sie innerhalb GHS-Anlagen Gruppenschlüssel fortlaufend "in einem Rutsch" erfassen.
A41: 6. Die Funktionen werden durch Auswahl der "Funktion" und durch Anklicken der gewünschten Position in der Funktionsmatrix gesetzt. Zum Löschen von Funktionen müssen Sie in der Auswahl "Funktion" im Schließplankopf das Leerfeld wählen.
A42: 7. Über "Preise" oder über F4 kann nun anhand Ihrer Vorgaben eine Kalkulation vorgenommen werden.
A43: 8. Die Exportfunktionen dienen nur dem DOM-Datentransfer und sind für Sie als Fachhändler nicht von Bedeutung.
A44: 9. Wenn Sie zusätzliche Spalten für Daten benötigen, dann können Sie diese unter "Bearbeiten>Anzahl Sonderspalten" sichbar machen.
A47: Funktionen
A49: Kennzeichen in Auswahlliste "Funktion"
A50: X = Gruppenfunktion
A51: Z = Zentralzylinder der von Einzelschlüsseln mit I-Kennzeichnung geschossen wird
A52: I = schließt in Z oder M-Zylinder
A53: Leerfeld= Funktion löschen
A55: Grundsätzliches
A56: Alle Schlüssel mit gleicher Schlüsselnummer könne alle Zylinder mit derselben Nummer schließen.
A57: Gleiche Schlüsselnummer bedeutet gleiche Schließfunktion von Schlüssel und Zylinder.
A59: Gruppenschlüssel schließen alle mit X gekennzeichneten Zylinder der Spalte.
A61: Zentralfunktionen: Alle mit I gekennzeichneten Positionen schließen in die mit Z gekennzeichneten Positionen einer Spalte
A62: Für jede Zentralschließung ist eine separate Spalte anzulegen.
A64: Maximal eine Schlüsselnummer kann eine andere mitschließen.
A65: Die Schließfunktionen beider Schlüsselnummern müssen ansonsten identisch sein.
A69: Hinweis. DOMXL verhält sich im Wesentlichen so wie eine normale Exceltabelle. Da der Aufbau von DOMXL geschützt ist und im Hintergrund Plausibilitätsprüfungen stattfinden, kann es sein, dass einige "normale Excelfunktionen" nicht wie gewohnt möglich sind (z.B. Zeilen-Einfügen). Diese Funktionen sind durch DOMXL-eigene Funktionen ersetzt worden (z.B.F9 = Zeile(n) einfügen).
A72: DOMXL ist urheberechtlich geschützt.
A73: Unbefugte Vervielfältigung, Weitergabe oder Änderung
A74: wird straf- und zivilrechtlich verfolgt.
A75: und kann schwere Strafen und Schadendsersatzforderungen
A76: zur Folge haben.
A78: DOMXL ist Eigentum der
A79: DOM-Sicherheitstechnik GmbH
A80: Wesselinger Str. 10-16
A81: 50321 Brühl

Sheet Instrukce (hidden)
A3: DOM-XL
A9: Prosím, pošlete nám celý DOM - XL - plán cestou e - mail, CD, DVD nebo CD - ROM.
A11: Instrukce :
A13: Po přečtení následujících řádků byste měli být schopni rychle zadat a výpočítat systém generálního klíče s DOM-XL.
A15: Zahájení
A17: 1. Otevřete soubor DOMXL.XLT . Při otevírání budete dotázáni, zda chcete "aktivovat makra". Musíte odpovědět na tuto otázku "ano", aby bylo možné otevřít soubor v jeho plné funkčnosti. Pokud tato otázka není zobrazena, musíte nastavit úroveň zabezpečení v aplikaci Excel - tlačítko "Nástroje > Makra > Zabezpečení" na "střední" nebo "nízké".
A18: 2. Vyplňte pole v listu "Start" v rozsahu, jak je znáte.
A19: 3. Pokud máte čtečku magnetických karet a chcete rozšířit stávající systém generálního klíče, klikněte na "Bezpečnostní karta". V další šabloně nastavte připojení vaší čtečky paměťových karet a vyberte možnost "Číst kartu". Zvolte "OK" a karta je načtena čtečkou karet.
A20: 4. Do plánu systému se dostanete prostřednictvím "Zobrazit plán generálního klíče" nebo F3.
A22: Plán generálního klíče
A24: 1. Pokud pole dosud nebyla vyplněna cestou načtené bezpečnostní karty, vyplňte informace "Nový systém / rozšíření " , "Inventární číslo" , "Instalace" a "Systém".
A25: 2. Vyplňte ve sloupcích "Popis dveří / místnosti" a "Číslo klíče". Pokud zvolíte "Zobrazit > Import sloupce" ( nebo F8 ) můžete převzít externí data kopírováním jiného souboru.
A26: 3. Vyplňte pole "Počet", "Typ vložky", "Provedení", "Délka" a "Povrchovou úprava". Stiskněte F1 pro pomoc s výběrovým seznamem platných možností, které mohou být převzaty kliknutím.
A28: F1 : Pomoc pro "Typ vložky" , "Provedení" , "Délka vložky" a "Povrchová úprava".
A29: F5 : Přebírá hodnotu buňky výše.
A30: F6 : Přebírá zcela buňky výše.
A31: F7 : Přebírá zbytek na pravé straně řádku výše.
A32: F9 : Vložení řádku (ů).
A33: F10 : Odstranění řádku (ů).
A34: F11 : Vložení sloupce (ů).
A35: F12 : Odstranění sloupce (ů).
A36: Shift F5 : Zkopíruje označené hodnoty sloupce a vloží je pod výběr.
A37: Shift F6 : Zkopíruje označené oblasti a vloží ho pod výběr.
A39: 4. Pokud je pole označeno červeně, musíte zadat nebo upravit obsah buňky (použijte funci F1)
A40: 5. Dílčí hlavní klíče jsou potvrzeny a upraveny v hlavě klíčového plánu výběrem číslo klíče, název klíče nebo typ klíče. Pozor: okno se otevře pouze tehdy, když změníte výběr. Dílčí hlavní klíče uvnitř klíčového systému lze zadat po sobě na jeden zátah použitím znaku "@".
A41: 6. Funkce jsou definovány výběrem "funkce" a kliknutím na požadovanou pozici ve funkci matrice. Vyberte prázdné místo v čele plánu hlavního klíče ve výběru "Funkce", aby bylo možné odstranit funkci.
A42: 7. Vyberte "Výpočt ceny" nebo stisknutím klávesy F4 si vypočtěte cenu podle Vaší specifikace.
A43: 8. Funkce exportu jsou potřeba pouze pro přenos dat DOM a nemají žádný význam pro vás jako prodejce.
A44: 9. Pokud potřebujete další sloupce pro data, pak je můžete zobrazit v položce "Zobrazit > Počet zvláštních sloupců".
A47: Funkce
A49: Značky v seznamu vyberte "funkce"
A50: X = funkce skupiny
A51: Z = centrální vložka otevíratelná klíči s I- značením
A52: M = společný uzávěr, který je uzavřen kombinací s I- značením
A53: I = zavírá Z nebo M vložku
A54: G = Stejné uzamčení (nutné pouze v případě, že čísla klíčů jsou odlišná)
A55: Prázdné pole = bez funkce a pro mazání dat (viz výše)
A57: Základy
A58: Všechny klíče se stejným číslem klíče mohou uzavřít všechny vložky se stejným číslem.
A59: Stejné číslo klíče znamená stejnou klíčovou funkci pro klíč a vložku.
A61: Skupinový klíč zavřete všechny vložky označené X v sloupci.
A63: Centrální funkce : Všechny položky označené "I" zavírají vložku označenou "Z" v témže sloupci
A64: Pro každou centrální vložku musí být vytvořen samostatný sloupec.
A66: Společné uzávěr : Všechny pozice označené "I" zavřou vložky označené M v daném sloupci.
A67: Maximálně dva různé čísla klíčů mohou mít jiný společný uzávěr (M).
A68: Uzamykací funkce těchto dvou čísel klíčů musí být jinak identické .
A70: Stejné uzamčení : U položek různých klíčových čísel ale stejných - identických blokovacích funkcí.
A71: Pozor ! Měl by být použit pouze ve výjimečných případech .
A73: Ceny
A74: Cena je bez záruky a odpovídá vašim požadavkům a uloženému ceníku. Informace o ceně bude vrácena kdykoliv při otevření DOM XL. To znamená, že je možné zpracovat se souborem, aniž by ukazoval výpočet. Navíc můžete zadat heslo pro deaktivaci funkce výpočtu . Heslo je vždy uloženo, když jsou uvedené ceny.
A77: Pozor : DOMXL soubory mohou být zpracovány jako obyčejný soubor aplikace Excel. Protože struktura DOMXL je chráněna a jeho věrohodnost je kontrolována, může se stát, že některé "běžné funkce aplikace Excel" nejsou k dispozici (např. vkládání řádků atd.). Tyto funkce byly nahrazeny DOMXL funkce (např. : F9 = Vložit řádek (y)).
A79: Pokud máte jakékoliv dotazy, kontaktujte nás

Sheet Help-NL
A3: DOM-XL
A5: DOM Nederland
A7: Tel: 070-3193006
A9: Graag ontvangen wij uw sluitplanbestelling in DOM-XL per e-mail.
F10: info@dom-nederland.nl
A11: Bediening:
A13: Na het lezen van deze beknopte handleiding bent U in staat om snel en eenvoudig een sluitplan op te stellen en vooraf een calculatie daarvan te maken.
A15: TABBLAD START
A16: Open het bestand DOMXL.XLT. Na het openen wordt U gevraagd of U de macro´s wilt activeren.
A17: Dit doet U om gebruik te kunnen maken van de functies van het systeem.
A18: Mocht deze vraag niet gesteld worden, dan moet U in het menu "EXTRA" "OPTIES" kiezen en
A19: het beveiligingsmenu instellen op "GEMIDDELD" of "LAAG".
A20: Klik op Nieuw sluitplan en geef aan onder welke naam het nieuwe sluitplan wilt opslaan
A21: U kunt het Tabblad START verder invullen.
A23: Wanneer U over een Veiligheidscertificaatslezer beschikt en U een uitbreiding wilt invoeren, klikt U op "VEILIGHEIDSCERTIFICAAT"
A24: Nadat het certificaat is ingelezen klikt U op "OK"
A25: Door op "SLUITPLAN BEWERKEN" of op de toets <F3> te drukken, gaat U naar het sluitplan.
A28: TABBLAD S-PLAN
A29: Indien de velden nog niet automatisch zijn bijgewerkt door de DOM Certificaatlezer, dient U handmatig aan te geven of het gaat om
A30: een nieuw of een bestaand sluitplan. Als het gaat om een uitbreiding moet U vanzelfsprekend het sluitplannummer invoeren.
A31: Vervolgens voert U de inrichting (Z, ZHS, HS, GHS) en het systeemtype (bijv. RS-8, IX-6SR etc.) in.
A32: U kunt de cellen onder de kolom "ruimteomschrijving", "vrije ruimte", en "sleutelnummer" invoeren.
A33: Let op:
A34: Tekst in de ruimteomschrijving mag maximaal 20 tekens bevatten.
A35: Meer tekens zijn in het definitieve sluitplanoverzicht dan ook niet zichtbaar.
A36: Tekst in "vrije ruimte" wordt niet weergegeven in het definitieve sluitplan.
A37: Door op "BEWERKEN" of de <F8> toets te drukken, kunt U o.a. kolommen importeren van een extern bestand.
A38: Bij het invoeren van de kolommen "Cilindertypen", "Uitvoering" en "Kleur" krijgt u een keuzemenu door op de <F1> toets te drukken
A40: Sneltoetsen
A41: <F1> keuzemenu tbv kolommen "cilindertypen", "Uitvoering", en "Kleur"
A42: <F2> laat de cursor zien
A43: <F3> naar het sluitplan
A44: <F4> prijzen bekijken
A45: <F5> kopieert de waarde van bovenliggende cel
A46: <F6> kopieert de gehele bovenliggende regel
A47: <F7> kopieert de bovenliggende regel behalve ruimteomschrijving en vrije invoer
A48: <F9> invoegen van een regel
A49: <F10> verwijderen van een regel
A50: <F11> invoegen van een kolom
A51: <F12> verwijderen van een kolom
A53: <SHIFT> + <F5> kopieert de geselecteerde cel naar onderliggende cel
A54: <SHIFT> + <F6> kopieert een geselecteerd bereik naar onderliggend bereik
A56: Rood gemarkeerde cellen duiden erop dat U iets heeft ingevoerd wat niet juist is. Controleer de types, uitvoeringen en kleur.
A57: Er is een speciaal invoerscherm beschikbaar om een (G)HS of GS in te voeren. Dit scherm komt tevoorschijn wanneer U klikt op een cel waar de
A58: GS sleutels behoren te staan.
A59: Door eerst een functie te kiezen in het keuzemenu "FUNCTIE" kunt U deze functie in de juiste positie zetten in de functiematrix
A60: Dit kan op 2 manieren:
A61: Door een klik met de linker muisknop (1 voor 1)
A62: Door een bereik te selecteren (alles tegelijk)
A64: Door op de knop "PRIJZEN" of <F4> te drukken kunt U de prijzen bekijken van uw zojuist opgestelde sluitplan
A65: (U krijgt eerst een invoerscherm waarin U een aantal gegevens zoals wachtwoord (passwort)/ kortingen/ toeslagen kunt vermelden)
A67: Waar u op moet letten bij een Z/ZHS systeem:
A68: U heeft gekozen voor een Z/ZHS inrichting. DOM XL bepaalt niet of de door u opgegeven inrichting juist is!
A69: Dit kan in uw nadeel zijn bij het bepalen van de prijs.
A70: De Hoofdsleutel in deze inrichting is een Technische Hoofdsleutel en mag ongeveer 30% van het plan sluiten! (centraalcilinders en technische ruimten)
A71: Controleer of u de juiste inrichting gekozen heeft.
A73: De Exportfunctie is voor DOM doeleinden bestemd en is voor U niet van toepassing.
A75: Omschrijving van beschikbare cilindertypen:
A77: Cilindertype | B77: Omschrijving
A78: 325L | B78: Binnencilinder t.b.v. LIPS 1754
A79: 3019-03-2 | B79: Slotkast/bijzetslot opbouw incl. staartcilinder 555P
A80: 333 | B80: Dubbele profielcilinder (17mm)
A81: 333STAAL | B81: Dubbele profielcilinder (17mm) tbv Diamant, staal uitvoering
A82: 333DUR | B82: Dubbele profielcilinder (17mm) tbv Diamant, duracast uitvoering (voor binnendeuren)
A83: 333BLBL | B83: Dummie cilinder (17mm)
A84: 333FRL | B84: Profielcilinder met vrijloopfunctie (360°) (17mm)
A85: 333MFRL | B85: Profielcilinder met vrijloopfunctie (360°) (17mm) in Modulaire constructie
A86: 333H | B86: Halve profielcilinder (17mm)
A87: 333HSTAAL | B87: Halve profielcilinder (17mm) tbv Diamant, staal uitvoering
A88: 333HDUR | B88: Halve profielcilinder (17mm) tbv Diamant, duracast uitvoering (voor binnendeuren)
A89: 333HFRL | B89: Halve profielcilinder (17mm) met vrijloopfunctie 360°
A90: 333HMFRL | B90: Halve profielcilinder (17mm) met vrijloopfunctie 360° in Modulaire constructie
A91: 333HK6 | B91: Halve profielcilinder met knop (17mm) ook leverbaar met K2, K3 of K4
A92: 333HM | B92: Halve profielcilinder modulair (17mm)
A93: 333K6 | B93: Dubbele profielcilinder met knop (17mm) ook leverbaar met K2, K3 of K4
A94: 333K6STAAL | B94: Dubbele profielcilinder met knop (17mm) tbv Diamant, staal uitvoering
A95: 333K6DUR | B95: Dubbele profielcilinder met knop (17mm) tbv Diamant, duracast uitvoering (voor binnendeuren)
A96: 333K6M | B96: Dubbele profielcilinder modulair met knop (17mm)
A97: 333K6KRU | B97: Dubbele profielcil.(17mm) met knop en slipkoppeling (knop kan niet worden tegengehouden, toegang altijd mogelijk)
A98: 333KL (K6) | B98: Dubbele profielcilinder Kort-Lang (27 / 35) (17mm) (voor KL met knop, knoptype kiezen in "uitvoering")
A99: 333KK | B99: Dubbele profielcilinder Kort-Kort (27 / 27) (17mm)
A100: 333KLT | B100: Dubbele profielcilinder Kort-Lang (27 / 35) voorzien van T-koppeling (gevarenfunctie)
A101: 333KV | B101: Dubbele profielcilinder met knop, vrij/bezet (rood/groen) uitvoering (17mm)
A102: 333BLK6 | B102: Dubbele profielcilinder met aan een zijde knop en andere zijde blind (17mm)
A103: 333M | B103: Dubbele profielcilinder modulair (17mm)
A104: 333RI | B104: Dubbele profielcilinder met Tandwiel 10 of 14 tands (17mm) Tandwiel kiezen in "uitvoering"
A105: 333T | B105: Dubbele profielcilinder voorzien van T-koppeling (gevarenfunctie) (17mm)
A106: 333TM | B106: Dubbele profielcilinder modulair voorzien van T-koppeling (gevarenfunctie) (17mm)
A107: 472 | B107: Dubbbele 22 mm rond cilinder
A108: 472H | B108: Halve 22 mm rond cilinder
A109: 472K6 | B109: Dubbele 22 mm rond cilinder met knop
A110: 472HK6 | B110: Halve 22 mm rond cilinder met knop
A111: 382 LI/RE | B111: Hevelcilinder (voor o.a. postkasten) LI/RE
A112: 393 | B112: Cilinder voor lift sleutelschakelaar met aansluiting van 2 microschakelaars (schakelmoment kiezen in "uitvoering")
A113: 419Lips | B113: Schroefcilinder tbv Lips 2300 serie
A114: 325 / 464 | B114: Meubelkastcilinder tbv slotkast 464
A115: 464 / 325 | B115: Meubelkastcilinder kompleet met slotkast (Doornmaat opgeven in "uitvoering")
A116: 555P | B116: Staartcilinder (t.b.v. Lips 1700 series)
A117: 777-02-M | B117: Hangslot messing uitvoering
A118: 777-02-MHB60 | B118: Hangslot messing uitvoering met hoge beugel 60mm
A119: 777-02-M + SK | B119: Hangslot messing uitvoering met stofkap
A120: 777-02-MHB60 + SK | B120: Hangslot messing uitvoering met hoge beugel 60mm met stofkap
A121: 777-P191 | B121: Niet meer leverbaar
A123: Let erop dat niet alle typen in alle systemen toepasbaar zijn!
A125: DOM-XL is een databaseprogramma op Microsoft Excel basis en werkt hierdoor in het principe hetzelfde als een Excel spreadsheet.
A126: Omdat DOM-XL beveiligd is en gebruik maakt van verborgen formulebladen, kan het zijn dat bepaalde "gebruikelijke excelfuncties"
A127: niet functioneren zoals U dit gewend bent. (bijvoorbeeld: invoegen en verwijderen van regels en kolommen.) deze functies zijn nog steeds mogelijk, maar op een manier
A128: zoals beschreven in deze beknopte handleiding.
A130: Voor vragen kunt U zich richten tot:
A132: Dom-Nederland
A133: info@dom-nederland.nl
A134: 070-3193006
A135: Voor de laatste versie van dit programma zie www.dom-nederland.nl

Sheet Help-FR (hidden)
A1: DOM-XL
A7: Notice:
A9: Après la lecture de ces quelques lignes, vous serez en mesure de saisir vos organigrammes rapidement dans DOMXL
A11: Start
A13: 1. Ouvrez le fichier DOMXL.XLT. A l'ouverture, il vous sera demandé si vous souhaitez "activer les Macros". A cette question vous devez répondre par "OUI" pour pouvoir utiliser toutes les fonctions du fichier. Si cette question ne vous était pas posée, alors, dans Excel, par le menu OUTILS>MACRO>SECURITE, sélectionnez le niveau de sécurité "moyen" ou "faible".
A14: 2. Dans la feuille START, remplissez les champs (Revendeur, n° de client etc...). Cliquez sur "Fichier">"Enregistrez sous". Donner comme nom de fichier "DOMXL", comme type de fichier choisissez "Modèle (*.xlt)". Puis enregistrer et fermer DOMXL.
A15: 3. Maintenant, par le menu "Fichier">"Nouveau" vous pouvez créer d'autres plans DOMXL Vos références seront pré-enregistrées.
A16: 4. Cliquez sur le bouton "Enregistrer sous" et saisissez le nom sous lequel votre organigramme doit être sauvegardé.
A17: 5. Remplissez tous les champs connus de la feuille Start.
A18: 6. Si vous possèdez un lecteur de carte magnétique et que vous souhaitez saisir une extension sur une installation existante, Cliquez sur le bouton "Carte de propriété". Dans le masque suivant sélectionner le bon port sur lequel est branché votre lecteur et cliquez sur le bouton "Lecture de la carte". Une fois les informations affichées Validez par OK.
A19: 7. Sélectionnez "Editer le plan" ou utilisez la touche F3 pour commencer à saisir le plan de fermeture…
A21: S-Plan
A23: 1. Si, vous ne possédez pas de lecteur de carte de propriété, vous devez saisir les informations d'en-tête "nouvel / extension", le type d'organigramme (GHS=PG+PP, HS=PG seul, Z = Ouverture Centrale, ZHS=PGTechnique+OC) et le système DOM, avant de commencer la saisie des lignes.
A24: 2. Remplissez les colonnes "Designation", "Observation", et "numéro de clé". Vous pouvez également importer ces données à partir d'une liste externe afin de gagner du temps.
A25: 3. Remplissez la quantité de cylindre désirée, le type souhaité, les longueurs et la finition souhaitée. Lorsque vous êtes sur l'une de ces cellules, avec la touche "F1" vous pouver appelez une liste déroulante contextuelle qui vous proposera les valeurs disponibles.
A26: Touches d'aide à la saisie
A27: F1 affiche la liste d'aide pour le type, la fonction, les longueurs et la finition d'un cylindre
A28: F5 reprend la valeur de la cellule supérieure
A29: F6 reprend toutes les valeurs de la ligne supérieure.
A30: F7 reprend les valeurs de droite de la ligne supérieure.
A31: F9 Insère une ligne
A32: F10 Suppression de ligne
A33: F11 Insère une colonne
A34: F12 Supprime une colonne
A35: Shift+F5 duplique les valeurs sélectionnées d'une colonne au-dessous de la sélection.
A36: Shift+F6 duplique les valeurs sélectionnées d'une colonne au-dessous de la sélection.
A38: 4. Les champs rouges indiquent qu'une saisie et/ou une modification est nécessaire ! (p. ex. saisie ou fonction incorrecte)
A39: 5. Les clés passes sont saisies dans la partie supérieure du document (N° de clé, désignation, type et quantité). Notez que la fenêtre de saise ne s'ouvre que lorsque que vous cliquez sur une nouvelle cellule de la zone des passes. Vous pouvez créer plusieurs passes rapidement en utilisant la fonction de duplication à l'aide du signe "@".
A40: 6. Les fonctions sont définies dans la grille en cliquant sur la case souhaitée après avoir choisi type désiré dans le sélecteur de Fonction qui se situe dans l'en-tête du document. Pour supprimer une fonction il suffit de choisir dans le sélecteur de fonction la ligne vide, puis de clique sur la case à supprimer. (X = fonction de passe; Z et I = fonction d'ouverture centrale; "Vide" = supprimer une fonction; M pour créer une entrouverture sans réciprocité et G pour définir deux même-variures avec des n° distincts)
A41: 7. Le bouton "Calcul du Prix" (ou la touche F4) vous permet maintenant de soumettre vos données à un calcul de prix indicatif
A42: 8. Les fonctionnalités d'exportation sont réservées à DOM.
A44: Prix
A46: Le calcul de prix s'effectue sur la base des données saisies par vos soins et d'une liste de prix intégrée au fichier. Ces données de prix ne sont pas enregistrées et sont réinitialisées à chaque utilisation du fichier. Vous pouvez ainsi transmettre le fichier sans que votre calcul de prix ne puisse être consulté. Vous avez même la possibilité de saisir un mot de passe pour désactiver le bouton "Prix". Le calcul de prix n'est pas une étape obligatoire. Vous pouvez nous envoyer votre fichier sans avoir utilisé cette fonctionnalité.
A48: Le calcul des prix comporte une limite: les prix des barillets modulaires avec rallongements ne sont pas justes.
A49: Si vous devez utiliser ces barillets alors merci de prendre contact avec notre service commercial
A52: Remarque: DOMXL se comporte d'une manière générale comme un simple tableau Excel. Mais la structure protégée du fichier ainsi que des contrôles de cohérence lors de la saisie peuvent rendre certaines fonctions d'Excel indisponibles. Ces fonctions sont alors remplacées par des fonctions propres de DOMXL(p.ex.F9=Insérer ligne(s)).
A60: DOMXL est protégé contre la copie
A61: Les copies illégalles, la diffusion de modifications
A62: seront poursuivit pénalement
A63: et pourront entraîner de fortes amendes ainsi que des dédommagements importants.
A65: DOMXL est la propriété de
A66: DOM-Sicherheitstechnik GmbH
A67: Wesselinger Str. 10-16
A68: D-50321 Brühl

Sheet Istruzioni (hidden)
A3: DOM-XL
A5: DOM - Sicherheitstechnik GmbH , 50309 Brühl
A7: Phone: +49 2232/ 704-0
A9: Per cortesia inviateci il file DOM_XL completo per email, disco o CD-ROM.
A11: Istruzioni:
A13: Dopo avere letto le seguenti istruzioni sarete in grado di inserire e calcolare gli impianti masterizzati.
A15: Inizio
A17: 1.Aprire il file DOMXL.XLT. Vi verrà richiesto di "attivare le macro".A questa domanda dovrete rispondere "SI" per essere poi in grado di utilizzare il file con tutte le sue funzionalità.Se questa domanda non vi viene posta dovete setare i parametri di sicurezza di MS Excel, utilizzando il seguente percorso "Extras>Macro>Security" a "medio" o "basso"
A18: 2.Compilare il resto del file nel foglio "Start" come da istruzioni
A19: 3.Se avete un lettore di carte magnetiche and volete inserire una estensione di un piano masterizzato esistente, clicca su "security card". Nel Template successivo hai la possibilità di modificare la connsessione del lettore e selezionare "leggere card". Selezionate "OK" quando la card è stata verificata dal lettore
A20: 4. Vai al piano masterizzato da "Modifica piano masterizzato oppure F3.
A22: Piano Masterizzato
A24: 1. Se i campi non sono ancora stati compilati dalla Security Card, aggiungere le seguenti informazioni" Nuovo sistema/Estensione", "Numero di progetto", " Tipo di progetto", e "Sistema".
A25: 2. Compilare nelle colonne i campi "Nome Stanza", "Entrata libera", "Chiave numero". Se selezioni "Modifica>importa colonne" (Con F8) è possibile importare dati esterni in un file di conversione.
A26: 3. Compilare i campi "Numero", "Tipo cilindro", " Versione", "Lunghezza" e "Finitura". Selezionare F1 per una lista di possibilità che possono essere utilizzate semplicemente cliccando loro sopra.
A28: F1: Aiuto per "Tipo di cilindro", "Versione di cilindro", "Lunghezza cilindro" e "finitura".
A29: F5 Sostituisce il valore della cella superiore.
A30: F6: Sostituisce completamente la cella superiore.
A31: F7: Sostituisce completamente la parte destra della linea superiore
A32: F9: Inserire linea(linee) .
A33: F10: Cancella linea (linee).
A34: F11: Inserire colonna (colonne).
A35: F12: Cancella colonna (colonne) .
A36: Shift F5: Copia i valori selezionati e li incolla sotto la selezione
A37: Shift F6: Copia l'area seleziona e la inserisce sotto la selezione
A39: 4. Se un campo è marcato di rosso è necessario effetturare modifiche e/o correzioni (ad es. misura sbagliata o modello non memorizzato).
A40: 5. Le chiavi MK possono essere inserite e modificate nella testata del piano di chiusura selezionando il numero della chiave, il nome oppure il tipo di chiave. Attenzione la finestra di dialogo si aprirà solo se è stata modificata la selezione. Le chiavi MK, all'interno di un sistema GMK, possono essere inserite in un sola mossa semplicemente con "@"-sign.
A41: 6. Le funzioni sono definite con la selezione delle "Funzioni" and cliccando sulla posizione scelta nella matrice. Selezionare lo spazio vuoto nella testata del piano masterizzato nella scelta delle "funzioni" per cancellare le funzioni.
A42: 7. Selezionare " Prezzi" o premere "F4" per ottenere un preventivo in accordo alle Vostre specifiche.
A43: 8. Le funzioni di esportazioni vengono utilizzate esclusivamente per il DOM-data transfer e non sono abilitate per lo specialista.
A45: Prezzi
A47: I prezzi sono senza alcun vincolo e sono basati sul listino in vogore e sulla scontistica a Voi riservata. La tabella prezzi viene ricaricata ogni volta che si apre DOM-XL. Questo significa che è possibile gestire il file senza mostrare il preventivo. E' inoltre possibile configurare una password per disattivare la funzione di preventivazione. La password è saalvata ogni volta che i prezzi vengono mostrati.
A51: Attenzione: DOMXL può essere generalmente gestito come un file di Excel. Considerando che il sistema DOMXL è protetto potrebbe essere necessarie modifiche nel background e alcune funzioni di Excel non essere disponibili, ma sono sostituite da funzioni di DOMXL ( ad esempio inserire linee sostituito dalla funzione di DOMXL F9=inserire linee)
A53: Per qualsiasi informazione pregasi contattare :
A55: Mr. Ulrich Stappenbeck
A56: Phone: + 49 2232-704-404
A57: E-Mail mailto:Ulrich.Stappenbeck@DOM-Sicherheitstechnik.de
A60: DOMXL is copyrighted.
A61: Unauthorised copying, circulation or changes will be prosecuted.
A62: and can lead to considerable penalties and claims for compensation.
A65: DOMXL is a property of
A66: DOM-Sicherheitstechnik GmbH
A67: Wesselinger Str. 10-16
A68: D-50321 Brühl

Sheet HELP-GB
A3: DOM-XL
A5: DOM - Sicherheitstechnik GmbH , 50309 Brühl
A7: Phone: +49 2232/ 704-0
A9: Please send us the complete DOM-XL-masterkey plan by e-mail, disc or CD-ROM.
A11: Instruction:
A13: After having read the following lines you will be in the position of entering and calculating masterkey systems quickly with DOMXL.
A15: Start
A17: 1. Open the file DOMXL.XLT. While opening you are asked if you want to "activate macros". You have to answer this question with "yes" in order to be able to open the file with its full functionality. If this question is not asked, you have to adjust the security level in Excel at the button "Extras>Macro>Security" to "middle" or "low"
A18: 2. Fill in the rest of the fields in the sheet "Start" as far as you know them.
A19: 3. If you have a magnetic card reader and want to enter an extension to an existing masterkey system, click on "Security card". In the next template you adjust the conncection of your card reader and select "read card". Select "Ok" when the card was read by the reader.
A20: 4. You get to the masterkey plan via "edit masterkey plan" or F3.
A22: Masterkey plan
A24: 1. If the fields have not yet been filled by the security card, add information regarding "new system/extension", "asset number,"kind of asset" and "system".
A25: 2. Fill in the columns "room names", "free entry" and "key number". If you select "Edit>import column" (or F8 ) you can take over external data by copying with an intermediate file.
A26: 3. Fill in the fields number, cylinder type, version, length and finish. Press F1 for help with a selection list of valid possibilities which can be taken over by clicking.
A28: F1: Help for "cylinder type", "cylinder version", "cylinder length" and "finish".
A29: F5 takes over the value of the cell above.
A30: F6: Takes over the cell above completely.
A31: F7: Takes over the rest on the right of the row above.
A32: F9: Inserts row(s) .
A33: F10: Deletes row(s).
A34: F11: Inserts column(s).
A35: F12: Deletes column(s) .
A36: Shift F5: Copies the marked values of a column and inserts them below the selection.
A37: Shift F6: Copies the marked area and inserts it below the selection.
A39: 4. If a field is marked red you need to enter or modify something (e.g.: Different notation, version not memorised etc.).
A40: 5. The sub master keys are entered and modified in the head of the masterkey plan by selecting key number, key name or key type. Attention: The entry window will only be opened if you change the selection. sub master keys within GMK-systems can be entered consecutively in one go with the "@"-sign.
A41: 6. The functions are defined by the selection of "function" and by clicking on the desired position in the function matrix. Select the empty space in the head of the master key plan in the selection "function" in order to delete functions.
A42: 7. Select "Prices" or press F4 to get a calculation according to your specification.
A43: 8. The export functions are only needed for the DOM-data transfer and have no meaning for you as a specialist dealer.
A48: Attention: DOMXL can generally be handled like a ordinary Excel file. As the structure of DOMXL is protected and plausibility checks can be made in the background, it is possible that some "ordinary Excel functions" are not available (e. g. inserting rows etc). These functions have been replaced by DOMXL functions (e.g.:.F9=insert row(s)).
A52: DOMXL is copyrighted.
A53: Unauthorised copying, circulation or changes will be prosecuted.
A54: and can lead to considerable penalties and claims for compensation.
A57: DOMXL is a property of
A58: DOM-Sicherheitstechnik GmbH
A59: Wesselinger Str. 10-16
A60: D-50321 Brühl

Sheet grund (hidden)
A1: Bezeichnung | B1: Wert | J1: 54 | K1: 32 | L1: 82 | M1: 12
A2: Sprache Spalte | B2: 5
A3: Sprache | B3: Nederlands | J3: 333 | K3: B | L3: 30 / 30 | M3: 01
A4: DOM-XL Version | B4: 6.2.05 | J4: 333T | K4: Biffar | L4: 30 / 35 | M4: 04
A5: Freispalten | B5: 10 | J5: 333H | K5: CH | L5: 30 / 40 | M5: 05
A6: Preisliste | J6: 333KL | K6: CHK2 | L6: 30 / 45 | M6: 06
A7: 1Datei | B7: E:\Dokumente und Einstellungen\Spock\Eigene Dateien\test.xls | J7: 333K6 | K7: CHK6 | L7: 30 / 50 | M7: 07
A8: Letztes speichern | B8: 15.11.2018 - 15:12:05 | J8: 333FRL | K8: K2CHCH | L8: 30 / 55 | M8: 09
A9: Leser | B9: Keybord | J9: 777G3 | K9: K3CHCH | L9: 30 / 60 | M9: 17
A10: SSK Eingabeanschläge | J10: 382 | K10: K6CHCH | L10: 30 / 65 | M10: 25
A11: SSK Anlage | J11: 325/3017 | K11: I/A | L11: 30 / 70 | M11: 27
A12: SSK Art | B12: GHS | J12: 325/3464 | K12: K1 | L12: 30 / 80
A13: SSK System | J13: 325/KRON | K13: K2 | L13: 30 / 85
A14: SSK Ausführung | J14: 325/LIPS | K14: K3 | L14: 35 / 30
A15: SSK Profil | J15: 325/SCHI | K15: K4 | L15: 35 / 35
A16: SSK Datum | J16: 333 | K16: K6 | L16: 35 / 40
A17: SSK Schlusselnummer | J17: 333AMOK K6 | K17: KUBEIGE | L17: 35 / 45
A18: SSK Hersteller | J18: 333BLBL | K18: KUDUNKELBLAU | L18: 35 / 50
A19: SSK Datum 2 | J19: 333FRL | K19: KUDUNKELBRAUN | L19: 35 / 55
A20: SSK | J20: 333H | K20: KUDUNKELGRUEN | L20: 35 / 60
A21: SSK eingelesen am | J21: 333H HAUS | K21: KUDUNKELROT | L21: 35 / 65
A22: SSK String | J22: 333HBL | K22: KUGELB | L22: 35 / 70
A23: SSK input | B23: Tastatur-Schnittstelle | J23: 333HFRL | K23: KUGRAU | L23: 35 / 80
A24: Multi zwischenspeichern | B24: 100 | C24: 100 | J24: 333HK2 | K24: KUGRUEN | L24: 35 / 85
A25: BAZ | B25: 0 | J25: 333HK6 | K25: KUROT | L25: 40 / 30
A26: Altzuschlag | B26: 0 | C26: 0 | J26: 333HM | K26: KUSCHWARZ | L26: 40 / 35
A27: Zuschlag 1 | B27: 0 | C27: 0 | J27: 333HMIWE | K27: KUWEISS | L27: 40 / 40
A28: Zuschlag 2 | B28: 0 | C28: 0 | J28: 333HMU | K28: MI ESP | L28: 40 / 45
A29: Abschlag 1 | B29: 0 | C29: 0 | J29: 333K6 | K29: SEW | L29: 40 / 50
A30: Abschlag 2 | B30: 0 | C30: 0 | J30: 333K6M | K30: T | L30: 40 / 55
A31: Mehrwertsteuer | B31: 0 | C31: 19 | J31: 333K6MU | K31: TB | L31: 40 / 60
A32: Anlagennummer | J32: 333KL | L32: 40 / 65
A33: System alt | B33: SIRIUS | J33: 333KLT | L33: 40 / 70
A34: Anlagenart alt | B34: GHS | J34: 333KRL | L34: 40 / 80
A35: Ergebnis | B35: 0 | J35: 333KRLM | L35: 45 / 30
A36: Alle Positionen berechnen | B36: J | J36: 333KV | L36: 45 / 35
A37: Passwort | J37: 333M | L37: 45 / 40
A38: Meldung Schl/Zyl >9 | B38: J | J38: 333MT | L38: 45 / 45
A39: Betreiber | J39: 333MU | L39: 45 / 50
A40: TAC | J40: 333RI-10 | L40: 45 / 55
A41: TACS | J41: 333RI-14 | L41: 45 / 60
A42: SMPT | B42: 0 | J42: 333T | L42: 45 / 65
A43: SMTPHOST | J43: 333VAR | L43: 45 / 70
A44: SMTPPort | J44: 333VAR BL MASSIV | L44: 50 / 30
A45: SMTPKonto | J45: 382 | L45: 50 / 35
A46: SMPTPW | J46: 382SD | L46: 50 / 40
A47: POP3 | B47: 0 | J47: 393 | L47: 50 / 45
A48: POP3HOST | J48: 419 LIPS | L48: 50 / 50
A49: POP3Port | J49: 555P | L49: 50 / 55
A50: POP3Konto | J50: 555R | L50: 50 / 60
A51: SMPTPW | J51: 633KRL | L51: 50 / 65
A52: MAIL | J52: 777G3 | L52: 50 / 70
A53: Multi 2 | B53: 0 | C53: 100 | J53: MEHRSCHLÜSSEL ES | L53: 55 / 30
A54: Multi 3 | B54: 0 | C54: 100 | L54: 55 / 35
A55: Aufpreis Z | B55: 30.4 | L55: 55 / 40
A56: Aufpreis HS | B56: 39 | L56: 55 / 45
A57: Aufpreis GHS | B57: 68.7 | L57: 55 / 50
A58: Aufpreis Z halb | B58: 25 | L58: 55 / 55
A59: Aufpreis HS halb | B59: 31.2 | L59: 55 / 60
A60: Aufpreis GHS halb | B60: 54.7 | L60: 55 / 65
A61: Multi ELS | B61: 100 | C61: 100 | L61: 60 / 30
A62: System | L62: 60 / 35
A63: Anlagenart | L63: 60 / 40
A64: NeuErw | B64: N | L64: 60 / 45
A65: Anlagennummer | L65: 60 / 50
A66: Version | B66: 6 | L66: 60 / 55
L67: 60 / 60
L68: 65 / 30
L69: 65 / 35
L70: 65 / 40
L71: 65 / 45
L72: 65 / 50
L73: 65 / 55
L74: 70 / 30
L75: 70 / 35
L76: 70 / 40
L77: 70 / 45
L78: 70 / 50
L79: 80 / 30
L80: 80 / 35
L81: 80 / 40
